Merchandising Type Category,Detailed Merchant Category,Supplier,Purchase Details,Transaction Date,Value,Department,
Business Services,Business Services - Default,Siteground Hosting,Supplies and Services related expenditure,01/04/2023,71.86,Director of Corporate Services,
Personal Service Provider,Computer Program/Sys Design,Buzzsprout* Buzzsprout,Supplies and Services related expenditure,01/04/2023,10.03,Solent LEP,
Business Services,Employment/Temp Help Agen,Online Job Ads Indeed,Employees related expenditure,01/04/2023,72,Director of Children's Services and Education,
Utility,Cable/Pay Tv Services,Netflix.Com,Supplies and Services related expenditure,01/04/2023,15.99,Director of Children's Services and Education,
Business Services,Advertising Services,Google Ads4917100100,Supplies and Services related expenditure,01/04/2023,17.56,"Director of Culture, Leisure & Regulatory Services",
Business Services,Advertising Services,Google Ads9547514387,Supplies and Services related expenditure,01/04/2023,446.67,"Director of Culture, Leisure & Regulatory Services",
Facilities/Repair Supplies,Home Supply Warehouse Stores,B & Q 1260,Premises related expenditure,01/04/2023,20.83,Director of Children's Services and Education,
Business Services,Advertising Services,Facebk Lahthnt7z2,Supplies and Services related expenditure,01/04/2023,505.08,Director of Corporate Services,
Business Services,Advertising Services,Google Ads5247259773,Supplies and Services related expenditure,01/04/2023,844.39,Director of Children's Services and Education,
Digital Goods,Digital Goods - Applications (Excludes Games),Facebk *facebk Akr28ptqs2,Supplies and Services related expenditure,01/04/2023,53.48,Director of Children's Services and Education,
Digital Goods,"Digital Goods - Media, Books, Movies, Music",Spotify,Supplies and Services related expenditure,01/04/2023,189.33,Chief Exec,
Other Supplies,Misc Speciality Retail,Amznmktplace,Supplies and Services related expenditure,01/04/2023,49.97,"Director of Culture, Leisure & Regulatory Services",
Eating And Drinking Places,Eating Places/Restaurants,Costa,Agency and Third Party Payments related expenditure,01/04/2023,4.44,Director of Children's Services and Education,
Eating And Drinking Places,Eating Places/Restaurants,Costa,Agency and Third Party Payments related expenditure,01/04/2023,11.04,Director of Children's Services and Education,
Hotels And Motels,Premier Travel Inns,Premier Inn44537330,Agency and Third Party Payments related expenditure,01/04/2023,279.97,"Director of Housing, Neighbourhood and Building Services",
Business To Business Eqpt/Furn,Computers/Peripherals/Software,Msft *,Supplies and Services related expenditure,01/04/2023,21.6,Director of Children's Services and Education,
Type of Retail Store,Grocery Stores/Supermarkets,Lidl Gb,Supplies and Services related expenditure,01/04/2023,27.57,Director of Adult Care,
Type of Retail Store,Grocery Stores/Supermarkets,Tesco Stores 4579,Supplies and Services related expenditure,01/04/2023,4.05,"Director of Housing, Neighbourhood and Building Services",
Type of Retail Store,Grocery Stores/Supermarkets,Asda Stores,Supplies and Services related expenditure,01/04/2023,13.67,"Director of Housing, Neighbourhood and Building Services",
Type of Retail Store,Grocery Stores/Supermarkets,Iceland,Supplies and Services related expenditure,01/04/2023,16.55,"Director of Housing, Neighbourhood and Building Services",
Type of Retail Store,Grocery Stores/Supermarkets,Tesco Stores 4579,Supplies and Services related expenditure,01/04/2023,29.08,"Director of Housing, Neighbourhood and Building Services",
Business To Business Eqpt/Furn,Computer Software Stores,Adobe,Supplies and Services related expenditure,01/04/2023,1.19,Director of Corporate Services,
Business To Business Eqpt/Furn,Computer Software Stores,Adobe,Supplies and Services related expenditure,01/04/2023,1.19,Director of Corporate Services,
Type of Retail Store,Grocery Stores/Supermarkets,Tesco Stores 5837,Supplies and Services related expenditure,01/04/2023,50,Director of Children's Services and Education,
Type of Retail Store,Grocery Stores/Supermarkets,Tesco Stores 5837,Supplies and Services related expenditure,01/04/2023,50,Director of Children's Services and Education,
Type of Retail Store,Grocery Stores/Supermarkets,Tesco Stores 5837,Supplies and Services related expenditure,01/04/2023,100,Director of Children's Services and Education,
Type of Retail Store,Grocery Stores/Supermarkets,Tesco Stores 5837,Supplies and Services related expenditure,01/04/2023,100,Director of Children's Services and Education,
Type of Retail Store,Grocery Stores/Supermarkets,Tesco Stores 5153,Supplies and Services related expenditure,01/04/2023,10,Director of Children's Services and Education,
Miscellaneous,Continuity/Subscription Mercht,Amazon Prime,Supplies and Services related expenditure,01/04/2023,7.49,Director of Children's Services and Education,
Type of Retail Store,Grocery Stores/Supermarkets,Tesco Stores 4579,Supplies and Services related expenditure,01/04/2023,4.75,Director of Children's Services and Education,
Type of Retail Store,Grocery Stores/Supermarkets,Tesco Stores 4579,Supplies and Services related expenditure,01/04/2023,12.7,Director of Children's Services and Education,
Type of Retail Store,Grocery Stores/Supermarkets,Tesco Stores 4579,Supplies and Services related expenditure,01/04/2023,23.75,Director of Children's Services and Education,
Type of Retail Store,Grocery Stores/Supermarkets,Tesco Stores 4579,Supplies and Services related expenditure,01/04/2023,8,Director of Children's Services and Education,
Business To Business Eqpt/Furn,Computer Software Stores,Ticketsource,Agency and Third Party Payments related expenditure,01/04/2023,60.96,Director of Children's Services and Education,
Type of Retail Store,Grocery Stores/Supermarkets,Asda Stores,Agency and Third Party Payments related expenditure,01/04/2023,15.67,Director of Children's Services and Education,
Government Service,Schools - Default,Worldmusicmethod,Supplies and Services related expenditure,02/04/2023,15,Director of Children's Services and Education,
Other Supplies,Misc Speciality Retail,Amznmktplace,Premises related expenditure,02/04/2023,17.45,"Director of Housing, Neighbourhood and Building Services",
Transportation Conveyor,"Parking Lots, Meters, Garages",Queen Alexandra Hospit,Employees related expenditure,02/04/2023,2.67,Director of Adult Care,
Other Supplies,Misc Speciality Retail,Amznmktplace,Supplies and Services related expenditure,02/04/2023,6.24,Director of Corporate Services,
Miscellaneous,Continuity/Subscription Mercht,Amazon Prime,Supplies and Services related expenditure,02/04/2023,7.49,"Director of Housing, Neighbourhood and Building Services",
Other Supplies,Misc Speciality Retail,Amznmktplace,Supplies and Services related expenditure,02/04/2023,62.14,"Director of Housing, Neighbourhood and Building Services",
Utility,Phone Serv/Equip Utility,Giffgaff,Supplies and Services related expenditure,02/04/2023,20,Director of Children's Services and Education,
Facilities/Repair Supplies,Home Supply Warehouse Stores,B & Q 1260,Premises related expenditure,02/04/2023,55.83,Director of Children's Services and Education,
Amusement/Entertainment,Bands/Orchestras/Entertain,Marwellzoo,Agency and Third Party Payments related expenditure,02/04/2023,70.04,Director of Children's Services and Education,
Other Supplies,Misc Speciality Retail,Amznmktplace,Supplies and Services related expenditure,02/04/2023,7.48,Director of Children's Services and Education,
Other Supplies,Misc Speciality Retail,Amznmktplace,Supplies and Services related expenditure,02/04/2023,10.47,Director of Children's Services and Education,
Other Supplies,Misc Speciality Retail,Amznmktplace,Supplies and Services related expenditure,02/04/2023,7.84,Director of Children's Services and Education,
Digital Goods,Digital Goods - Applications (Excludes Games),Google Google Play Apps,Supplies and Services related expenditure,03/04/2023,5.82,Director of Children's Services and Education,
Transportation Conveyor,Travel Agencies,Bkg*booking.Com Hotel,Agency and Third Party Payments related expenditure,03/04/2023,875.83,"Director of Housing, Neighbourhood and Building Services",
Hotels And Motels,Travelodge,Travelodge Gb0000,Agency and Third Party Payments related expenditure,03/04/2023,77,"Director of Housing, Neighbourhood and Building Services",
Hotels And Motels,Travelodge,Travelodge Gb0000,Agency and Third Party Payments related expenditure,03/04/2023,865.97,"Director of Housing, Neighbourhood and Building Services",
Hotels And Motels,Travelodge,Travelodge Gb0000,Agency and Third Party Payments related expenditure,03/04/2023,77,"Director of Housing, Neighbourhood and Building Services",
Hotels And Motels,Travelodge,Travelodge Gb0000,Agency and Third Party Payments related expenditure,03/04/2023,865.97,"Director of Housing, Neighbourhood and Building Services",
Transportation Conveyor,Travel Agencies,Bkg*booking.Com Hotel,Agency and Third Party Payments related expenditure,03/04/2023,-1170,"Director of Housing, Neighbourhood and Building Services",
Hotels And Motels,Lodging/Hotels/Motels/Resorts,Hotel At Booking.Com,Agency and Third Party Payments related expenditure,03/04/2023,1170,"Director of Housing, Neighbourhood and Building Services",
Transportation Conveyor,Travel Agencies,Bkg*booking.Com Hotel,Agency and Third Party Payments related expenditure,03/04/2023,975,"Director of Housing, Neighbourhood and Building Services",
Hotels And Motels,Travelodge,Travelodge Gb0000,Agency and Third Party Payments related expenditure,03/04/2023,77,"Director of Housing, Neighbourhood and Building Services",
Hotels And Motels,Travelodge,Travelodge Gb0000,Agency and Third Party Payments related expenditure,03/04/2023,972.05,"Director of Housing, Neighbourhood and Building Services",
Hotels And Motels,Travelodge,Travelodge Gb0000,Agency and Third Party Payments related expenditure,03/04/2023,77,"Director of Housing, Neighbourhood and Building Services",
Hotels And Motels,Travelodge,Travelodge Gb0000,Agency and Third Party Payments related expenditure,03/04/2023,972.05,"Director of Housing, Neighbourhood and Building Services",
Hotels And Motels,Travelodge,Travelodge Gb0000,Agency and Third Party Payments related expenditure,03/04/2023,77,"Director of Housing, Neighbourhood and Building Services",
Hotels And Motels,Travelodge,Travelodge Gb0000,Agency and Third Party Payments related expenditure,03/04/2023,972.05,"Director of Housing, Neighbourhood and Building Services",
Hotels And Motels,Travelodge,Travelodge Gb0000,Agency and Third Party Payments related expenditure,03/04/2023,154,"Director of Housing, Neighbourhood and Building Services",
Hotels And Motels,Travelodge,Travelodge Gb0000,Agency and Third Party Payments related expenditure,03/04/2023,979.97,"Director of Housing, Neighbourhood and Building Services",
Transportation Conveyor,Travel Agencies,Bkg*booking.Com Hotel,Agency and Third Party Payments related expenditure,03/04/2023,1159.17,"Director of Housing, Neighbourhood and Building Services",
Other Supplies,Misc Speciality Retail,Amznmktplace,Supplies and Services related expenditure,03/04/2023,287.97,Director of Adult Care,
Other Supplies,Misc Gen Merchandise - Def,Www.E-Badges.Net,Supplies and Services related expenditure,03/04/2023,9.6,"Director of Culture, Leisure & Regulatory Services",
Business Expenses/Services,Stationery Stores,Aos Online,Supplies and Services related expenditure,03/04/2023,14.7,Director of Regeneration,
Type of Retail Store,Grocery Stores/Supermarkets,Asda Stores Ltd,Supplies and Services related expenditure,03/04/2023,350,Director of Children's Services and Education,
Business Expenses/Services,Postage Stamps,Post Office Counter,Supplies and Services related expenditure,03/04/2023,12.35,Director of Children's Services and Education,
Type of Retail Store,Grocery Stores/Supermarkets,Asda Stores,Supplies and Services related expenditure,03/04/2023,3.75,Director of Children's Services and Education,
Amusement/Entertainment,Bands/Orchestras/Entertain,Bh Live Active - Wimbl,Supplies and Services related expenditure,03/04/2023,11.9,Director of Adult Care,
Miscellaneous,Charitable/Soc Service Orgs,Zettle_*the Ec Roberts Ce,Premises related expenditure,03/04/2023,291.67,Director of Children's Services and Education,
Type of Retail Store,Electronics Sales,Currys Portsmouth,Supplies and Services related expenditure,03/04/2023,291.67,Director of Children's Services and Education,
Other Supplies,Misc Gen Merchandise - Def,World-Of-Bottles.Co.Uk,Supplies and Services related expenditure,03/04/2023,54.74,"Director of Culture, Leisure & Regulatory Services",
Type of Retail Store,Grocery Stores/Supermarkets,Tesco Stores 4579,Supplies and Services related expenditure,03/04/2023,21.25,Director of Children's Services and Education,
Other Supplies,Misc Speciality Retail,Amznbusiness,Supplies and Services related expenditure,03/04/2023,12.52,Director of Adult Care,
Government Service,Govt Serv - Default,Portsmouth City Co,Transport related expenditure,03/04/2023,63.33,Director of Adult Care,
Transportation Conveyor,Local Commuter Transport,Hovertravel Ltd,Supplies and Services related expenditure,03/04/2023,32.5,Director of Children's Services and Education,
Hotels And Motels,Travelodge,Travelodge Gb0000,Agency and Third Party Payments related expenditure,03/04/2023,154,"Director of Housing, Neighbourhood and Building Services",
Hotels And Motels,Travelodge,Travelodge Gb0000,Agency and Third Party Payments related expenditure,03/04/2023,2019.77,"Director of Housing, Neighbourhood and Building Services",
Business To Business Eqpt/Furn,Stationery/Office Supplies,Www.Banneruk.Com,Supplies and Services related expenditure,03/04/2023,24.5,Director of Children's Services and Education,
Eating And Drinking Places,Fast Food Restaurants,Costa Coffee 43011381,Supplies and Services related expenditure,03/04/2023,7.42,Director of Children's Services and Education,
Transportation Conveyor,Bus Lines/Charter/Tour,First Bus - Web,Transport related expenditure,03/04/2023,19,Director of Children's Services and Education,
Type of Retail Store,Grocery Stores/Supermarkets,Wm Morrisons Store,Supplies and Services related expenditure,03/04/2023,25,Director of Children's Services and Education,
Business To Business Other Sup,Non-Durable Goods - Default,Cjk Packaging Ltd,Supplies and Services related expenditure,03/04/2023,20.77,Director of Adult Care,
Business To Business Other Sup,Non-Durable Goods - Default,Cjk Packaging Ltd,Supplies and Services related expenditure,03/04/2023,5.25,Director of Adult Care,
Business To Business Eqpt/Furn,Computer Software Stores,Sp Gummee Ltd,Supplies and Services related expenditure,03/04/2023,54.97,Director of Adult Care,
Type of Retail Store,Grocery Stores/Supermarkets,Tesco Stores 4579,Supplies and Services related expenditure,03/04/2023,25.18,Director of Adult Care,
Miscellaneous,Charitable/Soc Service Orgs,Zettle_*the Society Of St,Supplies and Services related expenditure,03/04/2023,208.33,"Director of Culture, Leisure & Regulatory Services",
Other Supplies,Misc Speciality Retail,Amznmktplace,Supplies and Services related expenditure,03/04/2023,12.42,"Director of Housing, Neighbourhood and Building Services",
Government Service,Govt Serv - Default,Portsmouth City Co,Transport related expenditure,03/04/2023,63.33,Director of Children's Services and Education,
Transportation Conveyor,Passenger Railways,Trainline.Com,Transport related expenditure,03/04/2023,4.27,Director of Children's Services and Education,
Type of Retail Store,Grocery Stores/Supermarkets,Tesco Gift Card,Supplies and Services related expenditure,03/04/2023,25,Director of Children's Services and Education,
Type of Retail Store,Grocery Stores/Supermarkets,Asda Stores Ltd,Supplies and Services related expenditure,03/04/2023,250,Director of Children's Services and Education,
Government Service,Schools - Default,Osborne Books Limited,Supplies and Services related expenditure,03/04/2023,18.95,Director of Finance & Resources,
Facilities/Repair Supplies,Lawn/Garden Supply/Nursery,Www.Tudorenvironmental,Supplies and Services related expenditure,03/04/2023,1147.2,"Director of Culture, Leisure & Regulatory Services",
Transportation Conveyor,Passenger Railways,Trainline.Com,Supplies and Services related expenditure,03/04/2023,76.73,Director of Children's Services and Education,
Transportation Conveyor,Passenger Railways,Trainline,Transport related expenditure,03/04/2023,41.95,Director of Children's Services and Education,
Type of Retail Store,Grocery Stores/Supermarkets,Lidl Gb Portsmouth,Supplies and Services related expenditure,03/04/2023,6.6,Director of Adult Care,
Amusement/Entertainment,Amusement/Rec Serv - Def,Blackgang Chine,Agency and Third Party Payments related expenditure,03/04/2023,11.25,Director of Children's Services and Education,
Amusement/Entertainment,Tourist Attractions And Xhbt,Osborne House,Agency and Third Party Payments related expenditure,03/04/2023,13.94,Director of Children's Services and Education,
Amusement/Entertainment,Amusement/Rec Serv - Def,Blackgang Chine,Agency and Third Party Payments related expenditure,03/04/2023,58.95,Director of Children's Services and Education,
Facilities/Repair Supplies,Lumber/Build. Supply Stores,Travis Perkins Trading,Supplies and Services related expenditure,03/04/2023,34.14,"Director of Culture, Leisure & Regulatory Services",
Other Supplies,Misc Speciality Retail,Amznmktplace,Supplies and Services related expenditure,03/04/2023,7.49,Director of Adult Care,
Other Supplies,Misc Speciality Retail,Amznmktplace,Supplies and Services related expenditure,03/04/2023,6.49,Director of Adult Care,
Other Supplies,Misc Speciality Retail,Amznmktplace,Supplies and Services related expenditure,03/04/2023,8.32,Director of Adult Care,
Other Supplies,Misc Speciality Retail,Amznmktplace,Supplies and Services related expenditure,03/04/2023,8.32,Director of Adult Care,
Transportation Conveyor,Passenger Railways,Trainline.Com,Transport related expenditure,03/04/2023,-3.8,Director of Children's Services and Education,
Transportation Conveyor,Local Commuter Transport,Hovertravel Ltd- Ecomm,Transport related expenditure,03/04/2023,28,Director of Children's Services and Education,
Transportation Conveyor,Passenger Railways,Trainline,Transport related expenditure,03/04/2023,34.42,Director of Children's Services and Education,
Transportation Conveyor,Passenger Railways,Trainline.Com,Transport related expenditure,03/04/2023,52.75,Director of Children's Services and Education,
Transportation Conveyor,Passenger Railways,Trainline,Transport related expenditure,03/04/2023,52.75,Director of Children's Services and Education,
Transportation Conveyor,Passenger Railways,Trainline,Transport related expenditure,03/04/2023,173.54,Director of Children's Services and Education,
Transportation Conveyor,Bus Lines/Charter/Tour,First Bus,Transport related expenditure,03/04/2023,136,Director of Children's Services and Education,
Transportation Conveyor,Bus Lines/Charter/Tour,First Bus,Transport related expenditure,03/04/2023,76,Director of Children's Services and Education,
Transportation Conveyor,Taxicabs/Limousines,Zettle_*apple Taxi,Transport related expenditure,03/04/2023,208.33,Director of Children's Services and Education,
Government Service,Govt Serv - Default,Gen Register Office,Supplies and Services related expenditure,03/04/2023,14,Director of Regeneration,
Transportation Conveyor,Bus Lines/Charter/Tour,First Bus - Web,Transport related expenditure,03/04/2023,27,Director of Regeneration,
Transportation Conveyor,Passenger Railways,Trainline,Transport related expenditure,03/04/2023,43.17,Director of Regeneration,
Other Supplies,Misc Speciality Retail,Amznmktplace,Supplies and Services related expenditure,03/04/2023,68.85,Director of Children's Services and Education,
Freight/Courier/Warehouse Svcs,Public Warehousing,Big Yellow - Portsmout,Agency and Third Party Payments related expenditure,03/04/2023,82.67,"Director of Housing, Neighbourhood and Building Services",
Hotels And Motels,Travelodge,Travelodge Gb0000,Agency and Third Party Payments related expenditure,03/04/2023,544.65,"Director of Housing, Neighbourhood and Building Services",
Transportation Conveyor,Travel Agencies,Bkg*booking.Com Hotel,Agency and Third Party Payments related expenditure,03/04/2023,603.27,"Director of Housing, Neighbourhood and Building Services",
Transportation Conveyor,Travel Agencies,Bkg*booking.Com Hotel,Agency and Third Party Payments related expenditure,03/04/2023,1120.58,"Director of Housing, Neighbourhood and Building Services",
Facilities/Repair Supplies,Bicycle Shops/Sales/Service,Halfords 0852,Supplies and Services related expenditure,03/04/2023,3.99,"Director of Culture, Leisure & Regulatory Services",
Other Supplies,Misc Gen Merchandise - Def,B&m Retail Ltd,Supplies and Services related expenditure,03/04/2023,10,"Director of Culture, Leisure & Regulatory Services",
Other Supplies,Misc Speciality Retail,Amznbusiness,Supplies and Services related expenditure,03/04/2023,22.67,Director of Public Health,
Other Supplies,Misc Speciality Retail,Amznbusiness,Supplies and Services related expenditure,03/04/2023,33.3,Director of Public Health,
Transportation Conveyor,Steamship/Cruise Lines,Redfunnel.Co.Uk,Transport related expenditure,03/04/2023,28.9,Solent LEP,
Transportation Conveyor,Steamship/Cruise Lines,Redfunnel.Co.Uk,Transport related expenditure,03/04/2023,28.9,Solent LEP,
Transportation Conveyor,Steamship/Cruise Lines,Redfunnel.Co.Uk,Transport related expenditure,03/04/2023,28.9,Solent LEP,
Other Supplies,Misc Gen Merchandise - Def,Prezzee/Gbb996f0f7,Supplies and Services related expenditure,03/04/2023,50,Director of Children's Services and Education,
Type of Retail Store,Grocery Stores/Supermarkets,Tesco Gift Card,Supplies and Services related expenditure,03/04/2023,70,Director of Children's Services and Education,
Miscellaneous,Member Organizations - Def,Www.Ofcom.Org.Uk,Supplies and Services related expenditure,03/04/2023,150,Director of Regeneration,
Other Supplies,Misc Speciality Retail,W&p / Medirite,Supplies and Services related expenditure,03/04/2023,194.92,Director of Adult Care,
Amusement/Entertainment,Tourist Attractions And Xhbt,Osborne House,Agency and Third Party Payments related expenditure,03/04/2023,14.33,Director of Children's Services and Education,
Transportation Conveyor,Local Commuter Transport,Wightlink Ferries,Agency and Third Party Payments related expenditure,03/04/2023,17.46,Director of Children's Services and Education,
Type of Retail Store,Grocery Stores/Supermarkets,Asda Stores,Supplies and Services related expenditure,03/04/2023,113.33,"Director of Housing, Neighbourhood and Building Services",
Type of Retail Store,Grocery Stores/Supermarkets,Lidl Gb Portsmouth,Supplies and Services related expenditure,03/04/2023,1.38,Director of Children's Services and Education,
Type of Retail Store,Grocery Stores/Supermarkets,Lidl Gb Portsmouth,Supplies and Services related expenditure,03/04/2023,3.57,Director of Children's Services and Education,
Facilities/Repair Supplies,Home Supply Warehouse Stores,B & Q 1260,Premises related expenditure,03/04/2023,9.03,Director of Adult Care,
Other Supplies,Misc Speciality Retail,Amznmktplace,Supplies and Services related expenditure,03/04/2023,11.47,"Director of Housing, Neighbourhood and Building Services",
Facilities/Repair Services,Spec Contractors - Default,Southern Water Service,Supplies and Services related expenditure,03/04/2023,249.15,Director of Children's Services and Education,
Transportation Conveyor,"Parking Lots, Meters, Garages",Ringgo Parking,Supplies and Services related expenditure,03/04/2023,1.42,Director of Regeneration,
Type of Retail Store,Grocery Stores/Supermarkets,Tesco Stores 6577,Supplies and Services related expenditure,03/04/2023,15.25,Director of Adult Care,
Type of Retail Store,Grocery Stores/Supermarkets,Asda Stores,Supplies and Services related expenditure,03/04/2023,13.7,"Director of Housing, Neighbourhood and Building Services",
Other Supplies,Misc Speciality Retail,Amznmktplace,Supplies and Services related expenditure,03/04/2023,7.46,Director of Adult Care,
Other Supplies,Misc Speciality Retail,Amznmktplace,Premises related expenditure,03/04/2023,12.5,Director of Adult Care,
Other Supplies,Misc Speciality Retail,Amznmktplace,Supplies and Services related expenditure,03/04/2023,22.49,Director of Adult Care,
Other Supplies,Misc Speciality Retail,Amznmktplace,Supplies and Services related expenditure,03/04/2023,88.32,Director of Adult Care,
Other Supplies,Wholesale Clubs,The Fruit Basket,Supplies and Services related expenditure,03/04/2023,87.81,Director of Adult Care,
Type of Retail Store,Freezer/Meat Lockers,Dennis Edwards Food Serv,Supplies and Services related expenditure,03/04/2023,229.35,Director of Adult Care,
Type of Retail Store,Freezer/Meat Lockers,Dennis Edwards Food Serv,Supplies and Services related expenditure,03/04/2023,6,Director of Adult Care,
Type of Retail Store,Grocery Stores/Supermarkets,Asda Groceries Online,Supplies and Services related expenditure,03/04/2023,-0.2,Director of Children's Services and Education,
Type of Retail Store,Grocery Stores/Supermarkets,Asda Groceries Online,Supplies and Services related expenditure,03/04/2023,-1.6,Director of Children's Services and Education,
Type of Retail Store,Grocery Stores/Supermarkets,Asda Groceries Online,Supplies and Services related expenditure,03/04/2023,188.28,Director of Children's Services and Education,
Type of Retail Store,Grocery Stores/Supermarkets,Asda Stores Ltd,Supplies and Services related expenditure,03/04/2023,350,Director of Children's Services and Education,
Type of Retail Store,Grocery Stores/Supermarkets,Asda Stores,Supplies and Services related expenditure,03/04/2023,11.3,"Director of Housing, Neighbourhood and Building Services",
Type of Retail Store,Grocery Stores/Supermarkets,Asda Stores,Supplies and Services related expenditure,03/04/2023,12.6,"Director of Housing, Neighbourhood and Building Services",
Eating And Drinking Places,Fast Food Restaurants,Starbucks Coffee,Agency and Third Party Payments related expenditure,03/04/2023,13.5,Director of Children's Services and Education,
Other Supplies,Misc Speciality Retail,Amznmktplace,Supplies and Services related expenditure,03/04/2023,8.32,Director of Adult Care,
Government Service,Govt Serv - Default,Portsmouth City Co,Transport related expenditure,03/04/2023,76,"Director of Housing, Neighbourhood and Building Services",
Government Service,Govt Serv - Default,Portsmouth City Co,Transport related expenditure,03/04/2023,76,"Director of Housing, Neighbourhood and Building Services",
Government Service,Govt Serv - Default,Portsmouth City Co,Transport related expenditure,03/04/2023,85,"Director of Housing, Neighbourhood and Building Services",
Hotels And Motels,Premier Travel Inns,Premier Inn,Agency and Third Party Payments related expenditure,03/04/2023,-179.17,"Director of Housing, Neighbourhood and Building Services",
Hotels And Motels,Premier Travel Inns,Premier Inn,Agency and Third Party Payments related expenditure,03/04/2023,-277.92,"Director of Housing, Neighbourhood and Building Services",
Hotels And Motels,Premier Travel Inns,Premier Inn,Agency and Third Party Payments related expenditure,03/04/2023,740.76,"Director of Housing, Neighbourhood and Building Services",
Hotels And Motels,Premier Travel Inns,Premier Inn,Agency and Third Party Payments related expenditure,03/04/2023,975.34,"Director of Housing, Neighbourhood and Building Services",
Hotels And Motels,Premier Travel Inns,Premier Inn,Agency and Third Party Payments related expenditure,03/04/2023,1497.38,"Director of Housing, Neighbourhood and Building Services",
Hotels And Motels,Premier Travel Inns,Premier Inn,Agency and Third Party Payments related expenditure,03/04/2023,197.48,"Director of Housing, Neighbourhood and Building Services",
Hotels And Motels,Premier Travel Inns,Premier Inn,Agency and Third Party Payments related expenditure,03/04/2023,488.28,"Director of Housing, Neighbourhood and Building Services",
Personal Service Provider,Mgmt/Consult/Public Rel Ser,Tvlicensing.Co.Uk,Supplies and Services related expenditure,03/04/2023,132.5,"Director of Housing, Neighbourhood and Building Services",
Hotels And Motels,Premier Travel Inns,Premier Inn,Agency and Third Party Payments related expenditure,03/04/2023,-224.97,"Director of Housing, Neighbourhood and Building Services",
Eating And Drinking Places,Eating Places/Restaurants,The Travellers Joy,Agency and Third Party Payments related expenditure,03/04/2023,34.29,Director of Children's Services and Education,
Business To Business Facility/,Electrical Parts/Equipment,Premier Farnell,Supplies and Services related expenditure,03/04/2023,53.55,Director of Regeneration,
Hotels And Motels,Premier Travel Inns,Premier Inn,Agency and Third Party Payments related expenditure,03/04/2023,-138.75,"Director of Housing, Neighbourhood and Building Services",
Hotels And Motels,Premier Travel Inns,Premier Inn,Agency and Third Party Payments related expenditure,03/04/2023,214.98,"Director of Housing, Neighbourhood and Building Services",
Business Services,Business Services - Default,Www.Cl-Events.Com,Supplies and Services related expenditure,04/04/2023,150,Director of Portsmouth International Port,
Other Supplies,Misc Gen Merchandise - Def,B&m Retail Ltd,Supplies and Services related expenditure,04/04/2023,14.9,Director of Adult Care,
Type of Retail Store,Pet Stores/Food & Supply,Pets At Home Ltd,Supplies and Services related expenditure,04/04/2023,16.58,Director of Adult Care,
Type of Retail Store,Pet Stores/Food & Supply,Maidenhead Aquatics @,Supplies and Services related expenditure,04/04/2023,16.64,Director of Adult Care,
Freight/Courier/Warehouse Svcs,Public Warehousing,Big Yellow - Portsmout,Agency and Third Party Payments related expenditure,04/04/2023,-34.22,"Director of Housing, Neighbourhood and Building Services",
Freight/Courier/Warehouse Svcs,Public Warehousing,Big Yellow - Portsmout,Premises related expenditure,04/04/2023,-44.4,"Director of Housing, Neighbourhood and Building Services",
Freight/Courier/Warehouse Svcs,Public Warehousing,Big Yellow - Portsmout,Premises related expenditure,04/04/2023,-48.67,"Director of Housing, Neighbourhood and Building Services",
Transportation Conveyor,Travel Agencies,Bkg*booking.Com Hotel,Agency and Third Party Payments related expenditure,04/04/2023,933.33,"Director of Housing, Neighbourhood and Building Services",
Transportation Conveyor,Travel Agencies,Bkg*booking.Com Hotel,Agency and Third Party Payments related expenditure,04/04/2023,933.33,"Director of Housing, Neighbourhood and Building Services",
Transportation Conveyor,Travel Agencies,Bkg*booking.Com Hotel,Agency and Third Party Payments related expenditure,04/04/2023,945.83,"Director of Housing, Neighbourhood and Building Services",
Transportation Conveyor,Travel Agencies,Bkg*booking.Com Hotel,Agency and Third Party Payments related expenditure,04/04/2023,973.33,"Director of Housing, Neighbourhood and Building Services",
Transportation Conveyor,Travel Agencies,Bkg*booking.Com Hotel,Agency and Third Party Payments related expenditure,04/04/2023,1085.25,"Director of Housing, Neighbourhood and Building Services",
Hotels And Motels,Travelodge,Travelodge Gb0000,Agency and Third Party Payments related expenditure,04/04/2023,115.5,"Director of Housing, Neighbourhood and Building Services",
Hotels And Motels,Travelodge,Travelodge Gb0000,Agency and Third Party Payments related expenditure,04/04/2023,1350.41,"Director of Housing, Neighbourhood and Building Services",
Hotels And Motels,Travelodge,Travelodge Gb0000,Agency and Third Party Payments related expenditure,04/04/2023,115.5,"Director of Housing, Neighbourhood and Building Services",
Hotels And Motels,Travelodge,Travelodge Gb0000,Agency and Third Party Payments related expenditure,04/04/2023,1350.41,"Director of Housing, Neighbourhood and Building Services",
Hotels And Motels,Travelodge,Travelodge Gb0000,Agency and Third Party Payments related expenditure,04/04/2023,99,"Director of Housing, Neighbourhood and Building Services",
Hotels And Motels,Travelodge,Travelodge Gb0000,Agency and Third Party Payments related expenditure,04/04/2023,1416.93,"Director of Housing, Neighbourhood and Building Services",
Transportation Conveyor,Travel Agencies,Bkg*booking.Com Hotel,Agency and Third Party Payments related expenditure,04/04/2023,2069.17,"Director of Housing, Neighbourhood and Building Services",
Hotels And Motels,Travelodge,Travelodge Gb0000,Agency and Third Party Payments related expenditure,04/04/2023,308,"Director of Housing, Neighbourhood and Building Services",
Hotels And Motels,Travelodge,Travelodge Gb0000,Agency and Third Party Payments related expenditure,04/04/2023,2128.56,"Director of Housing, Neighbourhood and Building Services",
Government Service,Govt Serv - Default,Pcc Moto Payment,Supplies and Services related expenditure,04/04/2023,371.7,Director of Adult Care,
Other Supplies,Misc Speciality Retail,W&p / Medirite,Supplies and Services related expenditure,04/04/2023,80.34,"Director of Housing, Neighbourhood and Building Services",
Other Supplies,Misc Speciality Retail,W&p / Medirite,Premises related expenditure,04/04/2023,120.61,"Director of Housing, Neighbourhood and Building Services",
Other Supplies,Misc Speciality Retail,W&p / Medirite,Supplies and Services related expenditure,04/04/2023,164.85,"Director of Housing, Neighbourhood and Building Services",
Other Supplies,Misc Speciality Retail,W&p / Medirite,Premises related expenditure,04/04/2023,189.48,"Director of Housing, Neighbourhood and Building Services",
Other Supplies,Misc Speciality Retail,W&p / Medirite,Premises related expenditure,04/04/2023,197.4,"Director of Housing, Neighbourhood and Building Services",
Other Supplies,Misc Gen Merchandise - Def,Ivo Group Ltd Inv-3183,Supplies and Services related expenditure,04/04/2023,277.6,"Director of Housing, Neighbourhood and Building Services",
Other Supplies,Misc Speciality Retail,W&p / Medirite,Supplies and Services related expenditure,04/04/2023,283.96,"Director of Housing, Neighbourhood and Building Services",
Other Supplies,Misc Speciality Retail,W&p / Medirite,Premises related expenditure,04/04/2023,289.26,"Director of Housing, Neighbourhood and Building Services",
Other Supplies,Misc Speciality Retail,W&p / Medirite,Premises related expenditure,04/04/2023,313.44,"Director of Housing, Neighbourhood and Building Services",
Other Supplies,Misc Speciality Retail,W&p / Medirite,Premises related expenditure,04/04/2023,377.24,"Director of Housing, Neighbourhood and Building Services",
Other Supplies,Misc Speciality Retail,W&p / Medirite,Supplies and Services related expenditure,04/04/2023,775.43,"Director of Housing, Neighbourhood and Building Services",
Other Supplies,Misc Speciality Retail,W&p / Medirite,Supplies and Services related expenditure,04/04/2023,785.1,"Director of Housing, Neighbourhood and Building Services",
Other Supplies,Misc Speciality Retail,W&p / Medirite,Premises related expenditure,04/04/2023,1152,"Director of Housing, Neighbourhood and Building Services",
Other Supplies,Misc Speciality Retail,W&p / Medirite,Premises related expenditure,04/04/2023,1152,"Director of Housing, Neighbourhood and Building Services",
Government Service,Govt Serv - Default,Pcc Internet Payment,Supplies and Services related expenditure,04/04/2023,70,Director of Children's Services and Education,
Facilities/Repair Supplies,Lumber/Build. Supply Stores,Screwfix Portsmouth Hilse,Premises related expenditure,04/04/2023,58.59,Director of Children's Services and Education,
Business To Business Facility/,Industrial Supplies - Def,Arco Limited,Supplies and Services related expenditure,04/04/2023,96.33,"Director of Housing, Neighbourhood and Building Services",
Business To Business Eqpt/Furn,Stationery/Office Supplies,Www.Banneruk.Com,Supplies and Services related expenditure,04/04/2023,17.35,"Director of Housing, Neighbourhood and Building Services",
Government Service,Govt Serv - Default,Www.Moneyclaim.Gov,Supplies and Services related expenditure,04/04/2023,35,Director of Finance & Resources,
Business To Business Eqpt/Furn,Stationery/Office Supplies,Www.Banneruk.Com,Supplies and Services related expenditure,04/04/2023,12.55,Director of Regeneration,
Business To Business Eqpt/Furn,Stationery/Office Supplies,Www.Banneruk.Com,Supplies and Services related expenditure,04/04/2023,27.94,Director of Children's Services and Education,
Business To Business Facility/,Motor Vehicle Supply/New Parts,Motor Parts Direct Portsm,Transport related expenditure,04/04/2023,9.58,"Director of Culture, Leisure & Regulatory Services",
Business Expenses/Services,Postage Stamps,Post Office Counter,Supplies and Services related expenditure,04/04/2023,12.87,"Director of Culture, Leisure & Regulatory Services",
Government Service,Govt Serv - Default,Pcc Moto Payment,Supplies and Services related expenditure,04/04/2023,-264,Director of Children's Services and Education,
Eating And Drinking Places,Eating Places/Restaurants,Ceanos,Supplies and Services related expenditure,04/04/2023,5,Director of Portsmouth International Port,
Transportation Conveyor,Passenger Railways,Trainline,Supplies and Services related expenditure,04/04/2023,47.45,Director of Portsmouth International Port,
Transportation Conveyor,Passenger Railways,Trainline.Com,Supplies and Services related expenditure,04/04/2023,58.35,Director of Portsmouth International Port,
Government Service,Vocational/Trade Schools,Logistics Employment Tra,Employees related expenditure,04/04/2023,1000,Director of Portsmouth International Port,
Other Supplies,Misc Speciality Retail,Amznmktplace,Supplies and Services related expenditure,04/04/2023,8.32,Director of Children's Services and Education,
Other Supplies,Misc Speciality Retail,Amznmktplace,Premises related expenditure,04/04/2023,44.79,Director of Children's Services and Education,
Transportation Conveyor,Taxicabs/Limousines,Cabcard Services Uk,Transport related expenditure,04/04/2023,9,Director of Children's Services and Education,
Transportation Conveyor,Taxicabs/Limousines,Cabcard Services Uk,Transport related expenditure,04/04/2023,9.2,Director of Children's Services and Education,
Amusement/Entertainment,Theatrical Producers,Government Events,Supplies and Services related expenditure,04/04/2023,319.2,"Director of Housing, Neighbourhood and Building Services",
Freight/Courier/Warehouse Svcs,Public Warehousing,Access Portsmouth,Supplies and Services related expenditure,04/04/2023,165,Director of Adult Care,
Type of Retail Store,Grocery Stores/Supermarkets,Aldi Stores Ltd,Supplies and Services related expenditure,04/04/2023,2.44,Director of Adult Care,
Type of Retail Store,Grocery Stores/Supermarkets,Aldi Stores Ltd,Supplies and Services related expenditure,04/04/2023,0.6,Director of Adult Care,
Other Supplies,Department Stores,Www.Argos.Co.Uk,Supplies and Services related expenditure,04/04/2023,412.95,Director of Adult Care,
Utility,Utilities/Elec/Gas/H2O/Sani,Ovo Energy Ltd,Supplies and Services related expenditure,04/04/2023,533.17,Director of Adult Care,
Clothing Services,Shoe Stores,Skechers Usa Ltd,Supplies and Services related expenditure,04/04/2023,58.99,Director of Adult Care,
Facilities/Repair Supplies,Lawn/Garden Supply/Nursery,Dobbies,Supplies and Services related expenditure,04/04/2023,24.99,"Director of Housing, Neighbourhood and Building Services",
Automobile Services & Supplies,Service Stations,Milton Road Servic,Transport related expenditure,04/04/2023,5.85,Director of Adult Care,
Facilities/Repair Supplies,Bicycle Shops/Sales/Service,Halfords 0852,Transport related expenditure,04/04/2023,121.9,Director of Adult Care,
Type of Retail Store,Misc Food Stores - Default,Station Store 02,Agency and Third Party Payments related expenditure,04/04/2023,3.72,Director of Children's Services and Education,
Transportation Conveyor,Passenger Railways,Swrailwayselfserve,Transport related expenditure,04/04/2023,14.7,Director of Children's Services and Education,
Eating And Drinking Places,Fast Food Restaurants,Subway 59211 Chichester,Agency and Third Party Payments related expenditure,04/04/2023,14.97,Director of Children's Services and Education,
Facilities/Repair Supplies,Home Supply Warehouse Stores,B & Q 1238,Supplies and Services related expenditure,04/04/2023,60,"Director of Housing, Neighbourhood and Building Services",
Business To Business Services,Misc Publishing & Printing,Www.Solopress.Com,Supplies and Services related expenditure,04/04/2023,79.19,"Director of Housing, Neighbourhood and Building Services",
Transportation Conveyor,Local Commuter Transport,Hovertravel Ltd- Ecomm,Transport related expenditure,04/04/2023,22.4,Director of Children's Services and Education,
Transportation Conveyor,Passenger Railways,Swrailway Tck Off,Transport related expenditure,04/04/2023,5.33,Director of Children's Services and Education,
Facilities Maintenance,Specialty Cleaning/Polishing,Www.Cleaningspot.Co.Uk,Supplies and Services related expenditure,04/04/2023,324,"Director of Housing, Neighbourhood and Building Services",
Amusement/Entertainment,Theatrical Producers,Colossus Shop,Agency and Third Party Payments related expenditure,04/04/2023,6.04,Director of Children's Services and Education,
Amusement/Entertainment,Amusement Parks/Circus,Thorpe Park Resort,Transport related expenditure,04/04/2023,7.5,Director of Children's Services and Education,
Eating And Drinking Places,Fast Food Restaurants,McDonalds,Agency and Third Party Payments related expenditure,04/04/2023,10.89,Director of Children's Services and Education,
Eating And Drinking Places,Fast Food Restaurants,Starbucks,Agency and Third Party Payments related expenditure,04/04/2023,12.46,Director of Children's Services and Education,
Eating And Drinking Places,Eating Places/Restaurants,Burger King,Agency and Third Party Payments related expenditure,04/04/2023,29.38,Director of Children's Services and Education,
Type of Retail Store,Grocery Stores/Supermarkets,Asda Stores Ltd,Supplies and Services related expenditure,04/04/2023,83.33,Director of Children's Services and Education,
Type of Retail Store,Grocery Stores/Supermarkets,Asda Stores Ltd,Supplies and Services related expenditure,04/04/2023,83.33,Director of Children's Services and Education,
Facilities/Repair Services,Gen Contractors Residentl/Coml,Hsd Online,Supplies and Services related expenditure,04/04/2023,55.9,"Director of Culture, Leisure & Regulatory Services",
Other Supplies,Misc Speciality Retail,Amznmktplace,Supplies and Services related expenditure,04/04/2023,8.32,Director of Children's Services and Education,
Type of Retail Store,Electronics Sales,Currys Portsmouth,Supplies and Services related expenditure,04/04/2023,46.66,"Director of Housing, Neighbourhood and Building Services",
Other Supplies,Misc Gen Merchandise - Def,B&m 566 - Farlington,Supplies and Services related expenditure,04/04/2023,108.56,"Director of Housing, Neighbourhood and Building Services",
Eating And Drinking Places,Fast Food Restaurants,McDonalds,Agency and Third Party Payments related expenditure,04/04/2023,12.05,Director of Children's Services and Education,
Amusement/Entertainment,Motion Picture Theatres,Vue Entertainment Ltd,Agency and Third Party Payments related expenditure,04/04/2023,13.32,Director of Children's Services and Education,
Other Supplies,Misc Gen Merchandise - Def,B&m Retail Ltd,Premises related expenditure,04/04/2023,8.63,Director of Children's Services and Education,
Other Supplies,Misc Gen Merchandise - Def,B&m Retail Ltd,Supplies and Services related expenditure,04/04/2023,8.52,Director of Children's Services and Education,
Other Supplies,Misc Gen Merchandise - Def,B&m Retail Ltd,Supplies and Services related expenditure,04/04/2023,15.12,Director of Children's Services and Education,
Other Supplies,Misc Gen Merchandise - Def,B&m Retail Ltd,Supplies and Services related expenditure,04/04/2023,16.66,Director of Children's Services and Education,
Government Service,Govt Serv - Default,Land Registry Ecom Ccc,Supplies and Services related expenditure,04/04/2023,3,"Director of Housing, Neighbourhood and Building Services",
Transportation Conveyor,Bus Lines/Charter/Tour,Stgcoach/Ctylink,Transport related expenditure,04/04/2023,2,Director of Children's Services and Education,
Transportation Conveyor,Bus Lines/Charter/Tour,Stgcoach/Ctylink,Transport related expenditure,04/04/2023,2,Director of Children's Services and Education,
Utility,Phone Serv/Equip Utility,Virgin Media Pymts,Supplies and Services related expenditure,04/04/2023,9.15,Director of Children's Services and Education,
Transportation Conveyor,Passenger Railways,Trainline.Com,Transport related expenditure,04/04/2023,22.82,Director of Children's Services and Education,
Type of Retail Store,Grocery Stores/Supermarkets,Tesco Gift Card,Supplies and Services related expenditure,04/04/2023,208.33,Director of Children's Services and Education,
Type of Retail Store,Grocery Stores/Supermarkets,Tesco Gift Card,Supplies and Services related expenditure,04/04/2023,291.67,Director of Children's Services and Education,
Type of Retail Store,Grocery Stores/Supermarkets,One Stop Stores 2904,Supplies and Services related expenditure,04/04/2023,6.67,Director of Children's Services and Education,
Type of Retail Store,Grocery Stores/Supermarkets,Tesco Gift Card,Supplies and Services related expenditure,04/04/2023,100,Director of Children's Services and Education,
Type of Retail Store,Electronics Sales,Currys Online,Supplies and Services related expenditure,04/04/2023,129.99,Director of Children's Services and Education,
Other Supplies,Department Stores,Www.Argos.Co.Uk,Supplies and Services related expenditure,04/04/2023,183.33,Director of Children's Services and Education,
Facilities/Repair Supplies,Lawn/Garden Supply/Nursery,Carters Of Swanwic,Supplies and Services related expenditure,04/04/2023,-250,"Director of Housing, Neighbourhood and Building Services",
Facilities/Repair Supplies,Lawn/Garden Supply/Nursery,Carters Of Swanwic,Supplies and Services related expenditure,04/04/2023,345,"Director of Housing, Neighbourhood and Building Services",
Type of Retail Store,Grocery Stores/Supermarkets,Tesco Stores 4579,Supplies and Services related expenditure,04/04/2023,117.16,"Director of Housing, Neighbourhood and Building Services",
Business To Business Facility/,Electrical Parts/Equipment,Edmundson Electrical,Premises related expenditure,04/04/2023,32.19,Director of Portsmouth International Port,
Government Service,Schools - Default,M L (UK) Limited,Premises related expenditure,04/04/2023,239.32,Director of Portsmouth International Port,
Business To Business Facility/,Hardware Equipment/Supplies,Cromwell Tools,Premises related expenditure,04/04/2023,7.74,Director of Portsmouth International Port,
Business To Business Facility/,Hardware Equipment/Supplies,Cromwell Tools,Supplies and Services related expenditure,04/04/2023,267,Director of Portsmouth International Port,
Business To Business Facility/,Electrical Parts/Equipment,Edmundson Electrical,Premises related expenditure,04/04/2023,408.5,Director of Portsmouth International Port,
Business To Business Facility/,Electrical Parts/Equipment,Edmundson Electrical,Premises related expenditure,04/04/2023,1192.5,Director of Portsmouth International Port,
Other Supplies,Misc Speciality Retail,Amznmktplace,Supplies and Services related expenditure,04/04/2023,13.53,Director of Children's Services and Education,
Other Supplies,Misc Speciality Retail,Amznbusiness,Supplies and Services related expenditure,04/04/2023,17.79,Director of Children's Services and Education,
Business To Business Eqpt/Furn,Book Stores,Waterstones.Com,Supplies and Services related expenditure,04/04/2023,30,Director of Children's Services and Education,
Other Supplies,Misc Speciality Retail,Amznmktplace,Supplies and Services related expenditure,04/04/2023,33.79,Director of Children's Services and Education,
Other Supplies,Misc Speciality Retail,Amznmktplace,Supplies and Services related expenditure,04/04/2023,33.79,Director of Children's Services and Education,
Transportation Conveyor,Passenger Railways,Trainline,Supplies and Services related expenditure,04/04/2023,45.01,Director of Portsmouth International Port,
Transportation Conveyor,Passenger Railways,Trainline,Supplies and Services related expenditure,04/04/2023,46.23,Director of Portsmouth International Port,
Government Service,Govt Serv - Default,Pcc Internet Payment,Agency and Third Party Payments related expenditure,04/04/2023,11,"Director of Culture, Leisure & Regulatory Services",
Government Service,Govt Serv - Default,Portsmouth City Co,Supplies and Services related expenditure,04/04/2023,85,"Director of Culture, Leisure & Regulatory Services",
Transportation Conveyor,Travel Agencies,Bkg*hotel At Booking.C,Supplies and Services related expenditure,04/04/2023,100,Director of Children's Services and Education,
Other Supplies,Discount Stores,Argos Ltd,Premises related expenditure,04/04/2023,-210,Director of Children's Services and Education,
Other Supplies,Misc Gen Merchandise - Def,Bhn*morrisonsgcuk,Supplies and Services related expenditure,04/04/2023,100,Director of Children's Services and Education,
Digital Goods,Digital Goods - Large Digital Goods Merchant,Mailchimp,Supplies and Services related expenditure,04/04/2023,94.17,"Director of Culture, Leisure & Regulatory Services",
Type of Retail Store,Grocery Stores/Supermarkets,Lidl Gb Portsmouth,Supplies and Services related expenditure,04/04/2023,48.45,Director of Children's Services and Education,
Type of Retail Store,Grocery Stores/Supermarkets,Lidl Gb Portsmouth,Supplies and Services related expenditure,04/04/2023,5.83,"Director of Housing, Neighbourhood and Building Services",
Type of Retail Store,Grocery Stores/Supermarkets,Lidl Gb Portsmouth,Supplies and Services related expenditure,04/04/2023,62.01,"Director of Housing, Neighbourhood and Building Services",
Type of Retail Store,Grocery Stores/Supermarkets,Lidl Gb Portsmouth,Supplies and Services related expenditure,04/04/2023,6.67,"Director of Housing, Neighbourhood and Building Services",
Other Supplies,Department Stores,High Street Vouchers,Supplies and Services related expenditure,04/04/2023,100,"Director of Housing, Neighbourhood and Building Services",
Other Supplies,Department Stores,High Street Vouchers,Supplies and Services related expenditure,04/04/2023,100,"Director of Housing, Neighbourhood and Building Services",
Equipment And Furniture,Equip/Furn Rent/Lease Serv,Rowlands Plant Service,Supplies and Services related expenditure,04/04/2023,22,"Director of Culture, Leisure & Regulatory Services",
Equipment And Furniture,Equip/Furn Rent/Lease Serv,Rowlands Plant Service,Supplies and Services related expenditure,04/04/2023,155.4,"Director of Culture, Leisure & Regulatory Services",
Equipment And Furniture,Equip/Furn Rent/Lease Serv,Rowlands Plant Service,Supplies and Services related expenditure,04/04/2023,273,"Director of Culture, Leisure & Regulatory Services",
Business Services,Business Services - Default,Vivid Housing Ltd,Supplies and Services related expenditure,04/04/2023,33.54,Director of Children's Services and Education,
Business To Business Facility/,Chemicals/Allied Prods - Def,Byotrol,Premises related expenditure,04/04/2023,244.85,"Director of Housing, Neighbourhood and Building Services",
Hotels And Motels,Lodging/Hotels/Motels/Resorts,Pembroke Park Hotel,Supplies and Services related expenditure,04/04/2023,233.33,"Director of Housing, Neighbourhood and Building Services",
Miscellaneous,Charitable/Soc Service Orgs,Paypal,Supplies and Services related expenditure,04/04/2023,140,"Director of Housing, Neighbourhood and Building Services",
Equipment And Furniture,Household Appliance Stores,Ao Retail Limited,Supplies and Services related expenditure,04/04/2023,185.83,"Director of Housing, Neighbourhood and Building Services",
Type of Retail Store,Electronics Sales,Currys Online,Supplies and Services related expenditure,04/04/2023,474.17,"Director of Housing, Neighbourhood and Building Services",
Other Supplies,Misc Gen Merchandise - Def,B&m Retail Ltd,Supplies and Services related expenditure,04/04/2023,7,Director of Adult Care,
Transportation Conveyor,"Parking Lots, Meters, Garages",Fareham Bc Pof,Transport related expenditure,04/04/2023,2.5,Director of Children's Services and Education,
Eating And Drinking Places,Fast Food Restaurants,McDonalds,Supplies and Services related expenditure,04/04/2023,12.12,Director of Children's Services and Education,
Type of Retail Store,Grocery Stores/Supermarkets,Asda Stores Ltd,Supplies and Services related expenditure,04/04/2023,20,Director of Children's Services and Education,
Transportation Conveyor,Passenger Railways,Trainline.Com,Transport related expenditure,04/04/2023,36.55,Director of Children's Services and Education,
Type of Retail Store,Misc Food Stores - Default,Premier Fresh & Local,Premises related expenditure,04/04/2023,40,Director of Children's Services and Education,
Miscellaneous,Charitable/Soc Service Orgs,Mhfa England Cic Ltd,Employees related expenditure,04/04/2023,168,"Director of Housing, Neighbourhood and Building Services",
Clothing Services,Womens Ready To Wear Stores,Paypal,Supplies and Services related expenditure,04/04/2023,18.99,Director of Regeneration,
Type of Retail Store,Grocery Stores/Supermarkets,Sainsburys S/mkts,Supplies and Services related expenditure,04/04/2023,3.6,"Director of Housing, Neighbourhood and Building Services",
Facilities/Repair Supplies,Lumber/Build. Supply Stores,Screwfix Dir Ltd,Supplies and Services related expenditure,04/04/2023,41.53,"Director of Housing, Neighbourhood and Building Services",
Personal Service Provider,Detective/Protective Agen,Rhino Security,Premises related expenditure,04/04/2023,2564,"Director of Culture, Leisure & Regulatory Services",
Other Supplies,Misc Speciality Retail,Amznmktplace,Supplies and Services related expenditure,04/04/2023,6.49,"Director of Housing, Neighbourhood and Building Services",
Other Supplies,Misc Speciality Retail,Amznmktplace,Supplies and Services related expenditure,04/04/2023,18.48,"Director of Housing, Neighbourhood and Building Services",
Type of Retail Store,Artist/Craft Shops,Baker Ross,Supplies and Services related expenditure,04/04/2023,111.46,"Director of Housing, Neighbourhood and Building Services",
Business To Business Eqpt/Furn,Stationery/Office Supplies,Www.Banneruk.Com,Supplies and Services related expenditure,04/04/2023,4.82,Director of Public Health,
Business To Business Eqpt/Furn,Stationery/Office Supplies,Www.Banneruk.Com,Supplies and Services related expenditure,04/04/2023,8.28,Director of Public Health,
Transportation Conveyor,Local Commuter Transport,Www.Wightlink.Co.Uk,Transport related expenditure,04/04/2023,103.25,Solent LEP,
Facilities/Repair Supplies,Lumber/Build. Supply Stores,Hg Buildbase Portsmout,Supplies and Services related expenditure,04/04/2023,1296.67,"Director of Culture, Leisure & Regulatory Services",
Business Services,Business Services - Default,Cs*morrisons Gift Card,Supplies and Services related expenditure,04/04/2023,30,Director of Children's Services and Education,
Government Service,Govt Serv - Default,Hampshire County Counc,Supplies and Services related expenditure,04/04/2023,28.76,Director of Children's Services and Education,
Transportation Conveyor,Local Commuter Transport,Wightlink Ferries,Supplies and Services related expenditure,04/04/2023,198,Director of Children's Services and Education,
Transportation Conveyor,Local Commuter Transport,Wightlink Ferries,Supplies and Services related expenditure,04/04/2023,198,Director of Children's Services and Education,
Facilities/Repair Supplies,Lawn/Garden Supply/Nursery,Carters Of Swanwic,Supplies and Services related expenditure,04/04/2023,127.35,"Director of Housing, Neighbourhood and Building Services",
Business To Business Facility/,Industrial Supplies - Def,Www.Agri-Gem.Co.Uk,Supplies and Services related expenditure,04/04/2023,302.83,"Director of Housing, Neighbourhood and Building Services",
Business To Business Eqpt/Furn,Stationery/Office Supplies,Www.Banneruk.Com,Supplies and Services related expenditure,04/04/2023,367.88,Director of Adult Care,
Type of Retail Store,Grocery Stores/Supermarkets,Lidl Gb Portsmouth,Supplies and Services related expenditure,04/04/2023,1.67,Director of Children's Services and Education,
Eating And Drinking Places,Eating Places/Restaurants,Zettle_*midnight Masqu,Supplies and Services related expenditure,04/04/2023,5.42,"Director of Culture, Leisure & Regulatory Services",
Type of Retail Store,Grocery Stores/Supermarkets,Tesco Gift Card,Supplies and Services related expenditure,04/04/2023,25,Director of Children's Services and Education,
Type of Retail Store,Grocery Stores/Supermarkets,Asda Stores Ltd,Supplies and Services related expenditure,04/04/2023,350,Director of Children's Services and Education,
Type of Retail Store,Misc Food Stores - Default,Starbucks Wisley South,Supplies and Services related expenditure,04/04/2023,3.5,Director of Children's Services and Education,
Medical,Lab/Med/Hospital Equipment,Arjo UK Limited,Supplies and Services related expenditure,04/04/2023,279.75,Director of Adult Care,
Freight/Courier/Warehouse Svcs,Motor Freight Carriers,Safestore Ltd Online R,Premises related expenditure,04/04/2023,97.28,"Director of Housing, Neighbourhood and Building Services",
Freight/Courier/Warehouse Svcs,Motor Freight Carriers,Safestore Ltd Online R,Premises related expenditure,04/04/2023,104.3,"Director of Housing, Neighbourhood and Building Services",
Freight/Courier/Warehouse Svcs,Motor Freight Carriers,Safestore Ltd Online R,Premises related expenditure,04/04/2023,195.35,"Director of Housing, Neighbourhood and Building Services",
Freight/Courier/Warehouse Svcs,Motor Freight Carriers,Safestore Ltd Online R,Premises related expenditure,04/04/2023,210.36,"Director of Housing, Neighbourhood and Building Services",
Hotels And Motels,Travelodge,Travelodge Gb0000,Agency and Third Party Payments related expenditure,04/04/2023,-262.31,"Director of Housing, Neighbourhood and Building Services",
Freight/Courier/Warehouse Svcs,Public Warehousing,Big Yellow - Portsmout,Premises related expenditure,04/04/2023,500.33,"Director of Housing, Neighbourhood and Building Services",
Hotels And Motels,Travelodge,Travelodge Gb0000,Agency and Third Party Payments related expenditure,04/04/2023,936.82,"Director of Housing, Neighbourhood and Building Services",
Type of Retail Store,Grocery Stores/Supermarkets,Tesco Store 3186,Supplies and Services related expenditure,04/04/2023,3.45,Director of Children's Services and Education,
Government Service,Govt Serv - Default,Pcc Internet Payment,Supplies and Services related expenditure,04/04/2023,33,Director of Children's Services and Education,
Government Service,Govt Serv - Default,Pcc Internet Payment,Supplies and Services related expenditure,04/04/2023,33,Director of Children's Services and Education,
Transportation Conveyor,Local Commuter Transport,Hovertravel Ltd- Ecomm,Transport related expenditure,04/04/2023,28,Director of Children's Services and Education,
Government Service,Govt Serv - Default,Portsmouth City Co,Supplies and Services related expenditure,04/04/2023,31.67,Director of Children's Services and Education,
Transportation Conveyor,"Parking Lots, Meters, Garages",Portsmouth City Council 3,Supplies and Services related expenditure,04/04/2023,5.2,Director of Children's Services and Education,
Transportation Conveyor,Local Commuter Transport,Hovertravel Ltd- Ecomm,Supplies and Services related expenditure,04/04/2023,28,Director of Children's Services and Education,
Government Service,Govt Serv - Default,C2e849500745o Ukvi,Supplies and Services related expenditure,04/04/2023,199,Director of Children's Services and Education,
Other Supplies,Misc Gen Merchandise - Def,Ivo Group Ltd,Premises related expenditure,04/04/2023,138.32,"Director of Housing, Neighbourhood and Building Services",
Other Supplies,Misc Speciality Retail,Amznmktplace,Premises related expenditure,04/04/2023,9.16,Director of Adult Care,
Transportation Conveyor,Taxicabs/Limousines,Aqua Cars,Transport related expenditure,04/04/2023,12.2,Director of Adult Care,
Utility,Utilities/Elec/Gas/H2O/Sani,Www.Ovoenergy.Com,Premises related expenditure,04/04/2023,20,Director of Children's Services and Education,
Type of Retail Store,Grocery Stores/Supermarkets,Tesco Stores 4579,Supplies and Services related expenditure,04/04/2023,30,Director of Children's Services and Education,
Business Services,Advertising Services,Twitter Online Ads,Supplies and Services related expenditure,05/04/2023,25,"Director of Housing, Neighbourhood and Building Services",
Business To Business Facility/,Electrical Parts/Equipment,Rs Components,Supplies and Services related expenditure,04/04/2023,138.9,Director of Adult Care,
Hotels And Motels,Premier Travel Inns,Premier Inn,Agency and Third Party Payments related expenditure,04/04/2023,564.11,"Director of Housing, Neighbourhood and Building Services",
Hotels And Motels,Premier Travel Inns,Premier Inn,Agency and Third Party Payments related expenditure,04/04/2023,1297.4,"Director of Housing, Neighbourhood and Building Services",
Hotels And Motels,Premier Travel Inns,Premier Inn,Agency and Third Party Payments related expenditure,04/04/2023,1300.32,"Director of Housing, Neighbourhood and Building Services",
Hotels And Motels,Premier Travel Inns,Premier Inn,Agency and Third Party Payments related expenditure,04/04/2023,1440.72,"Director of Housing, Neighbourhood and Building Services",
Hotels And Motels,Premier Travel Inns,Premier Inn,Agency and Third Party Payments related expenditure,04/04/2023,1486.13,"Director of Housing, Neighbourhood and Building Services",
Hotels And Motels,Premier Travel Inns,Premier Inn,Supplies and Services related expenditure,04/04/2023,216.97,Director of Adult Care,
Hotels And Motels,Premier Travel Inns,Premier Inn,Agency and Third Party Payments related expenditure,04/04/2023,74.16,"Director of Housing, Neighbourhood and Building Services",
Hotels And Motels,Premier Travel Inns,Premier Inn,Agency and Third Party Payments related expenditure,04/04/2023,96.24,"Director of Housing, Neighbourhood and Building Services",
Hotels And Motels,Premier Travel Inns,Premier Inn,Agency and Third Party Payments related expenditure,04/04/2023,354.55,"Director of Housing, Neighbourhood and Building Services",
Hotels And Motels,Premier Travel Inns,Premier Inn,Agency and Third Party Payments related expenditure,04/04/2023,684.1,"Director of Housing, Neighbourhood and Building Services",
Hotels And Motels,Premier Travel Inns,Premier Inn,Agency and Third Party Payments related expenditure,04/04/2023,949.49,"Director of Housing, Neighbourhood and Building Services",
Hotels And Motels,Premier Travel Inns,Premier Inn,Agency and Third Party Payments related expenditure,04/04/2023,1266.15,"Director of Housing, Neighbourhood and Building Services",
Hotels And Motels,Premier Travel Inns,Premier Inn,Agency and Third Party Payments related expenditure,04/04/2023,81.46,"Director of Housing, Neighbourhood and Building Services",
Transportation Conveyor,Passenger Railways,Trainline,Transport related expenditure,04/04/2023,12.15,Director of Regeneration,
Transportation Conveyor,Passenger Railways,Trainline,Transport related expenditure,04/04/2023,22.95,Director of Regeneration,
Type of Retail Store,Grocery Stores/Supermarkets,Iceland Foods,Supplies and Services related expenditure,04/04/2023,127.45,Director of Adult Care,
Hotels And Motels,Premier Travel Inns,Premier Inn,Premises related expenditure,04/04/2023,586.67,Director of Children's Services and Education,
Business To Business Facility/,Electrical Parts/Equipment,Premier Farnell,Supplies and Services related expenditure,04/04/2023,139,"Director of Culture, Leisure & Regulatory Services",
Business To Business Facility/,Electrical Parts/Equipment,Premier Farnell,Supplies and Services related expenditure,04/04/2023,182.5,"Director of Culture, Leisure & Regulatory Services",
Type of Retail Store,Grocery Stores/Supermarkets,Asda Stores,Supplies and Services related expenditure,04/04/2023,0.54,Director of Children's Services and Education,
Type of Retail Store,Grocery Stores/Supermarkets,Asda Stores,Supplies and Services related expenditure,04/04/2023,30.16,Director of Children's Services and Education,
Freight/Courier/Warehouse Svcs,Motor Freight Carriers,Sumup *holley Removals L,Supplies and Services related expenditure,04/04/2023,340,Director of Children's Services and Education,
Clothing/Uniform Services,Laundry/Cleaning/Garment Sv,Sumup *pompey Hand Car W,Transport related expenditure,04/04/2023,355,Director of Regeneration,
Government Service,Govt Serv - Default,C2e849601078g Ukvi,Employees related expenditure,05/04/2023,5199,Director of Adult Care,
Business Expenses/Services,Postage Stamps,Royal Mail Group Ltd,Supplies and Services related expenditure,05/04/2023,8.45,Director of Children's Services and Education,
Transportation Conveyor,"Parking Lots, Meters, Garages",Winchester City Council,Transport related expenditure,05/04/2023,5,Director of Children's Services and Education,
Hotels And Motels,Travelodge,Travelodge Gb0000,Agency and Third Party Payments related expenditure,05/04/2023,8.33,"Director of Housing, Neighbourhood and Building Services",
Hotels And Motels,Travelodge,Travelodge Gb0000,Agency and Third Party Payments related expenditure,05/04/2023,66,"Director of Housing, Neighbourhood and Building Services",
Hotels And Motels,Travelodge,Travelodge Gb0000,Agency and Third Party Payments related expenditure,05/04/2023,277.88,"Director of Housing, Neighbourhood and Building Services",
Hotels And Motels,Travelodge,Travelodge Gb0000,Agency and Third Party Payments related expenditure,05/04/2023,82.5,"Director of Housing, Neighbourhood and Building Services",
Hotels And Motels,Travelodge,Travelodge Gb0000,Agency and Third Party Payments related expenditure,05/04/2023,342.75,"Director of Housing, Neighbourhood and Building Services",
Transportation Conveyor,Travel Agencies,Bkg*booking.Com Hotel,Agency and Third Party Payments related expenditure,05/04/2023,633.33,"Director of Housing, Neighbourhood and Building Services",
Transportation Conveyor,Travel Agencies,Bkg*booking.Com Hotel,Agency and Third Party Payments related expenditure,05/04/2023,1115.72,"Director of Housing, Neighbourhood and Building Services",
Hotels And Motels,Travelodge,Travelodge Gb0000,Agency and Third Party Payments related expenditure,05/04/2023,77,"Director of Housing, Neighbourhood and Building Services",
Hotels And Motels,Travelodge,Travelodge Gb0000,Agency and Third Party Payments related expenditure,05/04/2023,1164.42,"Director of Housing, Neighbourhood and Building Services",
Hotels And Motels,Travelodge,Travelodge Gb0000,Agency and Third Party Payments related expenditure,05/04/2023,77,"Director of Housing, Neighbourhood and Building Services",
Hotels And Motels,Travelodge,Travelodge Gb0000,Agency and Third Party Payments related expenditure,05/04/2023,1164.42,"Director of Housing, Neighbourhood and Building Services",
Hotels And Motels,Travelodge,Travelodge Gb0000,Agency and Third Party Payments related expenditure,05/04/2023,77,"Director of Housing, Neighbourhood and Building Services",
Hotels And Motels,Travelodge,Travelodge Gb0000,Agency and Third Party Payments related expenditure,05/04/2023,1164.42,"Director of Housing, Neighbourhood and Building Services",
Hotels And Motels,Travelodge,Travelodge Gb0000,Agency and Third Party Payments related expenditure,05/04/2023,82.5,"Director of Housing, Neighbourhood and Building Services",
Hotels And Motels,Travelodge,Travelodge Gb0000,Agency and Third Party Payments related expenditure,05/04/2023,1207.96,"Director of Housing, Neighbourhood and Building Services",
Government Service,Govt Serv - Default,Portsmouth City Co,Supplies and Services related expenditure,05/04/2023,63.33,"Director of Housing, Neighbourhood and Building Services",
Business Services,Business Services - Default,Phs Group,Premises related expenditure,05/04/2023,38.22,"Director of Housing, Neighbourhood and Building Services",
Business To Business Facility/,Industrial Supplies - Def,Arco Limited,Supplies and Services related expenditure,05/04/2023,83.33,"Director of Housing, Neighbourhood and Building Services",
Facilities Maintenance,Specialty Cleaning/Polishing,Cleaning Supplies 4 U,Premises related expenditure,05/04/2023,263.5,"Director of Housing, Neighbourhood and Building Services",
Business Services,Business Services - Default,Phs Group,Premises related expenditure,05/04/2023,377.37,"Director of Housing, Neighbourhood and Building Services",
Business Services,Business Services - Default,Phs Group,Premises related expenditure,05/04/2023,420.22,"Director of Housing, Neighbourhood and Building Services",
Business Services,Business Services - Default,Phs Group,Premises related expenditure,05/04/2023,646.7,"Director of Housing, Neighbourhood and Building Services",
Other Supplies,Misc Speciality Retail,W&p / Medirite,Premises related expenditure,05/04/2023,-655.08,"Director of Housing, Neighbourhood and Building Services",
Transportation Conveyor,"Parking Lots, Meters, Garages",Gunwharf Quays,Transport related expenditure,05/04/2023,1.75,Director of Children's Services and Education,
Amusement/Entertainment,Amusement/Rec Serv - Def,Playzone Portsmouth,Supplies and Services related expenditure,05/04/2023,21.67,Director of Children's Services and Education,
Business To Business Eqpt/Furn,Computer Software Stores,Textmagic.Com,Supplies and Services related expenditure,05/04/2023,20,Director of Portsmouth International Port,
Government Service,Govt Serv - Default,Portsmouth City Co,Supplies and Services related expenditure,05/04/2023,31.67,Director of Children's Services and Education,
Other Supplies,Misc Speciality Retail,Amznmktplace,Supplies and Services related expenditure,05/04/2023,74.87,"Director of Culture, Leisure & Regulatory Services",
Other Supplies,Misc Speciality Retail,Amznmktplace,Supplies and Services related expenditure,05/04/2023,30.75,Director of Regeneration,
Other Supplies,Misc Speciality Retail,Amznmktplace,Supplies and Services related expenditure,05/04/2023,13.99,Director of Children's Services and Education,
Transportation Conveyor,Taxicabs/Limousines,Cabvision Network,Supplies and Services related expenditure,05/04/2023,13.4,Director of Portsmouth International Port,
Transportation Conveyor,Taxicabs/Limousines,Txw*london Taxi 76078,Supplies and Services related expenditure,05/04/2023,17.8,Director of Portsmouth International Port,
Type of Retail Store,Pet Stores/Food & Supply,Maidenhead Aquatics @,Supplies and Services related expenditure,05/04/2023,433.63,Director of Children's Services and Education,
Other Supplies,Misc Speciality Retail,Amznmktplace,Supplies and Services related expenditure,05/04/2023,8.32,Director of Children's Services and Education,
Type of Retail Store,Grocery Stores/Supermarkets,Tesco Stores 4579,Supplies and Services related expenditure,05/04/2023,40,Director of Children's Services and Education,
Hotels And Motels,Lodging/Hotels/Motels/Resorts,Sumup *college Street,Supplies and Services related expenditure,05/04/2023,128.57,Director of Children's Services and Education,
Hotels And Motels,Lodging/Hotels/Motels/Resorts,Sumup *college Street,Supplies and Services related expenditure,05/04/2023,837.33,Director of Children's Services and Education,
Digital Goods,"Digital Goods - Media, Books, Movies, Music",Spotify Uk,Supplies and Services related expenditure,05/04/2023,16.99,Director of Children's Services and Education,
Other Supplies,Catalog Merchant,Www.Nisbets.Com,Supplies and Services related expenditure,05/04/2023,27.95,Director of Adult Care,
Equipment And Furniture,Furniture/Equip Stores,Wf *uk3889294684,Supplies and Services related expenditure,05/04/2023,-137.5,Director of Adult Care,
Equipment And Furniture,Furniture/Equip Stores,Wf* Uk3889808814,Supplies and Services related expenditure,05/04/2023,-366.67,Director of Adult Care,
Type of Retail Store,Grocery Stores/Supermarkets,Tesco Stores 6002,Supplies and Services related expenditure,05/04/2023,4.73,"Director of Culture, Leisure & Regulatory Services",
Other Supplies,Misc Speciality Retail,Amznmktplace,Supplies and Services related expenditure,05/04/2023,46.28,Director of Adult Care,
Utility,Utilities/Elec/Gas/H2O/Sani,Castle Water,Premises related expenditure,05/04/2023,27.67,Director of Portsmouth International Port,
Hotels And Motels,Travelodge,Travelodge Gb0000,Agency and Third Party Payments related expenditure,05/04/2023,16.5,"Director of Housing, Neighbourhood and Building Services",
Hotels And Motels,Travelodge,Travelodge Gb0000,Agency and Third Party Payments related expenditure,05/04/2023,79.16,"Director of Housing, Neighbourhood and Building Services",
Hotels And Motels,Travelodge,Travelodge Gb0000,Agency and Third Party Payments related expenditure,05/04/2023,477.2,"Director of Housing, Neighbourhood and Building Services",
Hotels And Motels,Travelodge,Travelodge Gb0000,Agency and Third Party Payments related expenditure,05/04/2023,198,"Director of Housing, Neighbourhood and Building Services",
Hotels And Motels,Travelodge,Travelodge Gb0000,Agency and Third Party Payments related expenditure,05/04/2023,853.23,"Director of Housing, Neighbourhood and Building Services",
Transportation Conveyor,Travel Agencies,Bkg*booking.Com Hotel,Agency and Third Party Payments related expenditure,05/04/2023,1166.67,"Director of Housing, Neighbourhood and Building Services",
Transportation Conveyor,Travel Agencies,Bkg*booking.Com Hotel,Supplies and Services related expenditure,05/04/2023,1545.83,"Director of Housing, Neighbourhood and Building Services",
Transportation Conveyor,Passenger Railways,Trainline,Transport related expenditure,05/04/2023,129.24,Director of Children's Services and Education,
Type of Retail Store,Grocery Stores/Supermarkets,Asda Stores,Supplies and Services related expenditure,05/04/2023,9.58,"Director of Housing, Neighbourhood and Building Services",
Facilities/Repair Supplies,Bicycle Shops/Sales/Service,Halfords 0852,Transport related expenditure,05/04/2023,30.58,"Director of Housing, Neighbourhood and Building Services",
Transportation Conveyor,"Parking Lots, Meters, Garages",Porthmouth Ferry,Transport related expenditure,05/04/2023,5,Director of Children's Services and Education,
Other Supplies,Misc Speciality Retail,Amznmktplace,Supplies and Services related expenditure,05/04/2023,10.82,Director of Children's Services and Education,
Other Supplies,Department Stores,Www.Argos.Co.Uk,Supplies and Services related expenditure,05/04/2023,668.33,Director of Children's Services and Education,
Other Supplies,Department Stores,Www.Argos.Co.Uk,Supplies and Services related expenditure,05/04/2023,162.08,Director of Children's Services and Education,
Other Supplies,Department Stores,Www.Argos.Co.Uk,Supplies and Services related expenditure,05/04/2023,419.78,Director of Children's Services and Education,
Other Supplies,Department Stores,Www.Argos.Co.Uk,Supplies and Services related expenditure,05/04/2023,3.29,Director of Children's Services and Education,
Type of Retail Store,Grocery Stores/Supermarkets,Twyford Off Licence,Supplies and Services related expenditure,05/04/2023,5.7,"Director of Housing, Neighbourhood and Building Services",
Type of Retail Store,Grocery Stores/Supermarkets,Lidl Gb Portsmouth,Supplies and Services related expenditure,05/04/2023,24.42,"Director of Housing, Neighbourhood and Building Services",
Type of Retail Store,Grocery Stores/Supermarkets,Iceland,Supplies and Services related expenditure,05/04/2023,25,"Director of Housing, Neighbourhood and Building Services",
Business Expenses/Services,Postage Stamps,Royal Mail Online Shop,Supplies and Services related expenditure,05/04/2023,140.51,"Director of Culture, Leisure & Regulatory Services",
Type of Retail Store,Grocery Stores/Supermarkets,Asda Stores Ltd,Supplies and Services related expenditure,05/04/2023,58,Director of Children's Services and Education,
Type of Retail Store,Grocery Stores/Supermarkets,Asda Stores Ltd,Supplies and Services related expenditure,05/04/2023,58,Director of Children's Services and Education,
Other Supplies,Misc Gen Merchandise - Def,B&m Retail Ltd,Supplies and Services related expenditure,05/04/2023,99.69,Director of Children's Services and Education,
Other Supplies,Discount Stores,Argos Farlington I,Supplies and Services related expenditure,05/04/2023,219.99,Director of Children's Services and Education,
Amusement/Entertainment,Theatrical Producers,Thorpe Park,Agency and Third Party Payments related expenditure,05/04/2023,314,Director of Children's Services and Education,
Hotels And Motels,Travelodge,Travelodge Gb0000,Agency and Third Party Payments related expenditure,05/04/2023,577.45,"Director of Housing, Neighbourhood and Building Services",
Transportation Conveyor,Bus Lines/Charter/Tour,First Hampshire,Transport related expenditure,05/04/2023,3.9,Director of Children's Services and Education,
Other Supplies,Department Stores,Www.Argos.Co.Uk,Capital related expenditure,05/04/2023,355.79,Capital - Housing and Tackling Homelessness (HRA),
Utility,Utilities/Elec/Gas/H2O/Sani,Www.Utilita.Co.Uk,Supplies and Services related expenditure,05/04/2023,40,Director of Adult Care,
Business Expenses/Services,Postage Stamps,Rm Online Invoice Payment,Supplies and Services related expenditure,05/04/2023,78,Director of Children's Services and Education,
Type of Retail Store,Grocery Stores/Supermarkets,Asda Stores,Supplies and Services related expenditure,05/04/2023,29.92,"Director of Housing, Neighbourhood and Building Services",
Other Supplies,Misc Speciality Retail,Amznmktplace,Supplies and Services related expenditure,05/04/2023,5.09,Director of Children's Services and Education,
Other Supplies,Misc Speciality Retail,Amznmktplace,Supplies and Services related expenditure,05/04/2023,7.49,Director of Children's Services and Education,
Other Supplies,Misc Speciality Retail,Amznmktplace,Supplies and Services related expenditure,05/04/2023,7.49,Director of Children's Services and Education,
Other Supplies,Misc Speciality Retail,Amznmktplace,Supplies and Services related expenditure,05/04/2023,7.49,Director of Children's Services and Education,
Transportation Conveyor,Passenger Railways,Trainline.Com,Supplies and Services related expenditure,05/04/2023,6.61,Director of Children's Services and Education,
Transportation Conveyor,Passenger Railways,Trainline.Com,Supplies and Services related expenditure,05/04/2023,6.61,Director of Children's Services and Education,
Type of Retail Store,Grocery Stores/Supermarkets,Tesco Stores 3048,Supplies and Services related expenditure,05/04/2023,100,Director of Children's Services and Education,
Type of Retail Store,Grocery Stores/Supermarkets,Tesco Stores 3048,Supplies and Services related expenditure,05/04/2023,100,Director of Children's Services and Education,
Type of Retail Store,Grocery Stores/Supermarkets,Tesco Gift Card,Supplies and Services related expenditure,05/04/2023,100,Director of Children's Services and Education,
Type of Retail Store,Grocery Stores/Supermarkets,Tesco Gift Card,Supplies and Services related expenditure,05/04/2023,150,Director of Children's Services and Education,
Type of Retail Store,Sporting Goods Stores,Sp Ukmc Pro Ltd,Supplies and Services related expenditure,05/04/2023,22,"Director of Culture, Leisure & Regulatory Services",
Type of Retail Store,Grocery Stores/Supermarkets,Asda Groceries Online,Supplies and Services related expenditure,05/04/2023,-4.98,Director of Adult Care,
Type of Retail Store,Grocery Stores/Supermarkets,Asda Groceries Online,Supplies and Services related expenditure,05/04/2023,129.45,Director of Adult Care,
Business To Business Facility/,Industrial Supplies - Def,Www.Arco.Co.Uk,Supplies and Services related expenditure,05/04/2023,242.38,Director of Portsmouth International Port,
Type of Retail Store,Grocery Stores/Supermarkets,Tesco Stores 5153,Supplies and Services related expenditure,05/04/2023,4.1,Director of Children's Services and Education,
Type of Retail Store,Grocery Stores/Supermarkets,Tesco Stores 4579,Supplies and Services related expenditure,05/04/2023,1.33,Director of Children's Services and Education,
Type of Retail Store,Grocery Stores/Supermarkets,Tesco Stores 4579,Supplies and Services related expenditure,05/04/2023,5.15,Director of Children's Services and Education,
Amusement/Entertainment,Tourist Attractions And Xhbt,Marwell Services Ltd,Agency and Third Party Payments related expenditure,05/04/2023,9.6,Director of Children's Services and Education,
Amusement/Entertainment,Tourist Attractions And Xhbt,Marwell Services Ltd,Agency and Third Party Payments related expenditure,05/04/2023,14.16,Director of Children's Services and Education,
Amusement/Entertainment,Tourist Attractions And Xhbt,Marwell Services Ltd,Agency and Third Party Payments related expenditure,05/04/2023,26.58,Director of Children's Services and Education,
Business To Business Eqpt/Furn,Stationery/Office Supplies,Www.Banneruk.Com,Supplies and Services related expenditure,05/04/2023,9.77,Director of Children's Services and Education,
Eating And Drinking Places,Fast Food Restaurants,Costa Coffee 43011853,Supplies and Services related expenditure,05/04/2023,3.04,Director of Children's Services and Education,
Transportation Conveyor,Taxicabs/Limousines,Sumup *go Cabs,Transport related expenditure,05/04/2023,18,Director of Children's Services and Education,
Transportation Conveyor,Taxicabs/Limousines,Sumup *cabs,Transport related expenditure,05/04/2023,36,Director of Children's Services and Education,
Business Expenses/Services,Postage Stamps,Post Office Counter,Supplies and Services related expenditure,05/04/2023,17.6,Director of Portsmouth International Port,
Caterers Food,Caterers,Connect Vending Lt,Supplies and Services related expenditure,05/04/2023,69.28,Director of Portsmouth International Port,
Airlines,Airlines And Air Carriers,Eastern Airw,Supplies and Services related expenditure,05/04/2023,203.97,Director of Children's Services and Education,
Business Expenses/Services,Books/Periodicals/Newspapers,Wob.Com,Supplies and Services related expenditure,05/04/2023,16.8,"Director of Culture, Leisure & Regulatory Services",
Type of Retail Store,Grocery Stores/Supermarkets,Wm Morrisons Store,Supplies and Services related expenditure,05/04/2023,10.83,Director of Children's Services and Education,
Type of Retail Store,Grocery Stores/Supermarkets,Wm Morrisons Store,Supplies and Services related expenditure,05/04/2023,16.68,Director of Children's Services and Education,
Type of Retail Store,Grocery Stores/Supermarkets,Farmfoods 750,Supplies and Services related expenditure,05/04/2023,15.53,Director of Children's Services and Education,
Type of Retail Store,Grocery Stores/Supermarkets,Farmfoods 750,Supplies and Services related expenditure,05/04/2023,6.67,Director of Children's Services and Education,
Type of Retail Store,Grocery Stores/Supermarkets,Farmfoods 750,Premises related expenditure,05/04/2023,15.82,Director of Children's Services and Education,
Type of Retail Store,Grocery Stores/Supermarkets,Farmfoods 750,Supplies and Services related expenditure,05/04/2023,50.36,Director of Children's Services and Education,
Type of Retail Store,Grocery Stores/Supermarkets,Lidl Gb Portsmouth,Supplies and Services related expenditure,05/04/2023,102.82,Director of Children's Services and Education,
Type of Retail Store,Grocery Stores/Supermarkets,Farmfoods 750,Supplies and Services related expenditure,05/04/2023,25.96,"Director of Housing, Neighbourhood and Building Services",
Type of Retail Store,Grocery Stores/Supermarkets,Farmfoods 750,Supplies and Services related expenditure,05/04/2023,31.58,"Director of Housing, Neighbourhood and Building Services",
Government Service,Schools - Default,Paypal,Supplies and Services related expenditure,05/04/2023,675,Director of Children's Services and Education,
Eating And Drinking Places,Eating Places/Restaurants,Domino S Pizza,Supplies and Services related expenditure,05/04/2023,41.99,Director of Children's Services and Education,
Facilities/Repair Supplies,Lumber/Build. Supply Stores,Www.Screwfix.Com,Supplies and Services related expenditure,05/04/2023,221.88,Director of Portsmouth International Port,
Other Supplies,Misc Speciality Retail,Amznbusiness,Premises related expenditure,05/04/2023,315.5,Director of Portsmouth International Port,
Business Services,Business Services - Default,Text Anywhere,Supplies and Services related expenditure,05/04/2023,273.5,Director of Children's Services and Education,
Facilities/Repair Supplies,Misc Home Furnishing,The Range,Supplies and Services related expenditure,05/04/2023,112.82,Director of Children's Services and Education,
Transportation Conveyor,Passenger Railways,Swrailway Tck Off,Transport related expenditure,05/04/2023,19.24,Director of Children's Services and Education,
Equipment And Furniture,Household Appliance Stores,Ao Retail Limited,Supplies and Services related expenditure,05/04/2023,299.17,"Director of Housing, Neighbourhood and Building Services",
Type of Retail Store,Grocery Stores/Supermarkets,Tesco Stores 3055,Supplies and Services related expenditure,05/04/2023,10,Director of Children's Services and Education,
Type of Retail Store,Grocery Stores/Supermarkets,Tesco Stores 3055,Supplies and Services related expenditure,05/04/2023,35.45,Director of Children's Services and Education,
Hotels And Motels,Lodging/Hotels/Motels/Resorts,Sumup *college Street,Supplies and Services related expenditure,05/04/2023,1004.8,Director of Children's Services and Education,
Other Supplies,Misc Speciality Retail,W&p / Medirite,Premises related expenditure,05/04/2023,10.39,"Director of Housing, Neighbourhood and Building Services",
Transportation Conveyor,Passenger Railways,Trainline,Supplies and Services related expenditure,05/04/2023,66.5,"Director of Housing, Neighbourhood and Building Services",
Business To Business Eqpt/Furn,Stationery/Office Supplies,Www.Banneruk.Com,Supplies and Services related expenditure,05/04/2023,40.06,"Director of Housing, Neighbourhood and Building Services",
Type of Retail Store,Grocery Stores/Supermarkets,Southern Co-Op 0008,Supplies and Services related expenditure,05/04/2023,5.4,Director of Adult Care,
Type of Retail Store,Grocery Stores/Supermarkets,Sainsburys S/mkts,Supplies and Services related expenditure,05/04/2023,1.17,"Director of Culture, Leisure & Regulatory Services",
Transportation Conveyor,Bus Lines/Charter/Tour,First Bus,Transport related expenditure,05/04/2023,76,Director of Regeneration,
Eating And Drinking Places,Fast Food Restaurants,Costa Coffee 43011066,Supplies and Services related expenditure,05/04/2023,9.62,"Director of Housing, Neighbourhood and Building Services",
Facilities/Repair Supplies,Lumber/Build. Supply Stores,Screwfix Dir. Ltd,Premises related expenditure,05/04/2023,22.48,"Director of Culture, Leisure & Regulatory Services",
Facilities/Repair Supplies,Lumber/Build. Supply Stores,Www.Screwfix.Com,Premises related expenditure,05/04/2023,189.26,"Director of Culture, Leisure & Regulatory Services",
Other Supplies,Misc Speciality Retail,Amznmktplace,Supplies and Services related expenditure,05/04/2023,2.87,"Director of Housing, Neighbourhood and Building Services",
Type of Retail Store,Grocery Stores/Supermarkets,Tesco Stores 3055,Supplies and Services related expenditure,05/04/2023,6,"Director of Housing, Neighbourhood and Building Services",
Other Supplies,Misc Speciality Retail,Amznmktplace,Supplies and Services related expenditure,05/04/2023,7.49,"Director of Housing, Neighbourhood and Building Services",
Other Supplies,Misc Speciality Retail,Amznmktplace,Supplies and Services related expenditure,05/04/2023,26.66,"Director of Housing, Neighbourhood and Building Services",
Type of Retail Store,Grocery Stores/Supermarkets,Asda Superstore,Supplies and Services related expenditure,05/04/2023,6.37,"Director of Housing, Neighbourhood and Building Services",
Type of Retail Store,Grocery Stores/Supermarkets,Asda Superstore,Supplies and Services related expenditure,05/04/2023,9.04,"Director of Housing, Neighbourhood and Building Services",
Type of Retail Store,Grocery Stores/Supermarkets,Asda Superstore,Supplies and Services related expenditure,05/04/2023,30.92,"Director of Housing, Neighbourhood and Building Services",
Type of Retail Store,Grocery Stores/Supermarkets,Asda Stores,Supplies and Services related expenditure,05/04/2023,23.92,"Director of Housing, Neighbourhood and Building Services",
Type of Retail Store,Grocery Stores/Supermarkets,Asda Stores,Supplies and Services related expenditure,05/04/2023,6.54,"Director of Housing, Neighbourhood and Building Services",
Type of Retail Store,Grocery Stores/Supermarkets,Asda Stores,Supplies and Services related expenditure,05/04/2023,109.6,"Director of Housing, Neighbourhood and Building Services",
Type of Retail Store,Grocery Stores/Supermarkets,Tesco Stores 4579,Supplies and Services related expenditure,05/04/2023,2.5,Director of Adult Care,
Equipment And Furniture,Household Appliance Stores,Www.Sgn.Co.Uk,Capital related expenditure,05/04/2023,-146.86,Capital - Housing and Tackling Homelessness (HRA),
Government Service,Govt Serv - Default,Hampshire County Counc,Supplies and Services related expenditure,05/04/2023,63.17,Director of Children's Services and Education,
Government Service,Govt Serv - Default,Www.Portsmouthcc.Gov.U,Employees related expenditure,05/04/2023,5,Director of Children's Services and Education,
Government Service,Govt Serv - Default,Www.Portsmouthcc.Gov.U,Employees related expenditure,05/04/2023,0.08,Director of Children's Services and Education,
Amusement/Entertainment,Bands/Orchestras/Entertain,Hollywood Bowl,Supplies and Services related expenditure,05/04/2023,55.83,Director of Children's Services and Education,
Amusement/Entertainment,Motion Picture Theatres,Vue Cinemas,Supplies and Services related expenditure,05/04/2023,69.8,Director of Children's Services and Education,
Business To Business Eqpt/Furn,Computers/Peripherals/Software,Canary,Supplies and Services related expenditure,05/04/2023,23.93,Director of Portsmouth International Port,
Business To Business Eqpt/Furn,Computers/Peripherals/Software,Canary,Supplies and Services related expenditure,05/04/2023,23.93,Director of Portsmouth International Port,
Business To Business Eqpt/Furn,Computers/Peripherals/Software,Canary,Supplies and Services related expenditure,05/04/2023,79,Director of Portsmouth International Port,
Business Services,Business Services - Default,Zebra Waste,Premises related expenditure,05/04/2023,268,Director of Adult Care,
Type of Retail Store,Grocery Stores/Supermarkets,Asda Stores Ltd,Supplies and Services related expenditure,05/04/2023,20,Director of Children's Services and Education,
Type of Retail Store,Drug Stores & Pharmacies,Boots 2148,Supplies and Services related expenditure,05/04/2023,3.75,Director of Children's Services and Education,
Facilities/Repair Supplies,Misc Home Furnishing,The Range,Supplies and Services related expenditure,05/04/2023,87.43,Director of Children's Services and Education,
Utility,Phone Serv/Equip Utility,Vodafone Ltd,Supplies and Services related expenditure,05/04/2023,100.85,Director of Children's Services and Education,
Transportation Conveyor,Passenger Railways,Swrailway Tck Off,Supplies and Services related expenditure,05/04/2023,5.2,Director of Children's Services and Education,
Transportation Conveyor,"Parking Lots, Meters, Garages",Portsmouth City Council 3,Supplies and Services related expenditure,05/04/2023,12.4,Director of Children's Services and Education,
Type of Retail Store,Grocery Stores/Supermarkets,Sainsburys S/mkts,Supplies and Services related expenditure,05/04/2023,0.25,Director of Children's Services and Education,
Type of Retail Store,Grocery Stores/Supermarkets,Sainsburys S/mkts,Supplies and Services related expenditure,05/04/2023,11.9,Director of Children's Services and Education,
Other Supplies,Misc Gen Merchandise - Def,B&m 566 - Farlington,Agency and Third Party Payments related expenditure,05/04/2023,16.99,Director of Children's Services and Education,
Type of Retail Store,Pet Stores/Food & Supply,Pets At Home Ltd,Agency and Third Party Payments related expenditure,05/04/2023,22.15,Director of Children's Services and Education,
Type of Retail Store,Freezer/Meat Lockers,Bransbury Park Butchers,Supplies and Services related expenditure,05/04/2023,98.14,Director of Adult Care,
Freight/Courier/Warehouse Svcs,Public Warehousing,Access Portsmouth,Premises related expenditure,05/04/2023,91.67,"Director of Housing, Neighbourhood and Building Services",
Freight/Courier/Warehouse Svcs,Public Warehousing,Big Yellow - Portsmout,Premises related expenditure,05/04/2023,137.67,"Director of Housing, Neighbourhood and Building Services",
Freight/Courier/Warehouse Svcs,Public Warehousing,Access Portsmouth,Premises related expenditure,05/04/2023,172,"Director of Housing, Neighbourhood and Building Services",
Hotels And Motels,Travelodge,Travelodge Gb0000,Agency and Third Party Payments related expenditure,05/04/2023,710.94,"Director of Housing, Neighbourhood and Building Services",
Hotels And Motels,Travelodge,Travelodge Gb0000,Agency and Third Party Payments related expenditure,05/04/2023,960.26,"Director of Housing, Neighbourhood and Building Services",
Hotels And Motels,Travelodge,Travelodge Gb0000,Agency and Third Party Payments related expenditure,05/04/2023,1358.55,"Director of Housing, Neighbourhood and Building Services",
Type of Retail Store,Grocery Stores/Supermarkets,Lidl Gb Portsmouth,Supplies and Services related expenditure,05/04/2023,14.62,Director of Children's Services and Education,
Type of Retail Store,Candy/Nut/Confection Store,Www.Chocolatetradingco,Supplies and Services related expenditure,05/04/2023,124.79,"Director of Culture, Leisure & Regulatory Services",
Miscellaneous,Continuity/Subscription Mercht,Amazon Prime,Supplies and Services related expenditure,05/04/2023,-7.49,Director of Children's Services and Education,
Miscellaneous,Charitable/Soc Service Orgs,Zettle_*moving On Proj,Supplies and Services related expenditure,05/04/2023,35,Director of Children's Services and Education,
Government Service,Govt Serv - Default,Disclosure And Barring,Supplies and Services related expenditure,05/04/2023,18,"Director of Housing, Neighbourhood and Building Services",
Transportation Conveyor,Taxicabs/Limousines,Aqua Cars,Transport related expenditure,05/04/2023,16.5,"Director of Housing, Neighbourhood and Building Services",
Transportation Conveyor,Passenger Railways,Ringo Ecom,Supplies and Services related expenditure,05/04/2023,7.08,Director of Portsmouth International Port,
Transportation Conveyor,Passenger Railways,Trainline,Transport related expenditure,05/04/2023,50,Director of Children's Services and Education,
Amusement/Entertainment,Tourist Attractions And Xhbt,Https://Snowdonrailway,Agency and Third Party Payments related expenditure,05/04/2023,-121.5,Director of Children's Services and Education,
Type of Retail Store,Children/Infants Wear Store,Little Peas,Supplies and Services related expenditure,05/04/2023,19.12,Director of Children's Services and Education,
Business To Business Eqpt/Furn,Stationery/Office Supplies,Www.Banneruk.Com,Supplies and Services related expenditure,05/04/2023,21.45,Director of Adult Care,
Type of Retail Store,Electronics Sales,Laptopbitz* #24665,Supplies and Services related expenditure,05/04/2023,545,Director of Corporate Services,
Business Services,Advertising Services,Twitter Online Ads,Supplies and Services related expenditure,05/04/2023,50,"Director of Housing, Neighbourhood and Building Services",
Other Supplies,Misc Speciality Retail,Amznmktplace,Supplies and Services related expenditure,06/04/2023,4.99,Director of Children's Services and Education,
Business To Business Eqpt/Furn,Computer Software Stores,Adobe,Supplies and Services related expenditure,06/04/2023,7.99,Director of Corporate Services,
Other Supplies,Misc Speciality Retail,Amznmktplace,Supplies and Services related expenditure,06/04/2023,15.49,Director of Regeneration,
Hotels And Motels,Travelodge,Travelodge Gb0000,Agency and Third Party Payments related expenditure,05/04/2023,-77,"Director of Housing, Neighbourhood and Building Services",
Hotels And Motels,Travelodge,Travelodge Gb0000,Agency and Third Party Payments related expenditure,05/04/2023,-972.05,"Director of Housing, Neighbourhood and Building Services",
Hotels And Motels,Premier Travel Inns,Premier Inn,Agency and Third Party Payments related expenditure,05/04/2023,1170.3,"Director of Housing, Neighbourhood and Building Services",
Hotels And Motels,Premier Travel Inns,Premier Inn,Agency and Third Party Payments related expenditure,05/04/2023,1170.3,"Director of Housing, Neighbourhood and Building Services",
Hotels And Motels,Premier Travel Inns,Premier Inn,Agency and Third Party Payments related expenditure,05/04/2023,-1300.32,"Director of Housing, Neighbourhood and Building Services",
Hotels And Motels,Travelodge,Travelodge Gb0000,Agency and Third Party Payments related expenditure,05/04/2023,-99,"Director of Housing, Neighbourhood and Building Services",
Hotels And Motels,Travelodge,Travelodge Gb0000,Agency and Third Party Payments related expenditure,05/04/2023,-1416.93,"Director of Housing, Neighbourhood and Building Services",
Hotels And Motels,Premier Travel Inns,Premier Inn,Agency and Third Party Payments related expenditure,05/04/2023,1503.22,"Director of Housing, Neighbourhood and Building Services",
Hotels And Motels,Premier Travel Inns,Premier Inn,Agency and Third Party Payments related expenditure,05/04/2023,389.13,"Director of Housing, Neighbourhood and Building Services",
Hotels And Motels,Premier Travel Inns,Premier Inn,Agency and Third Party Payments related expenditure,05/04/2023,-439.13,"Director of Housing, Neighbourhood and Building Services",
Hotels And Motels,Premier Travel Inns,Premier Inn,Agency and Third Party Payments related expenditure,05/04/2023,439.13,"Director of Housing, Neighbourhood and Building Services",
Hotels And Motels,Premier Travel Inns,Premier Inn,Agency and Third Party Payments related expenditure,05/04/2023,891.17,"Director of Housing, Neighbourhood and Building Services",
Government Service,Colleges/Univ/Jc/Profession,Westsussex.Gov.Uk,Supplies and Services related expenditure,05/04/2023,11,Director of Children's Services and Education,
Hotels And Motels,Premier Travel Inns,Premier Inn,Supplies and Services related expenditure,05/04/2023,565,Director of Children's Services and Education,
Business To Business Facility/,Electrical Parts/Equipment,Rs Components,Premises related expenditure,05/04/2023,547.93,Director of Portsmouth International Port,
Business To Business Facility/,Industrial Supplies - Def,Arco Limited,Supplies and Services related expenditure,05/04/2023,47.19,Director of Portsmouth International Port,
Business To Business Facility/,Industrial Supplies - Def,Arco Limited,Supplies and Services related expenditure,05/04/2023,48.87,Director of Portsmouth International Port,
Type of Retail Store,Sporting Goods Stores,Decathlon UK Limited,Premises related expenditure,05/04/2023,74.98,"Director of Culture, Leisure & Regulatory Services",
Hotels And Motels,Premier Travel Inns,Premier Inn,Agency and Third Party Payments related expenditure,05/04/2023,347.85,"Director of Housing, Neighbourhood and Building Services",
Business To Business Eqpt/Furn,Computers/Peripherals/Software,Insight Uk,Supplies and Services related expenditure,05/04/2023,849,Director of Corporate Services,
Other Supplies,Misc Gen Merchandise - Def,B&m Retail Ltd,Supplies and Services related expenditure,06/04/2023,17.32,Director of Adult Care,
Hotels And Motels,Premier Travel Inns,Premier Inn,Agency and Third Party Payments related expenditure,06/04/2023,38.5,"Director of Housing, Neighbourhood and Building Services",
Hotels And Motels,Premier Travel Inns,Premier Inn,Agency and Third Party Payments related expenditure,06/04/2023,52.08,"Director of Housing, Neighbourhood and Building Services",
Transportation Conveyor,Travel Agencies,Bkg*booking.Com Hotel,Agency and Third Party Payments related expenditure,06/04/2023,-1120,"Director of Housing, Neighbourhood and Building Services",
Utility,Phone Serv/Equip Utility,Giffgaff,Supplies and Services related expenditure,06/04/2023,10,Director of Adult Care,
Type of Retail Store,Grocery Stores/Supermarkets,Tesco Gift Card,Supplies and Services related expenditure,06/04/2023,200,Director of Adult Care,
Business Services,Business Services - Default,Fast Key Services Limi,Supplies and Services related expenditure,06/04/2023,6.73,Director of Corporate Services,
Other Supplies,Misc Speciality Retail,Timpson Ltd,Supplies and Services related expenditure,06/04/2023,7.5,"Director of Culture, Leisure & Regulatory Services",
Utility,Phone Serv/Equip Utility,Zoom.Us 888-799-9666,Supplies and Services related expenditure,06/04/2023,12.99,Director of Children's Services and Education,
Facilities/Repair Supplies,Home Supply Warehouse Stores,B & Q 1260,Supplies and Services related expenditure,06/04/2023,24.95,Director of Regeneration,
Amusement/Entertainment,Tourist Attractions And Xhbt,Petlake Alpacas,Supplies and Services related expenditure,06/04/2023,63,Director of Portsmouth International Port,
Transportation Conveyor,"Parking Lots, Meters, Garages",Portsmouth City Council 3,Employees related expenditure,06/04/2023,3.6,Director of Adult Care,
Eating And Drinking Places,Fast Food Restaurants,McDonalds,Supplies and Services related expenditure,06/04/2023,11.89,Director of Children's Services and Education,
Business To Business Facility/,Industrial Supplies - Def,Arco Limited,Supplies and Services related expenditure,06/04/2023,88.5,"Director of Culture, Leisure & Regulatory Services",
Other Supplies,Misc Speciality Retail,W&p / Medirite,Premises related expenditure,06/04/2023,358.38,"Director of Housing, Neighbourhood and Building Services",
Transportation Conveyor,Bus Lines/Charter/Tour,First Hampshire,Transport related expenditure,06/04/2023,2,Director of Children's Services and Education,
Transportation Conveyor,Bus Lines/Charter/Tour,First Hampshire,Transport related expenditure,06/04/2023,2,Director of Children's Services and Education,
Other Supplies,Department Stores,Www.Argos.Co.Uk,Supplies and Services related expenditure,06/04/2023,49.95,Director of Children's Services and Education,
Eating And Drinking Places,Fast Food Restaurants,McDonalds,Agency and Third Party Payments related expenditure,06/04/2023,20.13,Director of Children's Services and Education,
Eating And Drinking Places,Fast Food Restaurants,Costa Coffee 43011551,Supplies and Services related expenditure,06/04/2023,6.17,Director of Children's Services and Education,
Business To Business Eqpt/Furn,Stationery/Office Supplies,Www.Banneruk.Com,Supplies and Services related expenditure,06/04/2023,38.5,"Director of Housing, Neighbourhood and Building Services",
Business To Business Facility/,Hardware Equipment/Supplies,Croma Locksmiths & Sec,Premises related expenditure,06/04/2023,25,Director of Children's Services and Education,
Other Supplies,Misc Gen Merchandise - Def,Ampulla Ltd,Supplies and Services related expenditure,06/04/2023,50.87,Director of Children's Services and Education,
Other Supplies,Misc Speciality Retail,Amznmktplace,Supplies and Services related expenditure,06/04/2023,58.06,"Director of Housing, Neighbourhood and Building Services",
Facilities/Repair Supplies,Misc Home Furnishing,Www.Therange.Co.Uk,Supplies and Services related expenditure,06/04/2023,723.9,Director of Adult Care,
Business Services,Business Services - Default,Www.Pay.Ukcrs.Com,Agency and Third Party Payments related expenditure,06/04/2023,74.63,"Director of Housing, Neighbourhood and Building Services",
Transportation Conveyor,Travel Agencies,Bkg*booking.Com Hotel,Agency and Third Party Payments related expenditure,06/04/2023,-1166.67,"Director of Housing, Neighbourhood and Building Services",
Eating And Drinking Places,Fast Food Restaurants,McDonalds,Agency and Third Party Payments related expenditure,06/04/2023,21.1,Director of Children's Services and Education,
Auto/Vehicle Expenses,Auto Service Shops/Non Dealer,Kwik Fit,Transport related expenditure,06/04/2023,66.25,"Director of Housing, Neighbourhood and Building Services",
Business To Business Services,Misc Publishing & Printing,Www.Solopress.Com,Supplies and Services related expenditure,06/04/2023,38.5,"Director of Culture, Leisure & Regulatory Services",
Type of Retail Store,Grocery Stores/Supermarkets,Sainsburys S/Mkts,Supplies and Services related expenditure,06/04/2023,3.5,Director of Children's Services and Education,
Transportation Conveyor,Passenger Railways,Trainline.Com,Transport related expenditure,06/04/2023,22.92,Director of Children's Services and Education,
Type of Retail Store,Grocery Stores/Supermarkets,Lidl Gb Portsmouth,Supplies and Services related expenditure,06/04/2023,3.67,Director of Adult Care,
Type of Retail Store,Grocery Stores/Supermarkets,Lidl Gb Portsmouth,Supplies and Services related expenditure,06/04/2023,7.67,Director of Adult Care,
Business Expenses/Services,Postage Stamps,Post Office Counter,Supplies and Services related expenditure,06/04/2023,6.85,Director of Children's Services and Education,
Type of Retail Store,Drug Stores & Pharmacies,Superdrug 1735 Portsmouth,Supplies and Services related expenditure,06/04/2023,12.58,Director of Children's Services and Education,
Other Supplies,Misc Gen Merchandise - Def,B&m Retail Ltd,Supplies and Services related expenditure,06/04/2023,41.67,Director of Children's Services and Education,
Miscellaneous,Charitable/Soc Service Orgs,The Rowans Hospice,Supplies and Services related expenditure,06/04/2023,141.67,Director of Children's Services and Education,
Miscellaneous,Charitable/Soc Service Orgs,The Rowans Hospice,Supplies and Services related expenditure,06/04/2023,12.5,Director of Children's Services and Education,
Other Supplies,Misc Gen Merchandise - Def,B&m 566 - Farlington,Premises related expenditure,06/04/2023,59.16,Director of Children's Services and Education,
Other Supplies,Misc Gen Merchandise - Def,B&m 566 - Farlington,Supplies and Services related expenditure,06/04/2023,15.51,Director of Children's Services and Education,
Other Supplies,Misc Gen Merchandise - Def,B&m 566 - Farlington,Supplies and Services related expenditure,06/04/2023,120.87,Director of Children's Services and Education,
Other Supplies,Misc Gen Merchandise - Def,B&m 566 - Farlington,Supplies and Services related expenditure,06/04/2023,177.62,Director of Children's Services and Education,
Type of Retail Store,Electronics Sales,Currys Portsmouth,Supplies and Services related expenditure,06/04/2023,410.83,Director of Children's Services and Education,
Type of Retail Store,Grocery Stores/Supermarkets,Iceland,Supplies and Services related expenditure,06/04/2023,5.71,"Director of Housing, Neighbourhood and Building Services",
Type of Retail Store,Grocery Stores/Supermarkets,Iceland,Supplies and Services related expenditure,06/04/2023,15,"Director of Housing, Neighbourhood and Building Services",
Type of Retail Store,Grocery Stores/Supermarkets,Lidl Gb Portsmouth,Supplies and Services related expenditure,06/04/2023,27.7,"Director of Housing, Neighbourhood and Building Services",
Government Service,Govt Serv - Default,Gcc - Registrars,Supplies and Services related expenditure,06/04/2023,15.85,Director of Children's Services and Education,
Utility,Phone Serv/Equip Utility,Virgin Media Pymts,Supplies and Services related expenditure,06/04/2023,50.21,Director of Children's Services and Education,
Miscellaneous,Charitable/Soc Service Orgs,Mhfa England Cic Ltd,Supplies and Services related expenditure,06/04/2023,140,"Director of Housing, Neighbourhood and Building Services",
Transportation Conveyor,Passenger Railways,Trainline.Com,Supplies and Services related expenditure,06/04/2023,6.61,Director of Children's Services and Education,
Transportation Conveyor,Passenger Railways,Trainline,Supplies and Services related expenditure,06/04/2023,6.61,Director of Children's Services and Education,
Type of Retail Store,Grocery Stores/Supermarkets,Tesco Gift Card,Supplies and Services related expenditure,06/04/2023,20,Director of Children's Services and Education,
Automobiles and Vehicles,Trailer Camper Dealer,Blenworth Tyres Ltd,Supplies and Services related expenditure,06/04/2023,20.83,"Director of Housing, Neighbourhood and Building Services",
Clothing/Uniform Services,Laundry/Cleaning/Garment Sv,Sumup *pompey Hand Car W,Supplies and Services related expenditure,06/04/2023,25,Director of Children's Services and Education,
Type of Retail Store,Grocery Stores/Supermarkets,Sainsburys S Mkts,Supplies and Services related expenditure,06/04/2023,27.08,"Director of Culture, Leisure & Regulatory Services",
Other Supplies,Misc Speciality Retail,Amznmktplace,Supplies and Services related expenditure,06/04/2023,70.82,"Director of Culture, Leisure & Regulatory Services",
Type of Retail Store,Electronics Sales,Cp Lighting Ltd,Premises related expenditure,06/04/2023,64.8,Director of Portsmouth International Port,
Business To Business Services,Misc Publishing & Printing,Magazine.Co.Uk,Supplies and Services related expenditure,06/04/2023,45,Director of Children's Services and Education,
Business Expenses/Services,Books/Periodicals/Newspapers,Newsstand,Supplies and Services related expenditure,06/04/2023,78.66,Director of Children's Services and Education,
Miscellaneous,Charitable/Soc Service Orgs,Www.Navsh.Org.Uk,Supplies and Services related expenditure,06/04/2023,300,Director of Children's Services and Education,
Transportation Conveyor,Local Commuter Transport,Tfl Travel Ch,Supplies and Services related expenditure,06/04/2023,5.5,Director of Portsmouth International Port,
Transportation Conveyor,Passenger Railways,Trainline,Transport related expenditure,06/04/2023,146.25,Director of Children's Services and Education,
Transportation Conveyor,"Parking Lots, Meters, Garages",Apcoa Parking,Supplies and Services related expenditure,06/04/2023,75,Director of Children's Services and Education,
Transportation Conveyor,Bus Lines/Charter/Tour,First Bus,Transport related expenditure,06/04/2023,19,Director of Children's Services and Education,
Hotels And Motels,Travelodge,Travelodge Gb0000,Supplies and Services related expenditure,06/04/2023,313.6,Director of Children's Services and Education,
Business To Business Facility/,Industrial Supplies - Def,Safetrade 247 Limited,Supplies and Services related expenditure,06/04/2023,333.82,Director of Portsmouth International Port,
Type of Retail Store,Grocery Stores/Supermarkets,Lidl Gb Portsmouth,Supplies and Services related expenditure,06/04/2023,9.77,Director of Children's Services and Education,
Type of Retail Store,Grocery Stores/Supermarkets,Lidl Gb Portsmouth,Supplies and Services related expenditure,06/04/2023,11.21,Director of Children's Services and Education,
Facilities/Repair Supplies,Lawn/Garden Supply/Nursery,Www.Tudorenvironmental,Supplies and Services related expenditure,06/04/2023,56.58,"Director of Culture, Leisure & Regulatory Services",
Facilities/Repair Services,Landscape/Horticultural Se,Alsoils + Ltd,Supplies and Services related expenditure,06/04/2023,490,"Director of Culture, Leisure & Regulatory Services",
Government Service,Govt Serv - Default,Queen Elizabeth Countr,Supplies and Services related expenditure,06/04/2023,6.25,"Director of Housing, Neighbourhood and Building Services",
Business To Business Eqpt/Furn,Stationery/Office Supplies,Www.Banneruk.Com,Supplies and Services related expenditure,06/04/2023,11.44,Director of Adult Care,
Type of Retail Store,Grocery Stores/Supermarkets,Tesco Stores 6002,Supplies and Services related expenditure,06/04/2023,7.25,"Director of Housing, Neighbourhood and Building Services",
Type of Retail Store,Grocery Stores/Supermarkets,Tesco Stores 6002,Supplies and Services related expenditure,06/04/2023,22.55,"Director of Housing, Neighbourhood and Building Services",
Transportation Conveyor,Local Commuter Transport,Hovertravel Ltd- Ecomm,Transport related expenditure,06/04/2023,65.2,Director of Children's Services and Education,
Transportation Conveyor,Passenger Railways,Trainline.Com,Transport related expenditure,06/04/2023,70.57,Director of Children's Services and Education,
Equipment And Furniture,Equip/Furn Rent/Lease Serv,Rowlands Plant Service,Supplies and Services related expenditure,06/04/2023,795,"Director of Culture, Leisure & Regulatory Services",
Miscellaneous,Misc Personal Serv - Def,Your-Move.Co.Uk,Supplies and Services related expenditure,06/04/2023,1096,"Director of Housing, Neighbourhood and Building Services",
Type of Retail Store,Grocery Stores/Supermarkets,Tesco Gift Card,Supplies and Services related expenditure,06/04/2023,30,Director of Children's Services and Education,
Hotels And Motels,Travelodge,Travelodge Gb0000,Supplies and Services related expenditure,06/04/2023,565,Director of Children's Services and Education,
Type of Retail Store,Grocery Stores/Supermarkets,Tesco Stores 4579,Supplies and Services related expenditure,06/04/2023,13.07,"Director of Housing, Neighbourhood and Building Services",
Type of Retail Store,Grocery Stores/Supermarkets,Tesco Stores 4579,Supplies and Services related expenditure,06/04/2023,52.99,"Director of Housing, Neighbourhood and Building Services",
Other Supplies,Misc Gen Merchandise - Def,B&m Retail Ltd,Supplies and Services related expenditure,06/04/2023,80.7,"Director of Housing, Neighbourhood and Building Services",
Business To Business Eqpt/Furn,Durable Goods - Default,Www.Reliantdirect.Co.U,Supplies and Services related expenditure,06/04/2023,249.17,Director of Children's Services and Education,
Type of Retail Store,Grocery Stores/Supermarkets,Lidl Gb Portsmouth,Supplies and Services related expenditure,06/04/2023,25,"Director of Housing, Neighbourhood and Building Services",
Equipment And Furniture,Furniture/Equip Stores,Beliani.Com,Supplies and Services related expenditure,06/04/2023,-124.99,"Director of Culture, Leisure & Regulatory Services",
Type of Retail Store,Grocery Stores/Supermarkets,Tesco Stores 6679,Supplies and Services related expenditure,06/04/2023,2.5,Director of Children's Services and Education,
Type of Retail Store,Grocery Stores/Supermarkets,Asda Stores Ltd,Supplies and Services related expenditure,06/04/2023,30,Director of Children's Services and Education,
Government Service,Govt Serv - Default,Pcc Internet Payment,Supplies and Services related expenditure,06/04/2023,35,Director of Children's Services and Education,
Type of Retail Store,Grocery Stores/Supermarkets,Tesco Gift Card,Supplies and Services related expenditure,06/04/2023,100,Director of Children's Services and Education,
Government Service,Govt Serv - Default,Gen Register Office,Supplies and Services related expenditure,06/04/2023,14,Director of Regeneration,
Type of Retail Store,Grocery Stores/Supermarkets,Tesco Stores 4611,Supplies and Services related expenditure,06/04/2023,15,Director of Regeneration,
Facilities/Repair Supplies,Automotive Parts Stores,Halfords E.Comm,Supplies and Services related expenditure,06/04/2023,156.67,Director of Regeneration,
Type of Retail Store,Grocery Stores/Supermarkets,Tesco Stores 3048,Supplies and Services related expenditure,06/04/2023,38.1,"Director of Housing, Neighbourhood and Building Services",
Facilities/Repair Supplies,Lawn/Garden Supply/Nursery,Carters Of Swanwic,Supplies and Services related expenditure,06/04/2023,1271.3,"Director of Housing, Neighbourhood and Building Services",
Transportation Conveyor,Bus Lines/Charter/Tour,Stgcoach/Ctylink,Transport related expenditure,06/04/2023,2,"Director of Culture, Leisure & Regulatory Services",
Utility,Phone Serv/Equip Utility,Zoom.Us 888-799-9666,Supplies and Services related expenditure,06/04/2023,119.9,Director of Children's Services and Education,
Automobile Services & Supplies,Service Stations,Shell A3 T South,Agency and Third Party Payments related expenditure,06/04/2023,6.6,Director of Children's Services and Education,
Automobile Services & Supplies,Service Stations,Shell A3 T South,Agency and Third Party Payments related expenditure,06/04/2023,2.21,Director of Children's Services and Education,
Eating And Drinking Places,Fast Food Restaurants,McDonalds 1682,Agency and Third Party Payments related expenditure,06/04/2023,12.37,Director of Children's Services and Education,
Eating And Drinking Places,Fast Food Restaurants,Kfc - Thorpe Park,Agency and Third Party Payments related expenditure,06/04/2023,24.87,Director of Children's Services and Education,
Type of Retail Store,Grocery Stores/Supermarkets,Asda Stores,Supplies and Services related expenditure,06/04/2023,181.67,"Director of Housing, Neighbourhood and Building Services",
Equipment And Furniture,Furniture/Equip Stores,City Museum,Supplies and Services related expenditure,06/04/2023,0.5,Director of Children's Services and Education,
Amusement/Entertainment,Amusement/Rec Serv - Def,Paultons Park Limited,Supplies and Services related expenditure,06/04/2023,208.75,Director of Children's Services and Education,
Other Supplies,Misc Gen Merchandise - Def,Prezzee/Gb37551adf,Supplies and Services related expenditure,06/04/2023,50,Director of Children's Services and Education,
Government Service,Schools - Default,Beacon School Support,Supplies and Services related expenditure,06/04/2023,7.49,Director of Children's Services and Education,
Other Supplies,Catalog Merchant,Www.Insectlore-Europe.Co,Supplies and Services related expenditure,06/04/2023,25.76,Director of Children's Services and Education,
Freight/Courier/Warehouse Svcs,Public Warehousing,Big Yellow - Portsmout,Premises related expenditure,06/04/2023,-52.28,"Director of Housing, Neighbourhood and Building Services",
Freight/Courier/Warehouse Svcs,Motor Freight Carriers,Safestore Ltd Online R,Premises related expenditure,06/04/2023,72.08,"Director of Housing, Neighbourhood and Building Services",
Freight/Courier/Warehouse Svcs,Motor Freight Carriers,Safestore Ltd Online R,Premises related expenditure,06/04/2023,165.56,"Director of Housing, Neighbourhood and Building Services",
Hotels And Motels,Travelodge,Travelodge Gb0000,Agency and Third Party Payments related expenditure,06/04/2023,463.66,"Director of Housing, Neighbourhood and Building Services",
Hotels And Motels,Travelodge,Travelodge Gb0000,Agency and Third Party Payments related expenditure,06/04/2023,590.94,"Director of Housing, Neighbourhood and Building Services",
Hotels And Motels,Travelodge,Travelodge Gb0000,Agency and Third Party Payments related expenditure,06/04/2023,650.76,"Director of Housing, Neighbourhood and Building Services",
Hotels And Motels,Travelodge,Travelodge Gb0000,Agency and Third Party Payments related expenditure,06/04/2023,714.97,"Director of Housing, Neighbourhood and Building Services",
Hotels And Motels,Travelodge,Travelodge Gb0000,Agency and Third Party Payments related expenditure,06/04/2023,949.13,"Director of Housing, Neighbourhood and Building Services",
Hotels And Motels,Travelodge,Travelodge Gb0000,Agency and Third Party Payments related expenditure,06/04/2023,1031.99,"Director of Housing, Neighbourhood and Building Services",
Hotels And Motels,Travelodge,Travelodge Gb0000,Agency and Third Party Payments related expenditure,06/04/2023,1043.34,"Director of Housing, Neighbourhood and Building Services",
Transportation Conveyor,Travel Agencies,Bkg*booking.Com Hotel,Agency and Third Party Payments related expenditure,06/04/2023,1057.5,"Director of Housing, Neighbourhood and Building Services",
Hotels And Motels,Travelodge,Travelodge Gb0000,Agency and Third Party Payments related expenditure,06/04/2023,1276.88,"Director of Housing, Neighbourhood and Building Services",
Hotels And Motels,Travelodge,Travelodge Gb0000,Agency and Third Party Payments related expenditure,06/04/2023,1282.42,"Director of Housing, Neighbourhood and Building Services",
Hotels And Motels,Travelodge,Travelodge Gb0000,Agency and Third Party Payments related expenditure,06/04/2023,1410.76,"Director of Housing, Neighbourhood and Building Services",
Hotels And Motels,Travelodge,Travelodge Gb0000,Agency and Third Party Payments related expenditure,06/04/2023,2227.84,"Director of Housing, Neighbourhood and Building Services",
Facilities/Repair Supplies,Home Supply Warehouse Stores,B & Q 1260,Premises related expenditure,06/04/2023,62.38,Director of Children's Services and Education,
Government Service,Govt Serv - Default,Pcc Internet Payment,Supplies and Services related expenditure,06/04/2023,22,Director of Children's Services and Education,
Type of Retail Store,Grocery Stores/Supermarkets,Asda Stores Ltd,Supplies and Services related expenditure,06/04/2023,50,Director of Children's Services and Education,
Type of Retail Store,Grocery Stores/Supermarkets,Asda Stores Ltd,Supplies and Services related expenditure,06/04/2023,100,Director of Children's Services and Education,
Business Services,Business Services - Default,Voucher Express,Premises related expenditure,06/04/2023,210,Director of Children's Services and Education,
Other Supplies,Department Stores,Www.Argos.Co.Uk,Premises related expenditure,06/04/2023,238.95,Director of Children's Services and Education,
Type of Retail Store,Grocery Stores/Supermarkets,Tesco Stores 4579,Supplies and Services related expenditure,06/04/2023,104.39,Director of Children's Services and Education,
Other Supplies,Misc Speciality Retail,Timpson Ltd,Premises related expenditure,06/04/2023,13.5,Director of Children's Services and Education,
Other Supplies,Misc Speciality Retail,W&p / Medirite,Premises related expenditure,06/04/2023,64.62,Director of Children's Services and Education,
Other Supplies,Misc Speciality Retail,W&p / Medirite,Premises related expenditure,06/04/2023,220.8,Director of Children's Services and Education,
Type of Retail Store,Grocery Stores/Supermarkets,Southern Co-Op 0006,Supplies and Services related expenditure,06/04/2023,5.54,Director of Children's Services and Education,
Other Supplies,Misc Speciality Retail,Timpson Ltd,Supplies and Services related expenditure,06/04/2023,7.5,Director of Children's Services and Education,
Hotels And Motels,Premier Travel Inns,Premier Inn,Supplies and Services related expenditure,06/04/2023,180.5,Director of Portsmouth International Port,
Hotels And Motels,Premier Travel Inns,Premier Inn,Agency and Third Party Payments related expenditure,06/04/2023,-264.17,"Director of Housing, Neighbourhood and Building Services",
Hotels And Motels,Premier Travel Inns,Premier Inn,Agency and Third Party Payments related expenditure,06/04/2023,684.17,"Director of Housing, Neighbourhood and Building Services",
Hotels And Motels,Travelodge,Travelodge Gb0000,Agency and Third Party Payments related expenditure,06/04/2023,-77,"Director of Housing, Neighbourhood and Building Services",
Hotels And Motels,Travelodge,Travelodge Gb0000,Agency and Third Party Payments related expenditure,06/04/2023,-1164.42,"Director of Housing, Neighbourhood and Building Services",
Transportation Conveyor,Passenger Railways,Trainline.Com,Supplies and Services related expenditure,06/04/2023,30.65,Director of Finance & Resources,
Hotels And Motels,Premier Travel Inns,Premier Inn,Agency and Third Party Payments related expenditure,06/04/2023,-286.5,"Director of Housing, Neighbourhood and Building Services",
Clothing Services,Family Clothing Stores,Primark,Supplies and Services related expenditure,06/04/2023,72.5,Director of Children's Services and Education,
Hotels And Motels,Premier Travel Inns,Premier Inn,Agency and Third Party Payments related expenditure,06/04/2023,-471.61,"Director of Housing, Neighbourhood and Building Services",
Hotels And Motels,Premier Travel Inns,Premier Inn,Supplies and Services related expenditure,06/04/2023,-145,Director of Children's Services and Education,
Auto/Vehicle Expenses,Automotive Tire Stores,Big Tyres Ltd,Supplies and Services related expenditure,06/04/2023,543,"Director of Culture, Leisure & Regulatory Services",
Hotels And Motels,Premier Travel Inns,Premier Inn,Supplies and Services related expenditure,06/04/2023,55.96,Director of Children's Services and Education,
Hotels And Motels,Premier Travel Inns,Premier Inn,Supplies and Services related expenditure,06/04/2023,79.16,Director of Children's Services and Education,
Clothing/Uniform Services,Laundries-Family/Commercial,Me Group International Pl,Supplies and Services related expenditure,06/04/2023,9,Director of Regeneration,
Hotels And Motels,Premier Travel Inns,Premier Inn,Supplies and Services related expenditure,06/04/2023,264.15,"Director of Housing, Neighbourhood and Building Services",
Hotels And Motels,Premier Travel Inns,Premier Inn,Agency and Third Party Payments related expenditure,06/04/2023,761.61,"Director of Housing, Neighbourhood and Building Services",
Hotels And Motels,Premier Travel Inns,Premier Inn,Agency and Third Party Payments related expenditure,06/04/2023,763.68,"Director of Housing, Neighbourhood and Building Services",
Hotels And Motels,Premier Travel Inns,Premier Inn,Agency and Third Party Payments related expenditure,06/04/2023,836.17,"Director of Housing, Neighbourhood and Building Services",
Hotels And Motels,Premier Travel Inns,Premier Inn,Agency and Third Party Payments related expenditure,06/04/2023,957.37,"Director of Housing, Neighbourhood and Building Services",
Hotels And Motels,Premier Travel Inns,Premier Inn,Agency and Third Party Payments related expenditure,06/04/2023,1473.22,"Director of Housing, Neighbourhood and Building Services",
Business To Business Eqpt/Furn,Computer Software Stores,Slack T89m73vgb,Supplies and Services related expenditure,07/04/2023,165.75,Director of Corporate Services,
Government Service,Govt Serv - Default,Staunton Country Park,Agency and Third Party Payments related expenditure,07/04/2023,12.77,Director of Children's Services and Education,
Facilities/Repair Supplies,Home Supply Warehouse Stores,Wickes Waterlooville,Premises related expenditure,07/04/2023,0.75,Director of Children's Services and Education,
Clothing Services,Mens/Womens Clothing Stores,Matalan,Premises related expenditure,07/04/2023,26.25,Director of Children's Services and Education,
Clothing Services,Mens/Womens Clothing Stores,Matalan,Supplies and Services related expenditure,07/04/2023,14.58,Director of Children's Services and Education,
Other Supplies,Misc Gen Merchandise - Def,Wilko Retail Limited,Supplies and Services related expenditure,07/04/2023,78.54,Director of Children's Services and Education,
Other Supplies,Misc Gen Merchandise - Def,B&m 566 - Farlington,Supplies and Services related expenditure,07/04/2023,138.34,Director of Children's Services and Education,
Other Supplies,Discount Stores,Argos Waterlooville,Supplies and Services related expenditure,07/04/2023,150,Director of Children's Services and Education,
Other Supplies,Discount Stores,Argos Waterlooville,Supplies and Services related expenditure,07/04/2023,10.79,Director of Children's Services and Education,
Type of Retail Store,Grocery Stores/Supermarkets,Tesco Stores 3055,Supplies and Services related expenditure,07/04/2023,12.33,Director of Children's Services and Education,
Type of Retail Store,Grocery Stores/Supermarkets,Tesco Stores 3055,Supplies and Services related expenditure,07/04/2023,7.08,Director of Children's Services and Education,
Type of Retail Store,Grocery Stores/Supermarkets,Tesco Stores 3055,Supplies and Services related expenditure,07/04/2023,15.7,Director of Children's Services and Education,
Type of Retail Store,Grocery Stores/Supermarkets,Asda Superstore,Supplies and Services related expenditure,07/04/2023,3,Director of Adult Care,
Other Supplies,Misc Speciality Retail,Amznmktplace,Supplies and Services related expenditure,07/04/2023,39.59,Director of Portsmouth International Port,
Type of Retail Store,Grocery Stores/Supermarkets,Lidl Gb Portsmouth,Supplies and Services related expenditure,07/04/2023,20.12,"Director of Housing, Neighbourhood and Building Services",
Type of Retail Store,Grocery Stores/Supermarkets,Lidl Gb Portsmouth,Supplies and Services related expenditure,07/04/2023,31.32,"Director of Housing, Neighbourhood and Building Services",
Facilities/Repair Supplies,Misc Home Furnishing,The Range,Supplies and Services related expenditure,07/04/2023,11.67,"Director of Culture, Leisure & Regulatory Services",
Facilities/Repair Supplies,Misc Home Furnishing,The Range,Supplies and Services related expenditure,07/04/2023,13.07,"Director of Culture, Leisure & Regulatory Services",
Hotels And Motels,Travelodge,Travelodge Gb0000,Agency and Third Party Payments related expenditure,07/04/2023,249.01,"Director of Housing, Neighbourhood and Building Services",
Transportation Conveyor,"Parking Lots, Meters, Garages",Gunwharf Quays,Transport related expenditure,07/04/2023,2.58,Director of Children's Services and Education,
Type of Retail Store,Grocery Stores/Supermarkets,Tesco Stores 5153,Agency and Third Party Payments related expenditure,07/04/2023,2.33,Director of Children's Services and Education,
Type of Retail Store,Grocery Stores/Supermarkets,Tesco Stores 5153,Agency and Third Party Payments related expenditure,07/04/2023,13.3,Director of Children's Services and Education,
Type of Retail Store,Grocery Stores/Supermarkets,Madina Halal Meat And Fis,Supplies and Services related expenditure,07/04/2023,6.45,Director of Children's Services and Education,
Type of Retail Store,Grocery Stores/Supermarkets,Sainsburys S/mkts,Supplies and Services related expenditure,07/04/2023,13.35,Director of Children's Services and Education,
Type of Retail Store,Grocery Stores/Supermarkets,Iceland,Supplies and Services related expenditure,07/04/2023,19.55,Director of Children's Services and Education,
Amusement/Entertainment,Motion Picture Theatres,Vue Entertainment Ltd,Agency and Third Party Payments related expenditure,07/04/2023,22.47,Director of Children's Services and Education,
Hotels And Motels,Lodging/Hotels/Motels/Resorts,Farmhouse (Portsmouth),Agency and Third Party Payments related expenditure,07/04/2023,8.32,"Director of Housing, Neighbourhood and Building Services",
Hotels And Motels,Lodging/Hotels/Motels/Resorts,Farmhouse (Portsmouth),Agency and Third Party Payments related expenditure,07/04/2023,45.82,"Director of Housing, Neighbourhood and Building Services",
Hotels And Motels,Lodging/Hotels/Motels/Resorts,Farmhouse (Portsmouth),Agency and Third Party Payments related expenditure,07/04/2023,116.62,"Director of Housing, Neighbourhood and Building Services",
Hotels And Motels,Premier Travel Inns,Premier Inn,Agency and Third Party Payments related expenditure,07/04/2023,-164.17,"Director of Housing, Neighbourhood and Building Services",
Hotels And Motels,Lodging/Hotels/Motels/Resorts,Farmhouse (Portsmouth),Supplies and Services related expenditure,07/04/2023,224.7,"Director of Housing, Neighbourhood and Building Services",
Transportation Conveyor,"Parking Lots, Meters, Garages",Cp Plus Limited,Transport related expenditure,07/04/2023,2.7,Director of Children's Services and Education,
Eating And Drinking Places,Fast Food Restaurants,Kfc Portsmouth,Agency and Third Party Payments related expenditure,07/04/2023,11.12,Director of Children's Services and Education,
Type of Retail Store,Grocery Stores/Supermarkets,Asda Stores,Supplies and Services related expenditure,07/04/2023,11.96,Director of Children's Services and Education,
Eating And Drinking Places,Eating Places/Restaurants,Blue Cobra,Agency and Third Party Payments related expenditure,07/04/2023,45.9,Director of Children's Services and Education,
Eating And Drinking Places,Eating Places/Restaurants,Domino S Pizza,Agency and Third Party Payments related expenditure,07/04/2023,69.52,Director of Children's Services and Education,
Other Supplies,Misc Speciality Retail,Amz*bax Music Uk,Supplies and Services related expenditure,08/04/2023,-287.97,Director of Adult Care,
Type of Retail Store,Grocery Stores/Supermarkets,Asda Groceries Online,Premises related expenditure,08/04/2023,6.5,Director of Children's Services and Education,
Transportation Conveyor,Travel Agencies,Bkg*booking.Com Hotel,Agency and Third Party Payments related expenditure,08/04/2023,108.32,"Director of Housing, Neighbourhood and Building Services",
Eating And Drinking Places,Fast Food Restaurants,Costa Coffee 43011293,Agency and Third Party Payments related expenditure,08/04/2023,6.33,Director of Children's Services and Education,
Transportation Conveyor,Taxicabs/Limousines,Sumup *hamid Dolati,Transport related expenditure,08/04/2023,20,Director of Children's Services and Education,
Type of Retail Store,Bakeries,Cornish Bakehouse,Agency and Third Party Payments related expenditure,08/04/2023,1.42,Director of Children's Services and Education,
Type of Retail Store,Bakeries,Cornish Bakehouse,Agency and Third Party Payments related expenditure,08/04/2023,18.55,Director of Children's Services and Education,
Transportation Conveyor,Taxicabs/Limousines,Sumup *hamid Dolati,Transport related expenditure,08/04/2023,26.4,Director of Children's Services and Education,
Type of Retail Store,Grocery Stores/Supermarkets,Wm Morrisons Store,Supplies and Services related expenditure,08/04/2023,2.78,Director of Children's Services and Education,
Other Supplies,Misc Gen Merchandise - Def,B&m Retail Ltd,Supplies and Services related expenditure,08/04/2023,2.5,Director of Children's Services and Education,
Type of Retail Store,Grocery Stores/Supermarkets,Wm Morrisons Store,Supplies and Services related expenditure,08/04/2023,2.5,Director of Children's Services and Education,
Type of Retail Store,Grocery Stores/Supermarkets,Wm Morrisons Store,Supplies and Services related expenditure,08/04/2023,47.02,Director of Children's Services and Education,
Transportation Conveyor,Travel Agencies,Bkg*booking.Com Hotel,Agency and Third Party Payments related expenditure,08/04/2023,1196.55,"Director of Housing, Neighbourhood and Building Services",
Eating And Drinking Places,Fast Food Restaurants,Gourmet Coffee Bar & Kitc,Agency and Third Party Payments related expenditure,08/04/2023,6.5,Director of Children's Services and Education,
Type of Retail Store,Grocery Stores/Supermarkets,Tesco Stores 5153,Agency and Third Party Payments related expenditure,08/04/2023,9.26,Director of Children's Services and Education,
Type of Retail Store,Grocery Stores/Supermarkets,Tesco Stores 5153,Agency and Third Party Payments related expenditure,08/04/2023,9.04,Director of Children's Services and Education,
Equipment And Furniture,Phone Serv/Equip Non-Util,Fone World UK Limited,Supplies and Services related expenditure,08/04/2023,99.97,Director of Children's Services and Education,
Business Services,Advertising Services,Twitter Online Ads,Supplies and Services related expenditure,08/04/2023,250,"Director of Housing, Neighbourhood and Building Services",
Type of Retail Store,Grocery Stores/Supermarkets,Southern Co-Op 0008,Supplies and Services related expenditure,09/04/2023,40,Director of Children's Services and Education,
Type of Retail Store,Grocery Stores/Supermarkets,Southern Co-Op 0008,Supplies and Services related expenditure,09/04/2023,6.75,Director of Children's Services and Education,
Automobile Services & Supplies,Service Stations,Milton Road Servic,Agency and Third Party Payments related expenditure,09/04/2023,3.4,Director of Children's Services and Education,
Eating And Drinking Places,Fast Food Restaurants,Southsea Cream,Agency and Third Party Payments related expenditure,09/04/2023,34.9,Director of Children's Services and Education,
Eating And Drinking Places,Eating Places/Restaurants,Hilsea,Agency and Third Party Payments related expenditure,09/04/2023,62.12,Director of Children's Services and Education,
Business Services,Business Services - Default,Hoo*hootsuite Inc,Supplies and Services related expenditure,09/04/2023,1060.59,"Director of Culture, Leisure & Regulatory Services",
Type of Retail Store,Drug Stores & Pharmacies,Superdrug Stores Plc,Supplies and Services related expenditure,09/04/2023,4.98,"Director of Culture, Leisure & Regulatory Services",
Type of Retail Store,Grocery Stores/Supermarkets,Tesco Stores 2494,Supplies and Services related expenditure,09/04/2023,6.3,"Director of Culture, Leisure & Regulatory Services",
Type of Retail Store,Grocery Stores/Supermarkets,Southern Co-Op 0018,Supplies and Services related expenditure,09/04/2023,75,Director of Children's Services and Education,
Type of Retail Store,Grocery Stores/Supermarkets,Southern Co-Op 0018,Supplies and Services related expenditure,09/04/2023,75,Director of Children's Services and Education,
Other Supplies,Misc Speciality Retail,W&p / Medirite,Premises related expenditure,09/04/2023,293.12,Director of Adult Care,
Hotels And Motels,Travelodge,Travelodge Gb0000,Agency and Third Party Payments related expenditure,09/04/2023,-184.57,"Director of Housing, Neighbourhood and Building Services",
Transportation Conveyor,Passenger Railways,Trainline,Transport related expenditure,06/04/2023,-137.1,Director of Children's Services and Education,
Eating And Drinking Places,Eating Places/Restaurants,Rockwater Branksome,Agency and Third Party Payments related expenditure,08/04/2023,9.9,Director of Children's Services and Education,
Business Expenses/Services,Postage Stamps,Post Office Counter,Supplies and Services related expenditure,10/04/2023,2.4,Director of Children's Services and Education,
Type of Retail Store,Grocery Stores/Supermarkets,Tesco Stores 4579,Supplies and Services related expenditure,10/04/2023,69.69,Director of Children's Services and Education,
Type of Retail Store,Grocery Stores/Supermarkets,Southern Co-Op 0006,Premises related expenditure,10/04/2023,125,Director of Children's Services and Education,
Other Supplies,Misc Speciality Retail,Amznmktplace,Transport related expenditure,10/04/2023,13.49,Director of Adult Care,
Other Supplies,Misc Speciality Retail,Amznmktplace,Supplies and Services related expenditure,10/04/2023,21.56,"Director of Housing, Neighbourhood and Building Services",
Miscellaneous,Other Direct Marketers,Amazon.Co.Uk,Supplies and Services related expenditure,10/04/2023,19.05,"Director of Housing, Neighbourhood and Building Services",
Transportation Conveyor,"Parking Lots, Meters, Garages",Portsmouth City Council 3,Supplies and Services related expenditure,10/04/2023,1.58,Director of Regeneration,
Type of Retail Store,Grocery Stores/Supermarkets,Wm Morrisons Store,Supplies and Services related expenditure,10/04/2023,2.99,Director of Children's Services and Education,
Type of Retail Store,Grocery Stores/Supermarkets,Eastern Stores Grocery,Supplies and Services related expenditure,10/04/2023,9.9,Director of Children's Services and Education,
Type of Retail Store,Grocery Stores/Supermarkets,Lidl Gb Portsmouth,Supplies and Services related expenditure,10/04/2023,9.63,Director of Children's Services and Education,
Type of Retail Store,Grocery Stores/Supermarkets,Lidl Gb Portsmouth,Supplies and Services related expenditure,10/04/2023,12.66,Director of Children's Services and Education,
Type of Retail Store,Grocery Stores/Supermarkets,Asda Groceries Online,Supplies and Services related expenditure,10/04/2023,6.5,Director of Children's Services and Education,
Transportation Conveyor,"Parking Lots, Meters, Garages",Uk Car Park Management,Transport related expenditure,10/04/2023,2.08,Director of Children's Services and Education,
Amusement/Entertainment,Tourist Attractions And Xhbt,Arundel Castle,Agency and Third Party Payments related expenditure,10/04/2023,4.17,Director of Children's Services and Education,
Amusement/Entertainment,Tourist Attractions And Xhbt,Arundel Castle Tickets,Agency and Third Party Payments related expenditure,10/04/2023,38,Director of Children's Services and Education,
Other Supplies,Misc Speciality Retail,Amznmktplace,Supplies and Services related expenditure,10/04/2023,44.99,"Director of Housing, Neighbourhood and Building Services",
Miscellaneous,Other Direct Marketers,Amazon.Co.Uk,Supplies and Services related expenditure,10/04/2023,59.97,"Director of Housing, Neighbourhood and Building Services",
Other Supplies,Misc Speciality Retail,Amznmktplace,Supplies and Services related expenditure,10/04/2023,849.75,Director of Corporate Services,
Type of Retail Store,Grocery Stores/Supermarkets,Iceland Foods,Supplies and Services related expenditure,10/04/2023,93,Director of Adult Care,
Automobile Services & Supplies,Service Stations,Eastern Road Service Stat,Agency and Third Party Payments related expenditure,10/04/2023,3.25,Director of Children's Services and Education,
Facilities/Repair Supplies,Lumber/Build. Supply Stores,Www.Screwfix.Com,Premises related expenditure,11/04/2023,10.82,Director of Adult Care,
Facilities/Repair Supplies,Lumber/Build. Supply Stores,B&q Ltd,Supplies and Services related expenditure,11/04/2023,37.5,Director of Corporate Services,
Personal Service Provider,Professional Services - Def,Thomson Reuters UK Ltd,Supplies and Services related expenditure,11/04/2023,343,Director of Corporate Services,
Transportation Conveyor,"Parking Lots, Meters, Garages",Southampton City Counc,Employees related expenditure,11/04/2023,4,Director of Adult Care,
Type of Retail Store,Grocery Stores/Supermarkets,Tesco Gift Card,Supplies and Services related expenditure,11/04/2023,25,Director of Children's Services and Education,
Amusement/Entertainment,Bands/Orchestras/Entertain,Bh Live Active - Wimbl,Supplies and Services related expenditure,11/04/2023,11.9,Director of Adult Care,
Miscellaneous,Continuity/Subscription Mercht,Amazon Prime,Supplies and Services related expenditure,11/04/2023,7.49,Director of Children's Services and Education,
Facilities/Repair Supplies,Lumber/Build. Supply Stores,Screwfix Portsmouth Hilse,Premises related expenditure,11/04/2023,51.93,Director of Children's Services and Education,
Other Supplies,Misc Gen Merchandise - Def,B&m Retail Ltd,Supplies and Services related expenditure,11/04/2023,4.73,Director of Adult Care,
Other Supplies,Misc Gen Merchandise - Def,Prezzee/Gb71bf69ca,Supplies and Services related expenditure,11/04/2023,30,Director of Children's Services and Education,
Other Supplies,Misc Gen Merchandise - Def,Prezzee/Gb1ff22df4,Supplies and Services related expenditure,11/04/2023,100,Director of Children's Services and Education,
Type of Retail Store,Sports/Riding Apparel Store,Jd Sports Fashion Plc,Supplies and Services related expenditure,11/04/2023,100,Director of Children's Services and Education,
Other Supplies,Department Stores,Www.Argos.Co.Uk,Supplies and Services related expenditure,11/04/2023,11.25,Director of Children's Services and Education,
Business To Business Eqpt/Furn,Stationery/Office Supplies,Www.Banneruk.Com,Supplies and Services related expenditure,11/04/2023,127.56,"Director of Culture, Leisure & Regulatory Services",
Facilities/Repair Supplies,Automotive Parts Stores,Westleigh Motor Factors,Transport related expenditure,11/04/2023,109.95,"Director of Housing, Neighbourhood and Building Services",
Miscellaneous,Continuity/Subscription Mercht,Tsohost,Supplies and Services related expenditure,11/04/2023,57.7,Director of Children's Services and Education,
Amusement/Entertainment,Bands/Orchestras/Entertain,Portsmouthguildhall,Premises related expenditure,11/04/2023,939.14,Director of Children's Services and Education,
Government Service,Govt Serv - Default,Land Registry Ecom Ccc,Supplies and Services related expenditure,11/04/2023,3,"Director of Housing, Neighbourhood and Building Services",
Government Service,Govt Serv - Default,Land Registry Ecom Ccc,Supplies and Services related expenditure,11/04/2023,3,"Director of Housing, Neighbourhood and Building Services",
Equipment And Furniture,Furniture/Equip Stores,Ikea Ltd Shop Online,Supplies and Services related expenditure,11/04/2023,42.5,Director of Corporate Services,
Transportation Conveyor,Bus Lines/Charter/Tour,Stgcoach/Ctylink,Transport related expenditure,11/04/2023,2,Director of Children's Services and Education,
Transportation Conveyor,Bus Lines/Charter/Tour,Stgcoach/Ctylink,Transport related expenditure,11/04/2023,2,Director of Children's Services and Education,
Type of Retail Store,Misc Food Stores - Default,Spar,Supplies and Services related expenditure,11/04/2023,3.29,Director of Children's Services and Education,
Type of Retail Store,Grocery Stores/Supermarkets,Asda Stores,Supplies and Services related expenditure,11/04/2023,8.38,Director of Children's Services and Education,
Other Supplies,Discount Stores,Argos Farlington I,Supplies and Services related expenditure,11/04/2023,16.66,Director of Children's Services and Education,
Eating And Drinking Places,Fast Food Restaurants,McDonalds,Supplies and Services related expenditure,11/04/2023,9.47,Director of Children's Services and Education,
Transportation Conveyor,Taxicabs/Limousines,Taxi Driver,Supplies and Services related expenditure,11/04/2023,27,Director of Children's Services and Education,
Type of Retail Store,Grocery Stores/Supermarkets,Asda Superstore,Supplies and Services related expenditure,11/04/2023,7.72,Director of Adult Care,
Personal Service Provider,Commercial Photo/Art/Graph,Istock.Com,Supplies and Services related expenditure,11/04/2023,7,"Director of Culture, Leisure & Regulatory Services",
Type of Retail Store,Grocery Stores/Supermarkets,Iceland Foods,Supplies and Services related expenditure,11/04/2023,-2.75,Director of Adult Care,
Other Supplies,Misc Speciality Retail,W&p / Medirite,Premises related expenditure,11/04/2023,177.04,"Director of Housing, Neighbourhood and Building Services",
Other Supplies,Misc Gen Merchandise - Def,B&m 566 - Farlington,Supplies and Services related expenditure,11/04/2023,0.83,Director of Children's Services and Education,
Other Supplies,Discount Stores,Argos Farlington I,Agency and Third Party Payments related expenditure,11/04/2023,9.99,Director of Children's Services and Education,
Other Supplies,Misc Gen Merchandise - Def,B&m Retail Ltd,Supplies and Services related expenditure,11/04/2023,106.08,Director of Children's Services and Education,
Other Supplies,Misc Speciality Retail,Amznbusiness,Supplies and Services related expenditure,11/04/2023,15.96,Director of Children's Services and Education,
Transportation Conveyor,Local Commuter Transport,Hovertravel Ltd- Ecomm,Supplies and Services related expenditure,11/04/2023,65.2,Director of Children's Services and Education,
Type of Retail Store,Grocery Stores/Supermarkets,Tesco Stores 4611,Supplies and Services related expenditure,11/04/2023,20,Director of Children's Services and Education,
Type of Retail Store,Grocery Stores/Supermarkets,Tesco Gift Card,Supplies and Services related expenditure,11/04/2023,50,Director of Children's Services and Education,
Transportation Conveyor,Local Commuter Transport,Hovertravel Ltd- Ecomm,Transport related expenditure,11/04/2023,46.67,Director of Children's Services and Education,
Hotels And Motels,Travelodge,Travelodge Gb0000,Supplies and Services related expenditure,11/04/2023,61.18,Director of Children's Services and Education,
Other Supplies,Catalog Merchant,Very,Supplies and Services related expenditure,11/04/2023,75.98,Director of Children's Services and Education,
Business To Business Eqpt/Furn,Stationery/Office Supplies,Www.Banneruk.Com,Supplies and Services related expenditure,11/04/2023,21.15,"Director of Culture, Leisure & Regulatory Services",
Government Service,Tax Payments,Dvla Vehicle Tax,Transport related expenditure,11/04/2023,160,"Director of Housing, Neighbourhood and Building Services",
Government Service,Tax Payments,Dvla Vehicle Tax,Transport related expenditure,11/04/2023,160,"Director of Housing, Neighbourhood and Building Services",
Government Service,Tax Payments,Dvla Vehicle Tax,Transport related expenditure,11/04/2023,320,Director of Corporate Services,
Government Service,Tax Payments,Dvla Vehicle Tax,Transport related expenditure,11/04/2023,320,Director of Corporate Services,
Other Supplies,Misc Speciality Retail,W&p / Medirite,Premises related expenditure,11/04/2023,138.24,Director of Regeneration,
Type of Retail Store,Grocery Stores/Supermarkets,Lidl Gb,Supplies and Services related expenditure,11/04/2023,14.52,Director of Public Health,
Transportation Conveyor,Passenger Railways,Trainline,Supplies and Services related expenditure,11/04/2023,19.24,Director of Children's Services and Education,
Type of Retail Store,Grocery Stores/Supermarkets,Asda Stores Ltd,Supplies and Services related expenditure,11/04/2023,31,Director of Children's Services and Education,
Other Supplies,Misc Gen Merchandise - Def,Prezzee/Gb7a7ae22f,Supplies and Services related expenditure,11/04/2023,100,Director of Children's Services and Education,
Other Supplies,Misc Gen Merchandise - Def,Prezzee/Gb686b698d,Supplies and Services related expenditure,11/04/2023,100,Director of Children's Services and Education,
Type of Retail Store,Grocery Stores/Supermarkets,Tesco Gift Card,Supplies and Services related expenditure,11/04/2023,350,Director of Children's Services and Education,
Hotels And Motels,Lodging/Hotels/Motels/Resorts,Pembroke Park Hotel,Supplies and Services related expenditure,11/04/2023,233.33,"Director of Housing, Neighbourhood and Building Services",
Hotels And Motels,Lodging/Hotels/Motels/Resorts,Pembroke Park Hotel,Supplies and Services related expenditure,11/04/2023,458.33,"Director of Housing, Neighbourhood and Building Services",
Equipment And Furniture,Household Appliance Stores,Ao Retail Limited,Supplies and Services related expenditure,11/04/2023,-10,"Director of Housing, Neighbourhood and Building Services",
Type of Retail Store,Bakeries,Greggs,Supplies and Services related expenditure,11/04/2023,150,"Director of Housing, Neighbourhood and Building Services",
Transportation Conveyor,Passenger Railways,Trainline,Transport related expenditure,11/04/2023,17.51,Director of Children's Services and Education,
Transportation Conveyor,Passenger Railways,Trainline,Transport related expenditure,11/04/2023,52.75,Director of Children's Services and Education,
Transportation Conveyor,Passenger Railways,Trainline.Com,Transport related expenditure,11/04/2023,52.75,Director of Children's Services and Education,
Transportation Conveyor,Taxicabs/Limousines,Zettle_*apple Taxi,Transport related expenditure,11/04/2023,104.17,Director of Children's Services and Education,
Type of Retail Store,Grocery Stores/Supermarkets,Iceland,Supplies and Services related expenditure,11/04/2023,10.3,"Director of Housing, Neighbourhood and Building Services",
Government Service,Govt Serv - Default,Gen Register Office,Supplies and Services related expenditure,11/04/2023,38,Director of Regeneration,
Type of Retail Store,Grocery Stores/Supermarkets,Tesco Stores 3048,Supplies and Services related expenditure,11/04/2023,16.67,"Director of Housing, Neighbourhood and Building Services",
Facilities/Repair Supplies,Lawn/Garden Supply/Nursery,Carters Of Swanwic,Transport related expenditure,11/04/2023,1005.25,"Director of Housing, Neighbourhood and Building Services",
Government Service,Govt Serv - Default,Pcc Internet Payment,Supplies and Services related expenditure,11/04/2023,33,Director of Children's Services and Education,
Government Service,Govt Serv - Default,Portsmouth City Co,Supplies and Services related expenditure,11/04/2023,51,Director of Adult Care,
Business To Business Eqpt/Furn,Book Stores,Amzn Mktp Uk,Supplies and Services related expenditure,11/04/2023,138.01,Director of Public Health,
Business To Business Services,Information Retrieval Services,Www.Restore.Co.Uk,Supplies and Services related expenditure,11/04/2023,24.02,Solent LEP,
Other Supplies,Misc Gen Merchandise - Def,Prezzee/Gb72d8ef2a,Supplies and Services related expenditure,11/04/2023,30,Director of Children's Services and Education,
Type of Retail Store,Grocery Stores/Supermarkets,Tesco Gift Card,Supplies and Services related expenditure,11/04/2023,70,Director of Children's Services and Education,
Utility,Utilities/Elec/Gas/H2O/Sani,Https://Customerhu,Premises related expenditure,11/04/2023,279.4,Director of Children's Services and Education,
Other Supplies,Misc Speciality Retail,Rompa Ltd,Supplies and Services related expenditure,11/04/2023,19.85,Director of Adult Care,
Business To Business Eqpt/Furn,Book Stores,Www.Highfields.Co.Uk,Supplies and Services related expenditure,11/04/2023,15,"Director of Housing, Neighbourhood and Building Services",
Type of Retail Store,Grocery Stores/Supermarkets,Iceland,Supplies and Services related expenditure,11/04/2023,7.37,Director of Children's Services and Education,
Other Supplies,Gift/Card/Novelty And Souvenir Stores,Card Factory,Supplies and Services related expenditure,11/04/2023,2.15,Director of Children's Services and Education,
Other Supplies,Misc Gen Merchandise - Def,B&m Retail Ltd,Supplies and Services related expenditure,11/04/2023,5,Director of Children's Services and Education,
Type of Retail Store,Grocery Stores/Supermarkets,Marks&spencer Plc Sf,Supplies and Services related expenditure,11/04/2023,6.15,Director of Children's Services and Education,
Facilities/Repair Supplies,Bicycle Shops/Sales/Service,Halfords 0852,Transport related expenditure,11/04/2023,7.91,Director of Children's Services and Education,
Type of Retail Store,Grocery Stores/Supermarkets,Sainsburys S/mkt,Supplies and Services related expenditure,11/04/2023,3.75,Director of Children's Services and Education,
Type of Retail Store,Grocery Stores/Supermarkets,Sainsburys S/mkt,Supplies and Services related expenditure,11/04/2023,11.45,Director of Children's Services and Education,
Eating And Drinking Places,Fast Food Restaurants,Subway 44472 Ocean Park,Agency and Third Party Payments related expenditure,11/04/2023,13.38,Director of Children's Services and Education,
Type of Retail Store,Grocery Stores/Supermarkets,Tesco Stores 4579,Supplies and Services related expenditure,11/04/2023,16.08,Director of Children's Services and Education,
Type of Retail Store,Grocery Stores/Supermarkets,Tesco Stores 4579,Supplies and Services related expenditure,11/04/2023,6.75,Director of Children's Services and Education,
Type of Retail Store,Grocery Stores/Supermarkets,Tesco Stores 4579,Supplies and Services related expenditure,11/04/2023,9,Director of Children's Services and Education,
Type of Retail Store,Grocery Stores/Supermarkets,Tesco Stores 4579,Supplies and Services related expenditure,11/04/2023,45.09,Director of Children's Services and Education,
Facilities/Repair Supplies,Lawn/Garden Supply/Nursery,Www.Tudorenvironmental,Supplies and Services related expenditure,11/04/2023,74.77,"Director of Culture, Leisure & Regulatory Services",
Facilities/Repair Supplies,Lawn/Garden Supply/Nursery,Www.Tudorenvironmental,Supplies and Services related expenditure,11/04/2023,74.77,"Director of Culture, Leisure & Regulatory Services",
Business To Business Eqpt/Furn,Computer Software Stores,Www.Anydesk.Com,Supplies and Services related expenditure,11/04/2023,359.82,Director of Portsmouth International Port,
Other Supplies,Misc Gen Merchandise - Def,Www.Gsproducts.Co.Uk,Premises related expenditure,11/04/2023,822.14,"Director of Culture, Leisure & Regulatory Services",
Type of Retail Store,Grocery Stores/Supermarkets,Asda Superstore,Supplies and Services related expenditure,11/04/2023,20,Director of Children's Services and Education,
Transportation Conveyor,"Parking Lots, Meters, Garages",Southampton Cc Parking,Transport related expenditure,11/04/2023,5,Director of Finance & Resources,
Facilities/Repair Supplies,Home Supply Warehouse Stores,B & Q 1260,Premises related expenditure,11/04/2023,22.17,Director of Children's Services and Education,
Government Service,Govt Serv - Default,Hm Passport Office,Supplies and Services related expenditure,11/04/2023,53.5,Director of Children's Services and Education,
Government Service,Govt Serv - Default,Hm Passport Office,Supplies and Services related expenditure,11/04/2023,64,Director of Children's Services and Education,
Caterers Food,Caterers,Sumup *the Kings Theatre,Agency and Third Party Payments related expenditure,11/04/2023,6,Director of Children's Services and Education,
Other Supplies,Misc Speciality Retail,Amznmktplace,Supplies and Services related expenditure,11/04/2023,29.92,Director of Adult Care,
Other Supplies,Wholesale Clubs,The Fruit Basket,Supplies and Services related expenditure,11/04/2023,74.86,Director of Adult Care,
Type of Retail Store,Freezer/Meat Lockers,Bransbury Park Butchers,Supplies and Services related expenditure,11/04/2023,112.78,Director of Adult Care,
Facilities/Repair Supplies,Lumber/Build. Supply Stores,Www.Screwfix.Com,Supplies and Services related expenditure,11/04/2023,138.32,Director of Adult Care,
Type of Retail Store,Freezer/Meat Lockers,Dennis Edwards Food Serv,Supplies and Services related expenditure,11/04/2023,374.69,Director of Adult Care,
Type of Retail Store,Freezer/Meat Lockers,Dennis Edwards Food Serv,Supplies and Services related expenditure,11/04/2023,2.19,Director of Adult Care,
Business Services,Business Services - Default,Www.Phs.Co.Uk,Premises related expenditure,11/04/2023,825.54,Director of Adult Care,
Other Supplies,Misc Speciality Retail,Amznmktplace,Supplies and Services related expenditure,11/04/2023,33.29,"Director of Housing, Neighbourhood and Building Services",
Freight/Courier/Warehouse Svcs,Public Warehousing,Big Yellow - Portsmout,Premises related expenditure,11/04/2023,-78.55,"Director of Housing, Neighbourhood and Building Services",
Freight/Courier/Warehouse Svcs,Public Warehousing,Access Portsmouth,Premises related expenditure,11/04/2023,153.33,"Director of Housing, Neighbourhood and Building Services",
Freight/Courier/Warehouse Svcs,Public Warehousing,Big Yellow - Portsmout,Premises related expenditure,11/04/2023,252,"Director of Housing, Neighbourhood and Building Services",
Personal Service Provider,Real Estate Agents And Managers,Ptk Portsmouth,Agency and Third Party Payments related expenditure,11/04/2023,1250,"Director of Housing, Neighbourhood and Building Services",
Type of Retail Store,Grocery Stores/Supermarkets,Asda Groceries Online,Supplies and Services related expenditure,11/04/2023,-1.8,Director of Children's Services and Education,
Type of Retail Store,Grocery Stores/Supermarkets,Asda Groceries Online,Supplies and Services related expenditure,11/04/2023,111.62,Director of Children's Services and Education,
Business To Business Eqpt/Furn,Stationery/Office Supplies,Www.Banneruk.Com,Supplies and Services related expenditure,11/04/2023,80.97,Director of Adult Care,
Other Supplies,Misc Speciality Retail,Amznmktplace,Supplies and Services related expenditure,11/04/2023,638.29,Director of Children's Services and Education,
Business To Business Eqpt/Furn,Stationery/Office Supplies,Www.Banneruk.Com,Supplies and Services related expenditure,11/04/2023,15.07,Director of Children's Services and Education,
Business To Business Eqpt/Furn,Stationery/Office Supplies,Www.Banneruk.Com,Supplies and Services related expenditure,11/04/2023,106.8,Director of Corporate Services,
Business To Business Eqpt/Furn,Stationery/Office Supplies,Www.Banneruk.Com,Supplies and Services related expenditure,11/04/2023,106.8,Director of Corporate Services,
Business To Business Eqpt/Furn,Stationery/Office Supplies,Www.Banneruk.Com,Supplies and Services related expenditure,11/04/2023,129.62,Director of Children's Services and Education,
Government Service,Tax Payments,Dvla Vehicle Tax,Transport related expenditure,11/04/2023,365,Director of Corporate Services,
Type of Retail Store,Grocery Stores/Supermarkets,Wm Morrisons Store,Supplies and Services related expenditure,11/04/2023,3.75,Director of Children's Services and Education,
Type of Retail Store,Grocery Stores/Supermarkets,Wm Morrisons Store,Supplies and Services related expenditure,11/04/2023,6.59,Director of Children's Services and Education,
Type of Retail Store,Grocery Stores/Supermarkets,Wm Morrisons Store,Supplies and Services related expenditure,11/04/2023,3.33,Director of Children's Services and Education,
Type of Retail Store,Grocery Stores/Supermarkets,Wm Morrisons Store,Supplies and Services related expenditure,11/04/2023,14.83,Director of Children's Services and Education,
Equipment And Furniture,Phone Serv/Equip Non-Util,Pmc Electrics Limi,Supplies and Services related expenditure,11/04/2023,83.9,Director of Children's Services and Education,
Other Supplies,Misc Speciality Retail,Amznmktplace,Supplies and Services related expenditure,12/04/2023,99.7,Director of Portsmouth International Port,
Miscellaneous,Other Direct Marketers,Amazon.Co.Uk,Supplies and Services related expenditure,12/04/2023,68.32,"Director of Housing, Neighbourhood and Building Services",
Other Supplies,Misc Speciality Retail,Amznmktplace,Supplies and Services related expenditure,12/04/2023,18.98,Director of Children's Services and Education,
Hotels And Motels,Premier Travel Inns,Premier Inn,Supplies and Services related expenditure,11/04/2023,204.22,Director of Adult Care,
Hotels And Motels,Premier Travel Inns,Premier Inn,Supplies and Services related expenditure,11/04/2023,-100,Director of Children's Services and Education,
Hotels And Motels,Premier Travel Inns,Premier Inn,Agency and Third Party Payments related expenditure,11/04/2023,626.61,"Director of Housing, Neighbourhood and Building Services",
Hotels And Motels,Premier Travel Inns,Premier Inn,Agency and Third Party Payments related expenditure,11/04/2023,1207.38,"Director of Housing, Neighbourhood and Building Services",
Hotels And Motels,Premier Travel Inns,Premier Inn,Agency and Third Party Payments related expenditure,11/04/2023,1352.27,"Director of Housing, Neighbourhood and Building Services",
Hotels And Motels,Premier Travel Inns,Premier Inn,Agency and Third Party Payments related expenditure,11/04/2023,1358.1,"Director of Housing, Neighbourhood and Building Services",
Personal Service Provider,Mgmt/Consult/Public Rel Ser,Tvlicensing.Co.Uk,Capital related expenditure,11/04/2023,159,Capital - Housing and Tackling Homelessness (HRA),
Business To Business Facility/,Industrial Supplies - Def,Arco Limited,Supplies and Services related expenditure,11/04/2023,72.97,Director of Portsmouth International Port,
Amusement/Entertainment,Theatrical Producers,The Kings Theatre,Agency and Third Party Payments related expenditure,11/04/2023,9,Director of Children's Services and Education,
Hotels And Motels,Premier Travel Inns,Premier Inn,Agency and Third Party Payments related expenditure,11/04/2023,80.82,"Director of Housing, Neighbourhood and Building Services",
Business To Business Eqpt/Furn,Computers/Peripherals/Software,Insight Uk,Supplies and Services related expenditure,11/04/2023,9.99,"Director of Housing, Neighbourhood and Building Services",
Business To Business Eqpt/Furn,Computers/Peripherals/Software,Insight Uk,Supplies and Services related expenditure,11/04/2023,762.91,Director of Corporate Services,
Transportation Conveyor,Travel Agencies,Bkg*hotel At Booking.C,Agency and Third Party Payments related expenditure,12/04/2023,150,"Director of Housing, Neighbourhood and Building Services",
Transportation Conveyor,Travel Agencies,Bkg*booking.Com Hotel,Agency and Third Party Payments related expenditure,12/04/2023,286.67,"Director of Housing, Neighbourhood and Building Services",
Transportation Conveyor,Travel Agencies,Bkg*booking.Com Hotel,Agency and Third Party Payments related expenditure,12/04/2023,1008.33,"Director of Housing, Neighbourhood and Building Services",
Amusement/Entertainment,Member Clubs/Sport/Rec/Golf,Nuffield Health Portsm,Supplies and Services related expenditure,12/04/2023,33.57,Director of Adult Care,
Type of Retail Store,Grocery Stores/Supermarkets,Tesco Gift Card,Supplies and Services related expenditure,12/04/2023,100,Director of Adult Care,
Miscellaneous,Charitable/Soc Service Orgs,Age UK Devon,Employees related expenditure,12/04/2023,77,Director of Adult Care,
Business Services,Business Services - Default,Fast Key Services Limi,Supplies and Services related expenditure,12/04/2023,6.73,Director of Corporate Services,
Transportation Conveyor,"Parking Lots, Meters, Garages",Southampton City Counc,Supplies and Services related expenditure,12/04/2023,2.08,Director of Portsmouth International Port,
Facilities/Repair Supplies,Lawn/Garden Supply/Nursery,Greencare,Premises related expenditure,12/04/2023,49,Director of Children's Services and Education,
Type of Retail Store,Artist/Craft Shops,Stoke Gallery,Supplies and Services related expenditure,12/04/2023,20.42,"Director of Culture, Leisure & Regulatory Services",
Other Supplies,Catalog Merchant,Www.Nisbets.Com,Premises related expenditure,12/04/2023,-251.98,"Director of Culture, Leisure & Regulatory Services",
Business To Business Eqpt/Furn,Computer Software Stores,Sp Pigeon Books,Supplies and Services related expenditure,12/04/2023,233,"Director of Culture, Leisure & Regulatory Services",
Type of Retail Store,Drug Stores & Pharmacies,Bobat Pharmacy,Supplies and Services related expenditure,12/04/2023,7.12,Director of Children's Services and Education,
Business To Business Eqpt/Furn,Stationery/Office Supplies,Www.Banneruk.Com,Supplies and Services related expenditure,12/04/2023,127.26,"Director of Culture, Leisure & Regulatory Services",
Business To Business Facility/,Industrial Supplies - Def,Arco Limited,Supplies and Services related expenditure,12/04/2023,475.38,"Director of Housing, Neighbourhood and Building Services",
Other Supplies,Misc Speciality Retail,Amznmktplace,Supplies and Services related expenditure,12/04/2023,6.39,Director of Children's Services and Education,
Personal Service Provider,Computer Program/Sys Design,Squarespace Inc.,Supplies and Services related expenditure,12/04/2023,19.14,Director of Children's Services and Education,
Other Supplies,Department Stores,Ebay O*21-09928-62654,Supplies and Services related expenditure,12/04/2023,10.1,"Director of Culture, Leisure & Regulatory Services",
Business To Business Eqpt/Furn,Stationery/Office Supplies,Www.Banneruk.Com,Supplies and Services related expenditure,12/04/2023,25.6,Director of Corporate Services,
Other Supplies,Misc Speciality Retail,W&p / Medirite,Premises related expenditure,12/04/2023,113.86,"Director of Housing, Neighbourhood and Building Services",
Eating And Drinking Places,Fast Food Restaurants,Costa Coffee 43011830,Supplies and Services related expenditure,12/04/2023,6.58,Director of Children's Services and Education,
Type of Retail Store,Grocery Stores/Supermarkets,Asda Stores,Supplies and Services related expenditure,12/04/2023,26.5,"Director of Culture, Leisure & Regulatory Services",
Caterers Food,Caterers,Sumup *the Kings Theatre,Agency and Third Party Payments related expenditure,12/04/2023,19,Director of Children's Services and Education,
Miscellaneous,Other Direct Marketers,Amazon.Co.Uk,Supplies and Services related expenditure,12/04/2023,30,Director of Children's Services and Education,
Facilities/Repair Supplies,Hardware Stores,Toolstation Uk,Supplies and Services related expenditure,12/04/2023,94.64,"Director of Housing, Neighbourhood and Building Services",
Government Service,Schools - Default,Twinkl,Supplies and Services related expenditure,12/04/2023,32.94,Director of Children's Services and Education,
Government Service,Schools - Default,Twinkl,Supplies and Services related expenditure,12/04/2023,35.35,Director of Children's Services and Education,
Transportation Conveyor,Local Commuter Transport,Hovertravel Ltd- Ecomm,Supplies and Services related expenditure,12/04/2023,13.7,Director of Children's Services and Education,
Type of Retail Store,Grocery Stores/Supermarkets,Co-Op Group Food,Supplies and Services related expenditure,12/04/2023,10.2,"Director of Housing, Neighbourhood and Building Services",
Government Service,Govt Serv - Default,Portsmouth City Co,Supplies and Services related expenditure,12/04/2023,85,Director of Adult Care,
Hotels And Motels,Travelodge,Travelodge Gb0000,Supplies and Services related expenditure,12/04/2023,79.88,Director of Children's Services and Education,
Medical,Lab/Med/Hospital Equipment,Medical Supplies,Supplies and Services related expenditure,12/04/2023,13.27,Director of Portsmouth International Port,
Business To Business Facility/,Industrial Supplies - Def,Safetrade 247 Limited,Supplies and Services related expenditure,12/04/2023,94.78,Director of Portsmouth International Port,
Other Supplies,Misc Gen Merchandise - Def,Scrapbook Mad,Supplies and Services related expenditure,12/04/2023,32.79,"Director of Culture, Leisure & Regulatory Services",
Business Services,Business Services - Default,Www.Tj-Waste.Co.Uk,Premises related expenditure,12/04/2023,88.8,"Director of Housing, Neighbourhood and Building Services",
Other Supplies,Misc Speciality Retail,Amznbusiness,Supplies and Services related expenditure,12/04/2023,24.99,Director of Children's Services and Education,
Type of Retail Store,Grocery Stores/Supermarkets,One Stop 1350,Supplies and Services related expenditure,12/04/2023,8.8,"Director of Housing, Neighbourhood and Building Services",
Type of Retail Store,Grocery Stores/Supermarkets,Lidl Gb,Supplies and Services related expenditure,12/04/2023,14.19,"Director of Housing, Neighbourhood and Building Services",
Type of Retail Store,Grocery Stores/Supermarkets,Lidl Gb,Supplies and Services related expenditure,12/04/2023,19.27,"Director of Housing, Neighbourhood and Building Services",
Government Service,Govt Serv - Default,Staunton Car Park Glid,Transport related expenditure,12/04/2023,4.17,Director of Children's Services and Education,
Government Service,Govt Serv - Default,Park Community School - T,Agency and Third Party Payments related expenditure,12/04/2023,13.33,Director of Children's Services and Education,
Amusement/Entertainment,Theatrical Producers,The Kings Theatre,Agency and Third Party Payments related expenditure,12/04/2023,20,Director of Children's Services and Education,
Government Service,Govt Serv - Default,Park Community School - T,Agency and Third Party Payments related expenditure,12/04/2023,40.58,Director of Children's Services and Education,
Other Supplies,Misc Speciality Retail,W&p / Medirite,Premises related expenditure,12/04/2023,110.55,"Director of Housing, Neighbourhood and Building Services",
Transportation Conveyor,Local Commuter Transport,Hovertravel Ltd- Ecomm,Supplies and Services related expenditure,12/04/2023,28,Director of Children's Services and Education,
Amusement/Entertainment,Theatrical Producers,Ticketmaster UK Limite,Supplies and Services related expenditure,12/04/2023,48.75,Director of Adult Care,
Type of Retail Store,Grocery Stores/Supermarkets,Southern Co-Op 0006,Supplies and Services related expenditure,12/04/2023,25.35,"Director of Housing, Neighbourhood and Building Services",
Amusement/Entertainment,Aquariums/Seaquariums,Blue Reef Aquarium,Supplies and Services related expenditure,12/04/2023,3.96,Director of Children's Services and Education,
Amusement/Entertainment,Aquariums/Seaquariums,Blue Reef Aquarium,Supplies and Services related expenditure,12/04/2023,31.25,Director of Children's Services and Education,
Type of Retail Store,Grocery Stores/Supermarkets,Tesco Stores 4579,Supplies and Services related expenditure,12/04/2023,5.4,Director of Adult Care,
Other Supplies,Department Stores,Www.Argos.Co.Uk,Supplies and Services related expenditure,12/04/2023,13.5,Director of Children's Services and Education,
Transportation Conveyor,Bus Lines/Charter/Tour,First Hampshire,Agency and Third Party Payments related expenditure,12/04/2023,3.9,"Director of Culture, Leisure & Regulatory Services",
Other Supplies,Gift/Card/Novelty And Souvenir Stores,Portsmouth Museum,Supplies and Services related expenditure,12/04/2023,6.62,"Director of Culture, Leisure & Regulatory Services",
Equipment And Furniture,Furniture/Equip Stores,City Museum,Supplies and Services related expenditure,12/04/2023,35.33,"Director of Culture, Leisure & Regulatory Services",
Business To Business Eqpt/Furn,Computer Software Stores,Ticketsource,Agency and Third Party Payments related expenditure,12/04/2023,34.86,Director of Children's Services and Education,
Type of Retail Store,Grocery Stores/Supermarkets,Wm Morrisons Store,Supplies and Services related expenditure,12/04/2023,8.12,Director of Children's Services and Education,
Type of Retail Store,Grocery Stores/Supermarkets,Wm Morrisons Store,Supplies and Services related expenditure,12/04/2023,2.82,Director of Children's Services and Education,
Type of Retail Store,Grocery Stores/Supermarkets,Wm Morrisons Store,Supplies and Services related expenditure,12/04/2023,5,Director of Children's Services and Education,
Type of Retail Store,Grocery Stores/Supermarkets,Wm Morrisons Store,Supplies and Services related expenditure,12/04/2023,38.6,Director of Children's Services and Education,
Type of Retail Store,Misc Food Stores - Default,Mnk*somers Road Wine,Supplies and Services related expenditure,12/04/2023,6.62,"Director of Housing, Neighbourhood and Building Services",
Government Service,Govt Serv - Default,Gen Register Office,Supplies and Services related expenditure,12/04/2023,14,Director of Regeneration,
Government Service,Govt Serv - Default,Gen Register Office,Supplies and Services related expenditure,12/04/2023,14,Director of Regeneration,
Clothing Services,Womens Ready To Wear Stores,Paypal,Supplies and Services related expenditure,12/04/2023,16.99,Director of Regeneration,
Business To Business Eqpt/Furn,Computer Software Stores,Adobe,Supplies and Services related expenditure,12/04/2023,1.19,Director of Corporate Services,
Business To Business Eqpt/Furn,Computer Software Stores,Adobe,Supplies and Services related expenditure,12/04/2023,1.19,Director of Corporate Services,
Digital Goods,"Digital Goods - Media, Books, Movies, Music",Sp Myfonts Inc,Supplies and Services related expenditure,12/04/2023,31.09,Director of Corporate Services,
Other Supplies,Discount Stores,Poundland Ltd - 1477,Supplies and Services related expenditure,12/04/2023,3.75,"Director of Housing, Neighbourhood and Building Services",
Type of Retail Store,Grocery Stores/Supermarkets,Tesco Stores 3055,Supplies and Services related expenditure,12/04/2023,72.58,"Director of Housing, Neighbourhood and Building Services",
Type of Retail Store,Grocery Stores/Supermarkets,Tesco Stores 3055,Supplies and Services related expenditure,12/04/2023,5.55,"Director of Housing, Neighbourhood and Building Services",
Type of Retail Store,Grocery Stores/Supermarkets,Tesco Stores 3055,Supplies and Services related expenditure,12/04/2023,5.83,"Director of Housing, Neighbourhood and Building Services",
Amusement/Entertainment,Amusement/Rec Serv - Def,Planet Ice Arena,Supplies and Services related expenditure,12/04/2023,17.5,"Director of Housing, Neighbourhood and Building Services",
Amusement/Entertainment,Amusement/Rec Serv - Def,Planet Ice Arena,Supplies and Services related expenditure,12/04/2023,195.5,"Director of Housing, Neighbourhood and Building Services",
Utility,Utilities/Elec/Gas/H2O/Sani,British Gas Online,Supplies and Services related expenditure,12/04/2023,128.64,Director of Children's Services and Education,
Other Supplies,Department Stores,Safetysuppl,Supplies and Services related expenditure,12/04/2023,115.35,Director of Public Health,
Facilities/Repair Supplies,Hardware Stores,Brewers Pompey Centre,Supplies and Services related expenditure,12/04/2023,433.63,"Director of Culture, Leisure & Regulatory Services",
Business To Business Facility/,Industrial Supplies - Def,Arco Limited,Supplies and Services related expenditure,12/04/2023,134.62,"Director of Housing, Neighbourhood and Building Services",
Business To Business Eqpt/Furn,Stationery/Office Supplies,Www.Banneruk.Com,Supplies and Services related expenditure,12/04/2023,50.25,Director of Adult Care,
Type of Retail Store,Grocery Stores/Supermarkets,Tesco Gift Card,Supplies and Services related expenditure,12/04/2023,25,Director of Children's Services and Education,
Other Supplies,Discount Stores,Poundland Ltd - 1943,Supplies and Services related expenditure,12/04/2023,14.5,"Director of Housing, Neighbourhood and Building Services",
Government Service,Schools - Default,Www.Qualsafe.Com,Employees related expenditure,12/04/2023,105,Director of Corporate Services,
Government Service,Schools - Default,Www.Qualsafe.Com,Employees related expenditure,12/04/2023,157.5,Director of Corporate Services,
Facilities/Repair Supplies,Home Supply Warehouse Stores,B & Q 1260,Premises related expenditure,12/04/2023,28.54,"Director of Culture, Leisure & Regulatory Services",
Business To Business Facility/,Electrical Parts/Equipment,Poweradapt,Supplies and Services related expenditure,12/04/2023,8.45,"Director of Culture, Leisure & Regulatory Services",
Other Supplies,Misc Speciality Retail,Amznmktplace,Supplies and Services related expenditure,12/04/2023,21.58,"Director of Culture, Leisure & Regulatory Services",
Other Supplies,Misc Speciality Retail,W&p / Medirite,Premises related expenditure,12/04/2023,44.95,"Director of Housing, Neighbourhood and Building Services",
Government Service,Govt Serv - Default,Rbk Register Office,Supplies and Services related expenditure,12/04/2023,11,Director of Children's Services and Education,
Government Service,Govt Serv - Default,Pcc Internet Payment,Supplies and Services related expenditure,12/04/2023,11,Director of Children's Services and Education,
Government Service,Govt Serv - Default,Pcc Internet Payment,Supplies and Services related expenditure,12/04/2023,11,Director of Children's Services and Education,
Government Service,Govt Serv - Default,Hm Passport Office,Supplies and Services related expenditure,12/04/2023,64,Director of Children's Services and Education,
Freight/Courier/Warehouse Svcs,Public Warehousing,Big Yellow - Portsmout,Premises related expenditure,12/04/2023,146.6,"Director of Housing, Neighbourhood and Building Services",
Freight/Courier/Warehouse Svcs,Public Warehousing,Access Portsmouth,Premises related expenditure,12/04/2023,146.67,"Director of Housing, Neighbourhood and Building Services",
Freight/Courier/Warehouse Svcs,Motor Freight Carriers,Safestore Ltd Online R,Premises related expenditure,12/04/2023,201.64,"Director of Housing, Neighbourhood and Building Services",
Freight/Courier/Warehouse Svcs,Public Warehousing,Big Yellow - Portsmout,Premises related expenditure,12/04/2023,483,"Director of Housing, Neighbourhood and Building Services",
Transportation Conveyor,Travel Agencies,Bkg*booking.Com Hotel,Agency and Third Party Payments related expenditure,12/04/2023,1720.83,"Director of Housing, Neighbourhood and Building Services",
Facilities/Repair Supplies,Home Supply Warehouse Stores,B & Q 1260,Premises related expenditure,12/04/2023,32.92,Director of Children's Services and Education,
Business To Business Services,Misc Publishing & Printing,Spandex,Supplies and Services related expenditure,12/04/2023,65.37,Director of Regeneration,
Type of Retail Store,Grocery Stores/Supermarkets,Lidl Gb Havant,Supplies and Services related expenditure,12/04/2023,3.18,"Director of Housing, Neighbourhood and Building Services",
Other Supplies,Catalog Merchant,Www.Nisbets.Com,Supplies and Services related expenditure,12/04/2023,45.57,"Director of Housing, Neighbourhood and Building Services",
Other Supplies,Misc Speciality Retail,W&p / Medirite,Premises related expenditure,12/04/2023,330.98,"Director of Housing, Neighbourhood and Building Services",
Business To Business Eqpt/Furn,Stationery/Office Supplies,Www.Banneruk.Com,Supplies and Services related expenditure,12/04/2023,19.42,Director of Corporate Services,
Business To Business Eqpt/Furn,Stationery/Office Supplies,Www.Banneruk.Com,Supplies and Services related expenditure,12/04/2023,19.42,Director of Corporate Services,
Other Supplies,Misc Speciality Retail,Amznmktplace,Premises related expenditure,12/04/2023,121.65,Director of Adult Care,
Business Services,Business Services - Default,Cisco Systems,Supplies and Services related expenditure,12/04/2023,15.04,Director of Corporate Services,
Business To Business Eqpt/Furn,Stationery/Office Supplies,Www.Banneruk.Com,Supplies and Services related expenditure,12/04/2023,4142.4,Director of Corporate Services,
Transportation Conveyor,Passenger Railways,Trainline,Transport related expenditure,12/04/2023,17.2,Director of Children's Services and Education,
Other Supplies,Misc Speciality Retail,Amznmktplace,Supplies and Services related expenditure,13/04/2023,15.86,Director of Regeneration,
Other Supplies,Misc Speciality Retail,Amznmktplace,Supplies and Services related expenditure,13/04/2023,7.12,Director of Children's Services and Education,
Other Supplies,Misc Speciality Retail,Amznmktplace,Supplies and Services related expenditure,13/04/2023,64.11,"Director of Housing, Neighbourhood and Building Services",
Other Supplies,Misc Speciality Retail,Amznmktplace,Supplies and Services related expenditure,13/04/2023,64.11,"Director of Housing, Neighbourhood and Building Services",
Other Supplies,Misc Speciality Retail,Amznmktplace,Supplies and Services related expenditure,13/04/2023,23,"Director of Culture, Leisure & Regulatory Services",
Business To Business Facility/,Industrial Supplies - Def,Arco Limited,Supplies and Services related expenditure,05/04/2023,34.2,Director of Portsmouth International Port,
Other Supplies,Variety Stores,Paypal,Capital related expenditure,11/04/2023,18.33,Capital - Housing and Tackling Homelessness (HRA),
Other Supplies,Variety Stores,Paypal,Capital related expenditure,11/04/2023,743.29,Capital - Housing and Tackling Homelessness (HRA),
Hotels And Motels,Premier Travel Inns,Premier Inn,Agency and Third Party Payments related expenditure,12/04/2023,632.02,"Director of Housing, Neighbourhood and Building Services",
Hotels And Motels,Premier Travel Inns,Premier Inn,Agency and Third Party Payments related expenditure,12/04/2023,1071.99,"Director of Housing, Neighbourhood and Building Services",
Hotels And Motels,Premier Travel Inns,Premier Inn,Agency and Third Party Payments related expenditure,12/04/2023,1104.05,"Director of Housing, Neighbourhood and Building Services",
Hotels And Motels,Premier Travel Inns,Premier Inn,Agency and Third Party Payments related expenditure,12/04/2023,1110.72,"Director of Housing, Neighbourhood and Building Services",
Hotels And Motels,Premier Travel Inns,Premier Inn,Agency and Third Party Payments related expenditure,12/04/2023,1120.3,"Director of Housing, Neighbourhood and Building Services",
Hotels And Motels,Premier Travel Inns,Premier Inn,Agency and Third Party Payments related expenditure,12/04/2023,1125.72,"Director of Housing, Neighbourhood and Building Services",
Hotels And Motels,Premier Travel Inns,Premier Inn,Agency and Third Party Payments related expenditure,12/04/2023,1133.22,"Director of Housing, Neighbourhood and Building Services",
Hotels And Motels,Premier Travel Inns,Premier Inn,Agency and Third Party Payments related expenditure,12/04/2023,1186.55,"Director of Housing, Neighbourhood and Building Services",
Hotels And Motels,Premier Travel Inns,Premier Inn,Agency and Third Party Payments related expenditure,12/04/2023,1517.8,"Director of Housing, Neighbourhood and Building Services",
Hotels And Motels,Premier Travel Inns,Premier Inn,Agency and Third Party Payments related expenditure,12/04/2023,1517.8,"Director of Housing, Neighbourhood and Building Services",
Hotels And Motels,Premier Travel Inns,Premier Inn,Agency and Third Party Payments related expenditure,12/04/2023,1544.47,"Director of Housing, Neighbourhood and Building Services",
Transportation Conveyor,Passenger Railways,Trainline.Com,Transport related expenditure,12/04/2023,-29,Director of Finance & Resources,
Hotels And Motels,Premier Travel Inns,Premier Inn,Supplies and Services related expenditure,12/04/2023,72.25,Director of Children's Services and Education,
Business To Business Facility/,Electrical Parts/Equipment,Rs Components,Supplies and Services related expenditure,12/04/2023,66.48,"Director of Culture, Leisure & Regulatory Services",
Business Expenses/Services,Postage Stamps,Post Office Counter,Supplies and Services related expenditure,13/04/2023,4.19,Director of Adult Care,
Other Supplies,Misc Speciality Retail,Amznmktplace,Supplies and Services related expenditure,13/04/2023,11.62,Director of Corporate Services,
Other Supplies,Misc Speciality Retail,Amznmktplace,Supplies and Services related expenditure,13/04/2023,12.49,Director of Corporate Services,
Other Supplies,Misc Speciality Retail,Amznmktplace,Transport related expenditure,13/04/2023,20.48,Director of Corporate Services,
Other Supplies,Misc Speciality Retail,Amznbusiness,Supplies and Services related expenditure,13/04/2023,25.54,Director of Corporate Services,
Hotels And Motels,Lodging/Hotels/Motels/Resorts,Hotel At Booking.Com,Agency and Third Party Payments related expenditure,13/04/2023,870.85,"Director of Housing, Neighbourhood and Building Services",
Transportation Conveyor,Travel Agencies,Bkg*booking.Com Hotel,Agency and Third Party Payments related expenditure,13/04/2023,963.93,"Director of Housing, Neighbourhood and Building Services",
Transportation Conveyor,Travel Agencies,Bkg*booking.Com Hotel,Agency and Third Party Payments related expenditure,13/04/2023,970.83,"Director of Housing, Neighbourhood and Building Services",
Hotels And Motels,Lodging/Hotels/Motels/Resorts,Hotel At Booking.Com,Agency and Third Party Payments related expenditure,13/04/2023,979.87,"Director of Housing, Neighbourhood and Building Services",
Transportation Conveyor,Travel Agencies,Bkg*booking.Com Hotel,Agency and Third Party Payments related expenditure,13/04/2023,1070,"Director of Housing, Neighbourhood and Building Services",
Hotels And Motels,Travelodge,Travelodge Gb0000,Agency and Third Party Payments related expenditure,13/04/2023,1213.55,"Director of Housing, Neighbourhood and Building Services",
Hotels And Motels,Travelodge,Travelodge Gb0000,Agency and Third Party Payments related expenditure,13/04/2023,1229.38,"Director of Housing, Neighbourhood and Building Services",
Hotels And Motels,Travelodge,Travelodge Gb0000,Agency and Third Party Payments related expenditure,13/04/2023,1517.41,"Director of Housing, Neighbourhood and Building Services",
Business To Business Eqpt/Furn,Computer Software Stores,Ticketsource,Supplies and Services related expenditure,13/04/2023,41.02,Director of Adult Care,
Transportation Conveyor,Passenger Railways,Trainline.Com,Supplies and Services related expenditure,13/04/2023,41.04,Director of Children's Services and Education,
Transportation Conveyor,Passenger Railways,Trainline,Supplies and Services related expenditure,13/04/2023,107.85,Director of Children's Services and Education,
Equipment And Furniture,Furniture/Equip Stores,Divan Base Direct,Premises related expenditure,13/04/2023,249.92,Director of Children's Services and Education,
Transportation Conveyor,"Parking Lots, Meters, Garages",Gunwharf Quays,Transport related expenditure,13/04/2023,1.75,Director of Children's Services and Education,
Hotels And Motels,Hilton International,Doubletree By Hilton Hote,Supplies and Services related expenditure,13/04/2023,20.58,Director of Portsmouth International Port,
Auto/Vehicle Expenses,Automated Fuel Dispensers,Asda Petrol/upt,Transport related expenditure,13/04/2023,82.07,Director of Children's Services and Education,
Business Services,Business Services - Default,Eb *linkedin Local Por,Supplies and Services related expenditure,13/04/2023,33.92,Director of Regeneration,
Type of Retail Store,Sporting Goods Stores,M And M Direct Ltd,Supplies and Services related expenditure,13/04/2023,39.98,Director of Children's Services and Education,
Business To Business Facility/,Industrial Supplies - Def,Pirtek Portsmouth,Transport related expenditure,13/04/2023,149.8,"Director of Culture, Leisure & Regulatory Services",
Type of Retail Store,Grocery Stores/Supermarkets,Asda Stores Ltd,Supplies and Services related expenditure,13/04/2023,25,Director of Children's Services and Education,
Type of Retail Store,Grocery Stores/Supermarkets,Asda Stores Ltd,Supplies and Services related expenditure,13/04/2023,50,Director of Children's Services and Education,
Other Supplies,Misc Speciality Retail,Timpson Ltd,Supplies and Services related expenditure,13/04/2023,33.75,Director of Children's Services and Education,
Facilities/Repair Supplies,Misc Home Furnishing,Tillys Beds Ltd,Supplies and Services related expenditure,13/04/2023,66.67,Director of Children's Services and Education,
Government Service,Govt Serv - Default,Portsmouth City Co,Supplies and Services related expenditure,13/04/2023,76,Director of Children's Services and Education,
Facilities/Repair Supplies,Misc Home Furnishing,The Range,Supplies and Services related expenditure,13/04/2023,16.65,Director of Children's Services and Education,
Facilities/Repair Supplies,Lawn/Garden Supply/Nursery,Carters Of Swanwic,Supplies and Services related expenditure,13/04/2023,70.17,"Director of Housing, Neighbourhood and Building Services",
Business Services,Advertising Services,Facebk X6xjtnp7z2,Supplies and Services related expenditure,13/04/2023,700,Director of Corporate Services,
Type of Retail Store,Grocery Stores/Supermarkets,Tesco Stores 3387,Supplies and Services related expenditure,13/04/2023,5.9,Director of Children's Services and Education,
Transportation Conveyor,Passenger Railways,Trainline,Transport related expenditure,13/04/2023,68.14,Director of Children's Services and Education,
Type of Retail Store,Grocery Stores/Supermarkets,Lidl Gb Portsmouth,Supplies and Services related expenditure,13/04/2023,1.54,Director of Adult Care,
Type of Retail Store,Grocery Stores/Supermarkets,Lidl Gb Portsmouth,Supplies and Services related expenditure,13/04/2023,15.81,Director of Adult Care,
Government Service,Govt Serv - Default,Hampshire County Counc,Supplies and Services related expenditure,13/04/2023,7.54,"Director of Culture, Leisure & Regulatory Services",
Government Service,Govt Serv - Default,Hampshire County Counc,Supplies and Services related expenditure,13/04/2023,30.78,"Director of Culture, Leisure & Regulatory Services",
Government Service,Govt Serv - Default,Hampshire County Counc,Supplies and Services related expenditure,13/04/2023,63,"Director of Culture, Leisure & Regulatory Services",
Business To Business Eqpt/Furn,Stationery/Office Supplies,Www.Banneruk.Com,Supplies and Services related expenditure,13/04/2023,129.43,"Director of Culture, Leisure & Regulatory Services",
Amusement/Entertainment,Amusement Parks/Circus,Thorpe Park Resort,Agency and Third Party Payments related expenditure,13/04/2023,32,Director of Children's Services and Education,
Hotels And Motels,Travelodge,Travelodge Gb0000,Supplies and Services related expenditure,13/04/2023,98.58,Director of Children's Services and Education,
Transportation Conveyor,Taxicabs/Limousines,Aqua Cars,Transport related expenditure,13/04/2023,6.3,Director of Children's Services and Education,
Transportation Conveyor,Passenger Railways,Trainline,Transport related expenditure,13/04/2023,213.16,Director of Children's Services and Education,
Other Supplies,Misc Speciality Retail,Amznbusiness,Supplies and Services related expenditure,13/04/2023,6.5,Director of Adult Care,
Facilities/Repair Supplies,Home Supply Warehouse Stores,B & Q 1260,Supplies and Services related expenditure,13/04/2023,29.17,"Director of Housing, Neighbourhood and Building Services",
Type of Retail Store,Grocery Stores/Supermarkets,Asda Stores,Supplies and Services related expenditure,13/04/2023,44.04,"Director of Housing, Neighbourhood and Building Services",
Type of Retail Store,Grocery Stores/Supermarkets,Iceland,Supplies and Services related expenditure,13/04/2023,46.5,"Director of Housing, Neighbourhood and Building Services",
Other Supplies,Misc Speciality Retail,Zettle_*rb Trading,Supplies and Services related expenditure,13/04/2023,12.5,Director of Children's Services and Education,
Eating And Drinking Places,Eating Places/Restaurants,Ceanos,Supplies and Services related expenditure,13/04/2023,8.08,Director of Portsmouth International Port,
Type of Retail Store,Misc Food Stores - Default,Premier Fresh & Local,Supplies and Services related expenditure,13/04/2023,10,Director of Children's Services and Education,
Government Service,Govt Serv - Default,Portsmouth City Co,Transport related expenditure,13/04/2023,63.33,Director of Adult Care,
Business To Business Eqpt/Furn,Computer Software Stores,Www.Mindomo.Com,Supplies and Services related expenditure,13/04/2023,32.69,Director of Regeneration,
Miscellaneous,Other Direct Marketers,Amazon.Co.Uk,Supplies and Services related expenditure,13/04/2023,30,Director of Children's Services and Education,
Miscellaneous,Other Direct Marketers,Amazon.Co.Uk,Supplies and Services related expenditure,13/04/2023,30,Director of Children's Services and Education,
Miscellaneous,Other Direct Marketers,Amazon.Co.Uk,Supplies and Services related expenditure,13/04/2023,30,Director of Children's Services and Education,
Miscellaneous,Other Direct Marketers,Amazon.Co.Uk,Supplies and Services related expenditure,13/04/2023,30,Director of Children's Services and Education,
Miscellaneous,Other Direct Marketers,Amazon.Co.Uk,Supplies and Services related expenditure,13/04/2023,30,Director of Children's Services and Education,
Miscellaneous,Other Direct Marketers,Amazon.Co.Uk,Supplies and Services related expenditure,13/04/2023,30,Director of Children's Services and Education,
Miscellaneous,Other Direct Marketers,Amazon.Co.Uk,Supplies and Services related expenditure,13/04/2023,30,Director of Children's Services and Education,
Miscellaneous,Other Direct Marketers,Amazon.Co.Uk,Supplies and Services related expenditure,13/04/2023,30,Director of Children's Services and Education,
Miscellaneous,Other Direct Marketers,Amazon.Co.Uk,Supplies and Services related expenditure,13/04/2023,30,Director of Children's Services and Education,
Miscellaneous,Other Direct Marketers,Amazon.Co.Uk,Supplies and Services related expenditure,13/04/2023,30,Director of Children's Services and Education,
Miscellaneous,Other Direct Marketers,Amazon.Co.Uk,Supplies and Services related expenditure,13/04/2023,30,Director of Children's Services and Education,
Miscellaneous,Other Direct Marketers,Amazon.Co.Uk,Supplies and Services related expenditure,13/04/2023,30,Director of Children's Services and Education,
Miscellaneous,Other Direct Marketers,Amazon.Co.Uk,Supplies and Services related expenditure,13/04/2023,30,Director of Children's Services and Education,
Business To Business Services,Misc Publishing & Printing,Magazine.Co.Uk,Supplies and Services related expenditure,13/04/2023,32.35,Director of Children's Services and Education,
Facilities/Repair Supplies,Home Supply Warehouse Stores,B & Q 1238,Supplies and Services related expenditure,13/04/2023,72,"Director of Housing, Neighbourhood and Building Services",
Transportation Conveyor,Bus Lines/Charter/Tour,First Bus,Supplies and Services related expenditure,13/04/2023,196,Capital - Housing and Tackling Homelessness (HRA),
Transportation Conveyor,Local Commuter Transport,Hovertravel Ltd- Ecomm,Transport related expenditure,13/04/2023,23.33,Director of Children's Services and Education,
Hotels And Motels,Travelodge,Travelodge Gb0000,Supplies and Services related expenditure,13/04/2023,52.68,Director of Children's Services and Education,
Facilities/Repair Supplies,Hardware Stores,Home Bargains,Supplies and Services related expenditure,13/04/2023,2.91,Director of Children's Services and Education,
Type of Retail Store,Grocery Stores/Supermarkets,Marks&spencer Plc Saca,Supplies and Services related expenditure,13/04/2023,21.92,Director of Children's Services and Education,
Type of Retail Store,Grocery Stores/Supermarkets,Lidl Gb Waterlooville,Supplies and Services related expenditure,13/04/2023,35.18,Director of Children's Services and Education,
Type of Retail Store,Grocery Stores/Supermarkets,Lidl Gb Waterlooville,Supplies and Services related expenditure,13/04/2023,2.75,Director of Children's Services and Education,
Facilities/Repair Supplies,Hardware Stores,Home Bargains,Supplies and Services related expenditure,13/04/2023,24.98,Director of Children's Services and Education,
Facilities/Repair Supplies,Hardware Stores,Home Bargains,Premises related expenditure,13/04/2023,27.77,Director of Children's Services and Education,
Type of Retail Store,Grocery Stores/Supermarkets,Farmfoods 750,Supplies and Services related expenditure,13/04/2023,6.03,Director of Children's Services and Education,
Type of Retail Store,Grocery Stores/Supermarkets,Farmfoods 750,Supplies and Services related expenditure,13/04/2023,73.72,Director of Children's Services and Education,
Type of Retail Store,Drug Stores & Pharmacies,Lalys Chemist,Supplies and Services related expenditure,13/04/2023,4.98,Director of Adult Care,
Other Supplies,Misc Speciality Retail,Amznmktplace,Premises related expenditure,13/04/2023,14.12,Director of Adult Care,
Other Supplies,Misc Speciality Retail,Amznmktplace,Premises related expenditure,13/04/2023,33.82,Director of Adult Care,
Facilities/Repair Supplies,Home Supply Warehouse Stores,B & Q 1260,Supplies and Services related expenditure,13/04/2023,39.17,Director of Adult Care,
Facilities/Repair Supplies,Lumber/Build. Supply Stores,Www.Screwfix.Com,Supplies and Services related expenditure,13/04/2023,303.08,Director of Portsmouth International Port,
Type of Retail Store,Grocery Stores/Supermarkets,Tesco Stores 6002,Supplies and Services related expenditure,13/04/2023,10.83,"Director of Housing, Neighbourhood and Building Services",
Other Supplies,Department Stores,High Street Vouchers,Supplies and Services related expenditure,13/04/2023,100,"Director of Housing, Neighbourhood and Building Services",
Other Supplies,Department Stores,High Street Vouchers,Supplies and Services related expenditure,13/04/2023,100,"Director of Housing, Neighbourhood and Building Services",
Hotels And Motels,Travelodge,Travelodge Gb0000,Supplies and Services related expenditure,13/04/2023,51.83,Director of Children's Services and Education,
Business To Business Other Sup,Uniforms & Commercial Clothing,Alexandra Website,Supplies and Services related expenditure,13/04/2023,87.62,"Director of Housing, Neighbourhood and Building Services",
Other Supplies,Misc Speciality Retail,W&p / Medirite,Premises related expenditure,13/04/2023,145.96,"Director of Housing, Neighbourhood and Building Services",
Facilities/Repair Supplies,Home Supply Warehouse Stores,B & Q 1260,Supplies and Services related expenditure,13/04/2023,5,Director of Adult Care,
Transportation Conveyor,Taxicabs/Limousines,31125841a Skyline,Supplies and Services related expenditure,13/04/2023,10.2,Director of Adult Care,
